Body,Body name,Service label,Service divison label,Expenditure category,Detailed expenditure type,Detailed expenditure code,Date paid,Transaction number,Net amount,Capital or revenue,Supplier name
http://statistics.data.gov.uk/doc/local-authority/00DA,Leeds City Council,Central & Corporate Functions,Commercial Services Trading Services,Supplies and Services,Operational Materials,205,10/11/2011,1112-00001,1137.50,R,A & A Electrical Distributors Ltd
http://statistics.data.gov.uk/doc/local-authority/00DA,Leeds City Council,Central & Corporate Functions,Commercial Services Trading Services,Supplies and Services,Operational Materials,205,15/11/2011,1112-00002,508.10,R,A & A Electrical Distributors Ltd
http://statistics.data.gov.uk/doc/local-authority/00DA,East - North East,East - North East,Construction Services,Supplies and Services,Other Materials,205,18/11/2011,1112-00003,633.60,R,A Andrews & Sons (Marbles & Tiles)
http://statistics.data.gov.uk/doc/local-authority/00DA,Leeds City Council,City Development,Highways,Supplies and Services,Other Hired And Contracted Services,265,02/11/2011,1112-00004,838.00,R,A D D Loop Cutting Services Ltd
http://statistics.data.gov.uk/doc/local-authority/00DA,Leeds City Council,Central & Corporate Functions,Commercial Services Trading Services,Supplies and Services,Operational Materials,205,10/11/2011,1112-00005,563.50,R,A J H Pump Supply & Repair Ltd
http://statistics.data.gov.uk/doc/local-authority/00DA,Leeds City Council,Central & Corporate Functions,Commercial Services Trading Services,Supplies and Services,Operational Materials,205,10/11/2011,1112-00006,725.00,R,A J H Pump Supply & Repair Ltd
http://statistics.data.gov.uk/doc/local-authority/00DA,Leeds City Council,Central & Corporate Functions,Commercial Services Trading Services,Supplies and Services,Operational Materials,205,10/11/2011,1112-00007,730.00,R,A J H Pump Supply & Repair Ltd
http://statistics.data.gov.uk/doc/local-authority/00DA,Leeds City Council,Central & Corporate Functions,Commercial Services Trading Services,Supplies and Services,Operational Materials,205,18/11/2011,1112-00008,953.00,R,A J H Pump Supply & Repair Ltd
http://statistics.data.gov.uk/doc/local-authority/00DA,Leeds City Council,City Development,Economic Development,Supplies and Services,Resaleable Materials,204,04/11/2011,1112-00009,670.00,R,A J Promotions
http://statistics.data.gov.uk/doc/local-authority/00DA,Leeds City Council,Childrens Services,Safeguarding Targeted & Specialist,Third Party Payments,General External Residential Placements,507,04/11/2011,1112-00010,13000.00,R,A Lowrie Care Service Limited
http://statistics.data.gov.uk/doc/local-authority/00DA,Leeds City Council,Childrens Services,Safeguarding Targeted & Specialist,Third Party Payments,General External Residential Placements,507,04/11/2011,1112-00011,14000.00,R,A Lowrie Care Service Limited
http://statistics.data.gov.uk/doc/local-authority/00DA,Leeds City Council,Central & Corporate Functions,Customer Services,Supplies and Services,Other Hired And Contracted Services,265,03/11/2011,1112-00012,484.74,R,A Mohammed
http://statistics.data.gov.uk/doc/local-authority/00DA,Leeds City Council,City Development,Recreation,Supplies and Services,Other Hired And Contracted Services,265,14/11/2011,1112-00013,4636.80,R,A Nicholls
http://statistics.data.gov.uk/doc/local-authority/00DA,Leeds City Council,Environment & Neighbourhoods,Statutory Housing,Supplies and Services,Other Hired And Contracted Services,265,08/11/2011,1112-00014,600.00,R,A Team Properties
http://statistics.data.gov.uk/doc/local-authority/00DA,Leeds City Council,Environment & Neighbourhoods,Statutory Housing,Transport,Public Transport Expenses,310,11/11/2011,1112-00015,2440.00,R,A Zoom Taxis
http://statistics.data.gov.uk/doc/local-authority/00DA,Leeds City Council,Other Education Services,Active Accounts,Transfer Payments,School Budget Share,611,22/11/2011,1112-00016,8730.00,R,Abbey Grange C Of E Academy Trust
http://statistics.data.gov.uk/doc/local-authority/00DA,Leeds City Council,Childrens Services,Partnership Development & Leadership,Supplies and Services,Other Hired And Contracted Services,265,30/11/2011,1112-00017,11225.05,R,Abbey Grange C Of E Academy Trust
http://statistics.data.gov.uk/doc/local-authority/00DA,Leeds City Council as Accountable Body,Leeds Community Equip Store Pooled Budgt,Leeds Community Equip Store Pooled Budgt,Supplies and Services,Other Equipment,203,02/11/2011,1112-00018,1900.00,R,Abbey Healthcare
http://statistics.data.gov.uk/doc/local-authority/00DA,Leeds City Council as Accountable Body,Leeds Community Equip Store Pooled Budgt,Leeds Community Equip Store Pooled Budgt,Supplies and Services,Other Equipment,203,17/11/2011,1112-00019,1900.00,R,Abbey Healthcare
http://statistics.data.gov.uk/doc/local-authority/00DA,Leeds City Council,Adult Social Care,Services For Older People - 65 And Over,Third Party Payments,Residential Care Emi,571,23/11/2011,1112-00020,1170.76,R,Abbey Lea Residential Care Home
http://statistics.data.gov.uk/doc/local-authority/00DA,Leeds City Council,Adult Social Care,Services For Adults Under 65 Mental/Dis,Third Party Payments,Residential,580,23/11/2011,1112-00021,1163.80,R,Abbeydale Care Home
http://statistics.data.gov.uk/doc/local-authority/00DA,East - North East,East - North East,Business Improvement,Supplies and Services,Publicity & Promotional Services,267,14/11/2011,1112-00022,1270.50,R,Abc Promotional Gifts Ltd
http://statistics.data.gov.uk/doc/local-authority/00DA,Leeds City Council,Adult Social Care,Services For Older People - 65 And Over,Third Party Payments,Nursing Home,570,23/11/2011,1112-00023,40360.59,R,Aberford Hall
http://statistics.data.gov.uk/doc/local-authority/00DA,Leeds City Council,Adult Social Care,Services For Older People - 65 And Over,Third Party Payments,Residential,580,23/11/2011,1112-00024,1965.19,R,Aberford Hall
http://statistics.data.gov.uk/doc/local-authority/00DA,Leeds City Council,Environment & Neighbourhoods,Environmental Health,Capital,Construction,3,03/11/2011,1112-00025,4150.00,C,Able Bathing & Building Contractors Ltd
http://statistics.data.gov.uk/doc/local-authority/00DA,Leeds City Council,Environment & Neighbourhoods,Environmental Health,Capital,Construction,3,03/11/2011,1112-00026,4150.00,C,Able Bathing & Building Contractors Ltd
http://statistics.data.gov.uk/doc/local-authority/00DA,Leeds City Council,Environment & Neighbourhoods,Environmental Health,Capital,Construction,3,03/11/2011,1112-00027,4150.00,C,Able Bathing & Building Contractors Ltd
http://statistics.data.gov.uk/doc/local-authority/00DA,Leeds City Council,Environment & Neighbourhoods,Environmental Health,Capital,Construction,3,09/11/2011,1112-00028,10000.00,C,Able Bathing & Building Contractors Ltd
http://statistics.data.gov.uk/doc/local-authority/00DA,Leeds City Council,Environment & Neighbourhoods,Environmental Health,Capital,Construction,3,10/11/2011,1112-00029,2890.00,C,Able Bathing & Building Contractors Ltd
http://statistics.data.gov.uk/doc/local-authority/00DA,Leeds City Council,Adult Social Care,Adult Social Care,Capital,Other Costs,7,11/11/2011,1112-00030,469.00,C,Able Bathing & Building Contractors Ltd
http://statistics.data.gov.uk/doc/local-authority/00DA,Leeds City Council,Environment & Neighbourhoods,Environmental Health,Capital,Construction,3,16/11/2011,1112-00031,1487.55,C,Able Bathing & Building Contractors Ltd
http://statistics.data.gov.uk/doc/local-authority/00DA,Leeds City Council,Environment & Neighbourhoods,Environmental Health,Capital,Construction,3,16/11/2011,1112-00032,4150.00,C,Able Bathing & Building Contractors Ltd
http://statistics.data.gov.uk/doc/local-authority/00DA,Leeds City Council,Environment & Neighbourhoods,Environmental Health,Capital,Construction,3,16/11/2011,1112-00033,4150.00,C,Able Bathing & Building Contractors Ltd
http://statistics.data.gov.uk/doc/local-authority/00DA,Leeds City Council,Environment & Neighbourhoods,Environmental Health,Capital,Construction,3,16/11/2011,1112-00034,4420.00,C,Able Bathing & Building Contractors Ltd
http://statistics.data.gov.uk/doc/local-authority/00DA,Leeds City Council,Environment & Neighbourhoods,Environmental Health,Capital,Construction,3,16/11/2011,1112-00035,13000.00,C,Able Bathing & Building Contractors Ltd
http://statistics.data.gov.uk/doc/local-authority/00DA,Leeds City Council,Environment & Neighbourhoods,Environmental Health,Capital,Construction,3,17/11/2011,1112-00036,2590.00,C,Able Bathing & Building Contractors Ltd
http://statistics.data.gov.uk/doc/local-authority/00DA,Leeds City Council,Environment & Neighbourhoods,Environmental Health,Capital,Construction,3,17/11/2011,1112-00037,4150.00,C,Able Bathing & Building Contractors Ltd
http://statistics.data.gov.uk/doc/local-authority/00DA,Leeds City Council,Environment & Neighbourhoods,Environmental Health,Capital,Construction,3,17/11/2011,1112-00038,4150.00,C,Able Bathing & Building Contractors Ltd
http://statistics.data.gov.uk/doc/local-authority/00DA,Leeds City Council,Environment & Neighbourhoods,Environmental Health,Capital,Construction,3,17/11/2011,1112-00039,7590.00,C,Able Bathing & Building Contractors Ltd
http://statistics.data.gov.uk/doc/local-authority/00DA,Leeds City Council,Environment & Neighbourhoods,Environmental Health,Capital,Construction,3,22/11/2011,1112-00040,4150.00,C,Able Bathing & Building Contractors Ltd
http://statistics.data.gov.uk/doc/local-authority/00DA,Leeds City Council,Environment & Neighbourhoods,Environmental Health,Capital,Construction,3,30/11/2011,1112-00041,4200.00,C,Able Bathing & Building Contractors Ltd
http://statistics.data.gov.uk/doc/local-authority/00DA,Leeds City Council,City Development,Recreation,Supplies and Services,Other Hired And Contracted Services,265,04/11/2011,1112-00042,500.00,R,Abyss Recycling
http://statistics.data.gov.uk/doc/local-authority/00DA,Leeds City Council,City Development,Recreation,Supplies and Services,Other Hired And Contracted Services,265,04/11/2011,1112-00043,3240.00,R,Abyss Recycling
http://statistics.data.gov.uk/doc/local-authority/00DA,Leeds City Council,Childrens Services,Learning Skills & Universal,Employees,Agency Staff,008,03/11/2011,1112-00044,444.00,R,Academic Appointments Ltd
http://statistics.data.gov.uk/doc/local-authority/00DA,Leeds City Council,Childrens Services,Learning Skills & Universal,Employees,Agency Staff,008,17/11/2011,1112-00045,564.00,R,Academic Appointments Ltd
http://statistics.data.gov.uk/doc/local-authority/00DA,Leeds City Council,Childrens Services,Learning Skills & Universal,Employees,Agency Staff,008,18/11/2011,1112-00046,684.00,R,Academic Appointments Ltd
http://statistics.data.gov.uk/doc/local-authority/00DA,Leeds City Council,Childrens Services,Learning Skills & Universal,Employees,Agency Staff,008,25/11/2011,1112-00047,1044.00,R,Academic Appointments Ltd
http://statistics.data.gov.uk/doc/local-authority/00DA,Leeds City Council,Childrens Services,Learning Skills & Universal,Employees,Agency Staff,008,28/11/2011,1112-00048,420.00,R,Academic Appointments Ltd
http://statistics.data.gov.uk/doc/local-authority/00DA,Leeds City Council,Childrens Services,Learning Skills & Universal,Employees,Agency Staff,008,30/11/2011,1112-00049,444.00,R,Academic Appointments Ltd
http://statistics.data.gov.uk/doc/local-authority/00DA,Leeds City Council,Adult Social Care,Services For Adults Under 65 Learn/Dis,Premises,Rents,141,18/11/2011,1112-00050,546.00,R,Accent Foundation
http://statistics.data.gov.uk/doc/local-authority/00DA,Leeds City Council,Adult Social Care,Services For Adults Under 65 Learn/Dis,Premises,Rents,141,21/11/2011,1112-00051,546.00,R,Accent Foundation
http://statistics.data.gov.uk/doc/local-authority/00DA,Leeds City Council,City Development,Recreation,Supplies and Services,Security Services(Non Infrastructure),262,04/11/2011,1112-00052,821.64,R,Acclaimed Security Services
http://statistics.data.gov.uk/doc/local-authority/00DA,Leeds City Council,City Development,Recreation,Supplies and Services,Security Services(Non Infrastructure),262,04/11/2011,1112-00053,1173.21,R,Acclaimed Security Services
http://statistics.data.gov.uk/doc/local-authority/00DA,Leeds City Council,City Development,Recreation,Supplies and Services,Security Services(Non Infrastructure),262,16/11/2011,1112-00054,801.96,R,Acclaimed Security Services
http://statistics.data.gov.uk/doc/local-authority/00DA,Leeds City Council,City Development,Recreation,Supplies and Services,Security Services(Non Infrastructure),262,16/11/2011,1112-00055,1173.21,R,Acclaimed Security Services
http://statistics.data.gov.uk/doc/local-authority/00DA,Leeds City Council,City Development,Recreation,Supplies and Services,Security Services(Non Infrastructure),262,28/11/2011,1112-00056,939.72,R,Acclaimed Security Services
http://statistics.data.gov.uk/doc/local-authority/00DA,Leeds City Council,City Development,Recreation,Supplies and Services,Security Services(Non Infrastructure),262,28/11/2011,1112-00057,1173.21,R,Acclaimed Security Services
http://statistics.data.gov.uk/doc/local-authority/00DA,Leeds City Council,City Development,Recreation,Supplies and Services,Security Services(Non Infrastructure),262,28/11/2011,1112-00058,1173.21,R,Acclaimed Security Services
http://statistics.data.gov.uk/doc/local-authority/00DA,Leeds City Council,City Development,Recreation,Supplies and Services,Security Services(Non Infrastructure),262,28/11/2011,1112-00059,1353.00,R,Acclaimed Security Services
http://statistics.data.gov.uk/doc/local-authority/00DA,Leeds City Council,Insurance,Insurance,Supplies and Services,Insurance Claims,248,10/11/2011,1112-00060,1200.00,R,Accountant General Of The Senior Court
http://statistics.data.gov.uk/doc/local-authority/00DA,Leeds City Council,Insurance,Insurance,Supplies and Services,Insurance Claims,248,24/11/2011,1112-00061,500.00,R,Accountant General Of The Senior Court
http://statistics.data.gov.uk/doc/local-authority/00DA,Leeds City Council,Childrens Services,Learning Skills & Universal,Supplies and Services,Other Hired And Contracted Services,265,17/11/2011,1112-00062,600.00,R,Ache Community & Young Peoples Centre
http://statistics.data.gov.uk/doc/local-authority/00DA,Leeds City Council,City Development,Recreation,Supplies and Services,Operational Furniture And Equipment,203,17/11/2011,1112-00063,3700.00,R,Acm
http://statistics.data.gov.uk/doc/local-authority/00DA,Leeds City Council,City Development,Libraries Arts & Heritage,Supplies and Services,Operational Furniture And Equipment,203,25/11/2011,1112-00064,3000.00,R,Acorn Event Solutions Ltd
http://statistics.data.gov.uk/doc/local-authority/00DA,Leeds City Council,Adult Social Care,Services For Adults Under 65 Mental/Dis,Third Party Payments,Residential,580,23/11/2011,1112-00065,2147.65,R,Acre Green
http://statistics.data.gov.uk/doc/local-authority/00DA,Leeds City Council,Adult Social Care,Services For Older People - 65 And Over,Third Party Payments,Nursing Home,570,23/11/2011,1112-00066,31665.20,R,Acre Green
http://statistics.data.gov.uk/doc/local-authority/00DA,Leeds City Council,Adult Social Care,Services For Older People - 65 And Over,Third Party Payments,Nursing Care Emi,574,23/11/2011,1112-00067,2280.85,R,Acre Green
http://statistics.data.gov.uk/doc/local-authority/00DA,Leeds City Council,Adult Social Care,Services For Older People - 65 And Over,Third Party Payments,Residential,580,23/11/2011,1112-00068,14285.70,R,Acre Green
http://statistics.data.gov.uk/doc/local-authority/00DA,Leeds City Council,Adult Social Care,Services For Older People Under 65 P/Dis,Third Party Payments,Nursing Home,570,23/11/2011,1112-00069,2056.35,R,Acre Green
http://statistics.data.gov.uk/doc/local-authority/00DA,Leeds City Council,Adult Social Care,Services For Older People Under 65 P/Dis,Third Party Payments,Residential,580,23/11/2011,1112-00070,1573.90,R,Acre Green
http://statistics.data.gov.uk/doc/local-authority/00DA,Leeds City Council,City Development,Recreation,Supplies and Services,Other Hired And Contracted Services,265,18/11/2011,1112-00071,450.00,R,Acsca
http://statistics.data.gov.uk/doc/local-authority/00DA,Leeds City Council,City Development,Recreation,Supplies and Services,Other Hired And Contracted Services,265,24/11/2011,1112-00072,3450.00,R,Acsca
http://statistics.data.gov.uk/doc/local-authority/00DA,Leeds City Council,Childrens Services,Safeguarding Targeted & Specialist,Third Party Payments,Independent Fostering Agencies,509,03/11/2011,1112-00073,4650.00,R,Action For Children
http://statistics.data.gov.uk/doc/local-authority/00DA,Leeds City Council,Childrens Services,Safeguarding Targeted & Specialist,Third Party Payments,Independent Fostering Agencies,509,03/11/2011,1112-00074,4774.00,R,Action For Children
http://statistics.data.gov.uk/doc/local-authority/00DA,Leeds City Council,Childrens Services,Safeguarding Targeted & Specialist,Third Party Payments,Independent Fostering Agencies,509,03/11/2011,1112-00075,5371.68,R,Action For Children
http://statistics.data.gov.uk/doc/local-authority/00DA,Leeds City Council,Childrens Services,Safeguarding Targeted & Specialist,Third Party Payments,Adoptions - Allowances,560,11/11/2011,1112-00076,477.81,R,Action For Children
http://statistics.data.gov.uk/doc/local-authority/00DA,Leeds City Council,Childrens Services,Safeguarding Targeted & Specialist,Third Party Payments,Adoptions - Allowances,560,18/11/2011,1112-00077,825.00,R,Action For Children
http://statistics.data.gov.uk/doc/local-authority/00DA,Leeds City Council,Childrens Services,Safeguarding Targeted & Specialist,Third Party Payments,Adoptions - Allowances,560,23/11/2011,1112-00078,610.95,R,Action For Children
http://statistics.data.gov.uk/doc/local-authority/00DA,Leeds City Council,Childrens Services,Safeguarding Targeted & Specialist,Third Party Payments,Adoptions - Allowances,560,23/11/2011,1112-00079,644.00,R,Action For Children
http://statistics.data.gov.uk/doc/local-authority/00DA,Leeds City Council,Childrens Services,Safeguarding Targeted & Specialist,Third Party Payments,Adoptions - Allowances,560,24/11/2011,1112-00080,825.00,R,Action For Children
http://statistics.data.gov.uk/doc/local-authority/00DA,Leeds City Council,Childrens Services,Safeguarding Targeted & Specialist,Third Party Payments,Adoptions - Allowances,560,25/11/2011,1112-00081,644.00,R,Action For Children
http://statistics.data.gov.uk/doc/local-authority/00DA,Leeds City Council,Childrens Services,Safeguarding Targeted & Specialist,Third Party Payments,Rent,552,11/11/2011,1112-00082,1025.52,R,Action Housing & Support Limited
http://statistics.data.gov.uk/doc/local-authority/00DA,Leeds City Council,Childrens Services,Learning Skills & Universal,Supplies and Services,Clothing & Uniforms,241,29/11/2011,1112-00083,595.00,R,Activ8 Sporting Solutions Ltd
http://statistics.data.gov.uk/doc/local-authority/00DA,Leeds City Council,Insurance,Insurance,Supplies and Services,Other Hired And Contracted Services,265,18/11/2011,1112-00084,498.80,R,Acumension
http://statistics.data.gov.uk/doc/local-authority/00DA,Leeds City Council,City Development,Recreation,Supplies and Services,Printing,215,07/11/2011,1112-00085,645.00,R,Ad Golf Management Ltd
http://statistics.data.gov.uk/doc/local-authority/00DA,Leeds City Council,City Development,Recreation,Supplies and Services,Printing,215,07/11/2011,1112-00086,645.00,R,Ad Golf Management Ltd
http://statistics.data.gov.uk/doc/local-authority/00DA,Leeds City Council,City Development,Recreation,Supplies and Services,Bought In Professional Services,277,09/11/2011,1112-00087,6566.79,R,Ad Golf Management Ltd
http://statistics.data.gov.uk/doc/local-authority/00DA,Leeds City Council,Central & Corporate Functions,Support And Facilities Trading Services,Supplies and Services,Other Hired And Contracted Services,265,17/11/2011,1112-00088,1068.00,R,Ad3 Envelope Printers Limited
http://statistics.data.gov.uk/doc/local-authority/00DA,Leeds City Council,Adult Social Care,Assessment And Care Management,Support Services,Legal Disbursements,411,04/11/2011,1112-00089,775.00,R,Adam Fullwood
http://statistics.data.gov.uk/doc/local-authority/00DA,Leeds City Council,Adult Social Care,Assessment And Care Management,Support Services,Legal Disbursements,411,11/11/2011,1112-00090,2350.00,R,Adam Fullwood
http://statistics.data.gov.uk/doc/local-authority/00DA,Leeds City Council,City Development,Recreation,Supplies and Services,Other Hired And Contracted Services,265,02/11/2011,1112-00091,6496.00,R,Addlestone Moumouris Orme & Sixsmith
http://statistics.data.gov.uk/doc/local-authority/00DA,West - North West,West - North West,Regeneration/Customer Research,Supplies and Services,Grants To Outside Bodies,227,10/11/2011,1112-00092,470.00,R,Adel Crag Community Association
http://statistics.data.gov.uk/doc/local-authority/00DA,Leeds City Council,Childrens Services,Safeguarding Targeted & Specialist,Third Party Payments,Adoptions - Allowances,560,23/11/2011,1112-00093,427.00,R,Adoption Matters Northwest
http://statistics.data.gov.uk/doc/local-authority/00DA,Leeds City Council,Childrens Services,Safeguarding Targeted & Specialist,Third Party Payments,Adoptions - Allowances,560,17/11/2011,1112-00094,922.50,R,Adoption Uk
http://statistics.data.gov.uk/doc/local-authority/00DA,Leeds City Council,Central & Corporate Functions,Support And Facilities General Fund,Premises,Security,162,12/10/2011,1112-00095,972.08,R,ADT Belfast
http://statistics.data.gov.uk/doc/local-authority/00DA,Leeds City Council,Adult Social Care,Services For Adults Under 65 Learn/Dis,Supplies and Services,Security Services(Non Infrastructure),262,03/11/2011,1112-00096,610.90,R,Adt Fire And Security
http://statistics.data.gov.uk/doc/local-authority/00DA,Leeds City Council,City Development,Asset Management Services,Premises,Removal Of Workplace Waste,126,08/11/2011,1112-00097,-696.52,R,Adt Fire And Security
http://statistics.data.gov.uk/doc/local-authority/00DA,Leeds City Council,City Development,Asset Management Services,Premises,Removal Of Workplace Waste,126,08/11/2011,1112-00098,696.52,R,Adt Fire And Security
http://statistics.data.gov.uk/doc/local-authority/00DA,Leeds City Council,Environment & Neighbourhoods,Community Safety,Premises,Premises Security Services,162,18/11/2011,1112-00099,846.33,R,Adt Fire And Security
http://statistics.data.gov.uk/doc/local-authority/00DA,Leeds City Council,Childrens Services,Safeguarding Targeted & Specialist,Support Services,Legal Disbursements,411,24/11/2011,1112-00100,2400.00,R,Advanced Child Care Assessments Ltd
http://statistics.data.gov.uk/doc/local-authority/00DA,Leeds City Council as Accountable Body,Jcs For People With Learning Disabilitie,Jcs For People With Learning Disabilitie,Third Party Payments,Residential,580,23/11/2011,1112-00101,17892.96,R,Advitam Ltd
http://statistics.data.gov.uk/doc/local-authority/00DA,Leeds City Council,Adult Social Care,Services For Adults Under 65 Mental/Dis,Third Party Payments,Payments To Voluntary Organisations,561,02/11/2011,1112-00102,23156.00,R,Advocacy For Mental Health And Dementia
http://statistics.data.gov.uk/doc/local-authority/00DA,Leeds City Council as Accountable Body,Jcs For People With Learning Disabilitie,Jcs For People With Learning Disabilitie,Third Party Payments,Day Centre,564,02/11/2011,1112-00103,663.60,R,Affinity Trust
http://statistics.data.gov.uk/doc/local-authority/00DA,Leeds City Council as Accountable Body,Jcs For People With Learning Disabilitie,Jcs For People With Learning Disabilitie,Third Party Payments,Day Centre,564,02/11/2011,1112-00104,670.80,R,Affinity Trust
http://statistics.data.gov.uk/doc/local-authority/00DA,Leeds City Council as Accountable Body,Jcs For People With Learning Disabilitie,Jcs For People With Learning Disabilitie,Third Party Payments,Home Care,568,02/11/2011,1112-00105,2145.28,R,Affinity Trust
http://statistics.data.gov.uk/doc/local-authority/00DA,Leeds City Council as Accountable Body,Jcs For People With Learning Disabilitie,Jcs For People With Learning Disabilitie,Third Party Payments,Home Care,568,02/11/2011,1112-00106,4040.00,R,Affinity Trust
http://statistics.data.gov.uk/doc/local-authority/00DA,Leeds City Council as Accountable Body,Jcs For People With Learning Disabilitie,Jcs For People With Learning Disabilitie,Third Party Payments,Home Care,568,02/11/2011,1112-00107,5521.60,R,Affinity Trust
http://statistics.data.gov.uk/doc/local-authority/00DA,Leeds City Council as Accountable Body,Jcs For People With Learning Disabilitie,Jcs For People With Learning Disabilitie,Third Party Payments,Home Care,568,09/11/2011,1112-00108,4822.64,R,Affinity Trust
http://statistics.data.gov.uk/doc/local-authority/00DA,Leeds City Council,Adult Social Care,Services For Adults Under 65 Mental/Dis,Third Party Payments,Home Care,568,10/11/2011,1112-00109,925.65,R,Affinity Trust
http://statistics.data.gov.uk/doc/local-authority/00DA,Leeds City Council,Adult Social Care,Services For Older People - 65 And Over,Third Party Payments,Residential,580,10/11/2011,1112-00110,504.60,R,Affinity Trust
http://statistics.data.gov.uk/doc/local-authority/00DA,Leeds City Council,Adult Social Care,Services For Older People Under 65 P/Dis,Third Party Payments,Home Care,568,10/11/2011,1112-00111,972.30,R,Affinity Trust
http://statistics.data.gov.uk/doc/local-authority/00DA,Leeds City Council,Adult Social Care,Services For Older People Under 65 P/Dis,Third Party Payments,Home Care,568,10/11/2011,1112-00112,1104.39,R,Affinity Trust
http://statistics.data.gov.uk/doc/local-authority/00DA,Leeds City Council,Adult Social Care,Services For Older People Under 65 P/Dis,Third Party Payments,Home Care,568,10/11/2011,1112-00113,1482.35,R,Affinity Trust
http://statistics.data.gov.uk/doc/local-authority/00DA,Leeds City Council,Adult Social Care,Services For Older People Under 65 P/Dis,Third Party Payments,Home Care,568,10/11/2011,1112-00114,2181.20,R,Affinity Trust
http://statistics.data.gov.uk/doc/local-authority/00DA,Leeds City Council as Accountable Body,Jcs For People With Learning Disabilitie,Jcs For People With Learning Disabilitie,Third Party Payments,Day Centre,564,10/11/2011,1112-00115,570.80,R,Affinity Trust
http://statistics.data.gov.uk/doc/local-authority/00DA,Leeds City Council as Accountable Body,Jcs For People With Learning Disabilitie,Jcs For People With Learning Disabilitie,Third Party Payments,Day Centre,564,10/11/2011,1112-00116,586.60,R,Affinity Trust
http://statistics.data.gov.uk/doc/local-authority/00DA,Leeds City Council as Accountable Body,Jcs For People With Learning Disabilitie,Jcs For People With Learning Disabilitie,Third Party Payments,Day Centre,564,10/11/2011,1112-00117,790.02,R,Affinity Trust
http://statistics.data.gov.uk/doc/local-authority/00DA,Leeds City Council as Accountable Body,Jcs For People With Learning Disabilitie,Jcs For People With Learning Disabilitie,Third Party Payments,Day Centre,564,10/11/2011,1112-00118,893.48,R,Affinity Trust
http://statistics.data.gov.uk/doc/local-authority/00DA,Leeds City Council as Accountable Body,Jcs For People With Learning Disabilitie,Jcs For People With Learning Disabilitie,Third Party Payments,Day Centre,564,10/11/2011,1112-00119,1782.00,R,Affinity Trust
http://statistics.data.gov.uk/doc/local-authority/00DA,Leeds City Council as Accountable Body,Jcs For People With Learning Disabilitie,Jcs For People With Learning Disabilitie,Third Party Payments,Day Centre,564,10/11/2011,1112-00120,2737.50,R,Affinity Trust
http://statistics.data.gov.uk/doc/local-authority/00DA,Leeds City Council as Accountable Body,Jcs For People With Learning Disabilitie,Jcs For People With Learning Disabilitie,Third Party Payments,Day Centre,564,10/11/2011,1112-00121,2815.68,R,Affinity Trust
http://statistics.data.gov.uk/doc/local-authority/00DA,Leeds City Council as Accountable Body,Jcs For People With Learning Disabilitie,Jcs For People With Learning Disabilitie,Third Party Payments,Day Centre,564,10/11/2011,1112-00122,3733.92,R,Affinity Trust
http://statistics.data.gov.uk/doc/local-authority/00DA,Leeds City Council as Accountable Body,Jcs For People With Learning Disabilitie,Jcs For People With Learning Disabilitie,Third Party Payments,Home Care,568,10/11/2011,1112-00123,495.00,R,Affinity Trust
http://statistics.data.gov.uk/doc/local-authority/00DA,Leeds City Council as Accountable Body,Jcs For People With Learning Disabilitie,Jcs For People With Learning Disabilitie,Third Party Payments,Home Care,568,10/11/2011,1112-00124,510.80,R,Affinity Trust
http://statistics.data.gov.uk/doc/local-authority/00DA,Leeds City Council as Accountable Body,Jcs For People With Learning Disabilitie,Jcs For People With Learning Disabilitie,Third Party Payments,Home Care,568,10/11/2011,1112-00125,538.24,R,Affinity Trust
http://statistics.data.gov.uk/doc/local-authority/00DA,Leeds City Council as Accountable Body,Jcs For People With Learning Disabilitie,Jcs For People With Learning Disabilitie,Third Party Payments,Home Care,568,10/11/2011,1112-00126,564.30,R,Affinity Trust
http://statistics.data.gov.uk/doc/local-authority/00DA,Leeds City Council as Accountable Body,Jcs For People With Learning Disabilitie,Jcs For People With Learning Disabilitie,Third Party Payments,Home Care,568,10/11/2011,1112-00127,841.00,R,Affinity Trust
http://statistics.data.gov.uk/doc/local-authority/00DA,Leeds City Council as Accountable Body,Jcs For People With Learning Disabilitie,Jcs For People With Learning Disabilitie,Third Party Payments,Home Care,568,10/11/2011,1112-00128,1020.00,R,Affinity Trust
http://statistics.data.gov.uk/doc/local-authority/00DA,Leeds City Council as Accountable Body,Jcs For People With Learning Disabilitie,Jcs For People With Learning Disabilitie,Third Party Payments,Home Care,568,10/11/2011,1112-00129,1156.44,R,Affinity Trust
http://statistics.data.gov.uk/doc/local-authority/00DA,Leeds City Council as Accountable Body,Jcs For People With Learning Disabilitie,Jcs For People With Learning Disabilitie,Third Party Payments,Home Care,568,10/11/2011,1112-00130,1176.70,R,Affinity Trust
http://statistics.data.gov.uk/doc/local-authority/00DA,Leeds City Council as Accountable Body,Jcs For People With Learning Disabilitie,Jcs For People With Learning Disabilitie,Third Party Payments,Home Care,568,10/11/2011,1112-00131,1508.40,R,Affinity Trust
http://statistics.data.gov.uk/doc/local-authority/00DA,Leeds City Council as Accountable Body,Jcs For People With Learning Disabilitie,Jcs For People With Learning Disabilitie,Third Party Payments,Home Care,568,10/11/2011,1112-00132,1607.80,R,Affinity Trust
http://statistics.data.gov.uk/doc/local-authority/00DA,Leeds City Council as Accountable Body,Jcs For People With Learning Disabilitie,Jcs For People With Learning Disabilitie,Third Party Payments,Home Care,568,10/11/2011,1112-00133,5294.24,R,Affinity Trust
http://statistics.data.gov.uk/doc/local-authority/00DA,Leeds City Council as Accountable Body,Jcs For People With Learning Disabilitie,Jcs For People With Learning Disabilitie,Third Party Payments,Residential,580,10/11/2011,1112-00134,804.48,R,Affinity Trust
http://statistics.data.gov.uk/doc/local-authority/00DA,Leeds City Council as Accountable Body,Jcs For People With Learning Disabilitie,Jcs For People With Learning Disabilitie,Third Party Payments,Residential,580,10/11/2011,1112-00135,1934.26,R,Affinity Trust
http://statistics.data.gov.uk/doc/local-authority/00DA,Leeds City Council as Accountable Body,Jcs For People With Learning Disabilitie,Jcs For People With Learning Disabilitie,Third Party Payments,Residential,580,10/11/2011,1112-00136,4094.26,R,Affinity Trust
http://statistics.data.gov.uk/doc/local-authority/00DA,Leeds City Council as Accountable Body,Jcs For People With Learning Disabilitie,Jcs For People With Learning Disabilitie,Third Party Payments,Home Care,568,22/11/2011,1112-00137,1009.20,R,Affinity Trust
http://statistics.data.gov.uk/doc/local-authority/00DA,Leeds City Council,Adult Social Care,Services For Older People - 65 And Over,Third Party Payments,Residential,580,24/11/2011,1112-00138,658.35,R,Affinity Trust
http://statistics.data.gov.uk/doc/local-authority/00DA,Leeds City Council as Accountable Body,Jcs For People With Learning Disabilitie,Jcs For People With Learning Disabilitie,Third Party Payments,Day Centre,564,25/11/2011,1112-00139,26239.11,R,Affinity Trust
http://statistics.data.gov.uk/doc/local-authority/00DA,Leeds City Council as Accountable Body,Jcs For People With Learning Disabilitie,Jcs For People With Learning Disabilitie,Third Party Payments,Home Care,568,25/11/2011,1112-00140,3848.08,R,Affinity Trust
http://statistics.data.gov.uk/doc/local-authority/00DA,Leeds City Council as Accountable Body,Jcs For People With Learning Disabilitie,Jcs For People With Learning Disabilitie,Third Party Payments,Home Care,568,25/11/2011,1112-00141,3848.08,R,Affinity Trust
http://statistics.data.gov.uk/doc/local-authority/00DA,Leeds City Council as Accountable Body,Jcs For People With Learning Disabilitie,Jcs For People With Learning Disabilitie,Third Party Payments,Home Care,568,25/11/2011,1112-00142,6193.32,R,Affinity Trust
http://statistics.data.gov.uk/doc/local-authority/00DA,Leeds City Council as Accountable Body,Jcs For People With Learning Disabilitie,Jcs For People With Learning Disabilitie,Third Party Payments,Home Care,568,25/11/2011,1112-00143,38368.98,R,Affinity Trust
http://statistics.data.gov.uk/doc/local-authority/00DA,Leeds City Council as Accountable Body,Jcs For People With Learning Disabilitie,Jcs For People With Learning Disabilitie,Third Party Payments,Home Care,568,25/11/2011,1112-00144,39453.18,R,Affinity Trust
http://statistics.data.gov.uk/doc/local-authority/00DA,Leeds City Council as Accountable Body,Jcs For People With Learning Disabilitie,Jcs For People With Learning Disabilitie,Third Party Payments,Residential,580,25/11/2011,1112-00145,10397.89,R,Affinity Trust
http://statistics.data.gov.uk/doc/local-authority/00DA,Leeds City Council as Accountable Body,Jcs For People With Learning Disabilitie,Jcs For People With Learning Disabilitie,Third Party Payments,Residential,580,25/11/2011,1112-00146,55588.48,R,Affinity Trust
http://statistics.data.gov.uk/doc/local-authority/00DA,Leeds City Council as Accountable Body,Jcs For People With Learning Disabilitie,Jcs For People With Learning Disabilitie,Third Party Payments,Residential,580,25/11/2011,1112-00147,65188.80,R,Affinity Trust
http://statistics.data.gov.uk/doc/local-authority/00DA,Leeds City Council as Accountable Body,Jcs For People With Learning Disabilitie,Jcs For People With Learning Disabilitie,Third Party Payments,Residential,580,25/11/2011,1112-00148,81751.30,R,Affinity Trust
http://statistics.data.gov.uk/doc/local-authority/00DA,Leeds City Council as Accountable Body,Jcs For People With Learning Disabilitie,Jcs For People With Learning Disabilitie,Third Party Payments,Residential,580,25/11/2011,1112-00149,82734.35,R,Affinity Trust
http://statistics.data.gov.uk/doc/local-authority/00DA,Leeds City Council as Accountable Body,Jcs For People With Learning Disabilitie,Jcs For People With Learning Disabilitie,Third Party Payments,Residential,580,29/11/2011,1112-00150,1599.98,R,Affinity Trust
http://statistics.data.gov.uk/doc/local-authority/00DA,Leeds City Council as Accountable Body,Jcs For People With Learning Disabilitie,Jcs For People With Learning Disabilitie,Third Party Payments,Home Care,568,01/11/2011,1112-00151,644.88,R,Affinity Trust North Divisional Office
http://statistics.data.gov.uk/doc/local-authority/00DA,Leeds City Council as Accountable Body,Jcs For People With Learning Disabilitie,Jcs For People With Learning Disabilitie,Third Party Payments,Home Care,568,10/11/2011,1112-00152,504.60,R,Affinity Trust North Divisional Office
http://statistics.data.gov.uk/doc/local-authority/00DA,Leeds City Council as Accountable Body,Jcs For People With Learning Disabilitie,Jcs For People With Learning Disabilitie,Third Party Payments,Home Care,568,10/11/2011,1112-00153,806.10,R,Affinity Trust North Divisional Office
http://statistics.data.gov.uk/doc/local-authority/00DA,Leeds City Council as Accountable Body,Jcs For People With Learning Disabilitie,Jcs For People With Learning Disabilitie,Third Party Payments,Residential,580,10/11/2011,1112-00154,4020.12,R,Affinity Trust North Divisional Office
http://statistics.data.gov.uk/doc/local-authority/00DA,Leeds City Council as Accountable Body,Jcs For People With Learning Disabilitie,Jcs For People With Learning Disabilitie,Third Party Payments,Day Centre,564,16/11/2011,1112-00155,2338.56,R,Affinity Trust North Divisional Office
http://statistics.data.gov.uk/doc/local-authority/00DA,Leeds City Council as Accountable Body,Jcs For People With Learning Disabilitie,Jcs For People With Learning Disabilitie,Third Party Payments,Home Care,568,16/11/2011,1112-00156,2346.40,R,Affinity Trust North Divisional Office
http://statistics.data.gov.uk/doc/local-authority/00DA,Leeds City Council as Accountable Body,Jcs For People With Learning Disabilitie,Jcs For People With Learning Disabilitie,Third Party Payments,Day Centre,564,25/11/2011,1112-00157,23819.61,R,Affinity Trust North Divisional Office
http://statistics.data.gov.uk/doc/local-authority/00DA,Leeds City Council as Accountable Body,Jcs For People With Learning Disabilitie,Jcs For People With Learning Disabilitie,Third Party Payments,Residential,580,25/11/2011,1112-00158,1121.40,R,Affinity Trust North Divisional Office
http://statistics.data.gov.uk/doc/local-authority/00DA,Leeds City Council as Accountable Body,Jcs For People With Learning Disabilitie,Jcs For People With Learning Disabilitie,Third Party Payments,Residential,580,25/11/2011,1112-00159,12409.02,R,Affinity Trust North Divisional Office
http://statistics.data.gov.uk/doc/local-authority/00DA,Leeds City Council,Central & Corporate Functions,Commercial Services Trading Services,Supplies and Services,Other Hired And Contracted Services,265,04/11/2011,1112-00160,4500.00,R,Age Uk Leeds
http://statistics.data.gov.uk/doc/local-authority/00DA,Leeds City Council,Environment & Neighbourhoods,Strategy & Commissioning,Third Party Payments,Supporting Ppl - Block Gross Chargeable,514,07/11/2011,1112-00161,3957.68,R,Age Uk Leeds
http://statistics.data.gov.uk/doc/local-authority/00DA,Leeds City Council,Environment & Neighbourhoods,Learning,Supplies and Services,College Contracts,276,09/11/2011,1112-00162,12150.00,R,Age Uk Leeds
http://statistics.data.gov.uk/doc/local-authority/00DA,Leeds City Council,Environment & Neighbourhoods,Learning,Supplies and Services,College Contracts,276,09/11/2011,1112-00163,13972.50,R,Age Uk Leeds
http://statistics.data.gov.uk/doc/local-authority/00DA,Leeds City Council,Insurance,Insurance,Supplies and Services,Insurance Claims,248,10/11/2011,1112-00164,1533.13,R,Ageas
http://statistics.data.gov.uk/doc/local-authority/00DA,Leeds City Council,City Development,Highways,Capital,Construction,3,01/11/2011,1112-00165,3520.00,C,Aggregate Industries Uk Ltd
http://statistics.data.gov.uk/doc/local-authority/00DA,Leeds City Council,City Development,Highways,Capital,Construction,3,07/11/2011,1112-00166,142500.00,C,Aggregate Industries Uk Ltd
http://statistics.data.gov.uk/doc/local-authority/00DA,Leeds City Council,City Development,Highways,Capital,Construction,3,30/11/2011,1112-00167,2749.00,C,Aggregate Industries Uk Ltd
http://statistics.data.gov.uk/doc/local-authority/00DA,Leeds City Council,Adult Social Care,Services For Older People Under 65 P/Dis,Third Party Payments,Residential,580,23/11/2011,1112-00168,5652.04,R,Agricola House
http://statistics.data.gov.uk/doc/local-authority/00DA,Leeds City Council as Accountable Body,Leeds Community Equip Store Pooled Budgt,Leeds Community Equip Store Pooled Budgt,Supplies and Services,Other Equipment,203,01/11/2011,1112-00169,1557.00,R,Aidapt Bathrooms Ltd
http://statistics.data.gov.uk/doc/local-authority/00DA,Leeds City Council as Accountable Body,Leeds Community Equip Store Pooled Budgt,Leeds Community Equip Store Pooled Budgt,Supplies and Services,Other Equipment,203,01/11/2011,1112-00170,2200.00,R,Aidapt Bathrooms Ltd
http://statistics.data.gov.uk/doc/local-authority/00DA,Leeds City Council as Accountable Body,Leeds Community Equip Store Pooled Budgt,Leeds Community Equip Store Pooled Budgt,Supplies and Services,Other Equipment,203,04/11/2011,1112-00171,2002.00,R,Aidapt Bathrooms Ltd
http://statistics.data.gov.uk/doc/local-authority/00DA,Leeds City Council as Accountable Body,Leeds Community Equip Store Pooled Budgt,Leeds Community Equip Store Pooled Budgt,Supplies and Services,Other Equipment,203,11/11/2011,1112-00172,490.50,R,Aidapt Bathrooms Ltd
http://statistics.data.gov.uk/doc/local-authority/00DA,Leeds City Council as Accountable Body,Leeds Community Equip Store Pooled Budgt,Leeds Community Equip Store Pooled Budgt,Supplies and Services,Other Equipment,203,11/11/2011,1112-00173,1720.00,R,Aidapt Bathrooms Ltd
http://statistics.data.gov.uk/doc/local-authority/00DA,Leeds City Council as Accountable Body,Leeds Community Equip Store Pooled Budgt,Leeds Community Equip Store Pooled Budgt,Supplies and Services,Other Equipment,203,11/11/2011,1112-00174,1833.00,R,Aidapt Bathrooms Ltd
http://statistics.data.gov.uk/doc/local-authority/00DA,Leeds City Council as Accountable Body,Leeds Community Equip Store Pooled Budgt,Leeds Community Equip Store Pooled Budgt,Supplies and Services,Other Equipment,203,16/11/2011,1112-00175,688.80,R,Aidapt Bathrooms Ltd
http://statistics.data.gov.uk/doc/local-authority/00DA,Leeds City Council as Accountable Body,Leeds Community Equip Store Pooled Budgt,Leeds Community Equip Store Pooled Budgt,Supplies and Services,Other Equipment,203,18/11/2011,1112-00176,490.50,R,Aidapt Bathrooms Ltd
http://statistics.data.gov.uk/doc/local-authority/00DA,Leeds City Council as Accountable Body,Leeds Community Equip Store Pooled Budgt,Leeds Community Equip Store Pooled Budgt,Supplies and Services,Other Equipment,203,23/11/2011,1112-00177,1341.00,R,Aidapt Bathrooms Ltd
http://statistics.data.gov.uk/doc/local-authority/00DA,Leeds City Council,City Development,Economic Development,Supplies and Services,City Centre Enhancement,295,02/11/2011,1112-00178,1500.00,R,Aig Edenspiekermann Ltd
http://statistics.data.gov.uk/doc/local-authority/00DA,Leeds City Council,City Development,Economic Development,Capital,Other Costs,7,24/11/2011,1112-00179,1579.17,C,Aig Edenspiekermann Ltd
http://statistics.data.gov.uk/doc/local-authority/00DA,Leeds City Council,Strategic Accounts,Miscellaneous,Third Party Payments,Land Drainage Levies,665,01/11/2011,1112-00180,3239.56,R,Ainsty (2008) Internal Drainage Board
http://statistics.data.gov.uk/doc/local-authority/00DA,Leeds City Council,City Development,Highways,Premises,Grounds Maintenance Work,111,07/11/2011,1112-00181,2578.00,R,Ainsty Timber Marketing Ltd
http://statistics.data.gov.uk/doc/local-authority/00DA,Leeds City Council,City Development,Highways,Premises,Grounds Maintenance Work,111,11/11/2011,1112-00182,25268.66,R,Ainsty Timber Marketing Ltd
http://statistics.data.gov.uk/doc/local-authority/00DA,Leeds City Council,Environment & Neighbourhoods,Environmental Health,Supplies and Services,Operational Furniture And Equipment,203,11/11/2011,1112-00183,550.77,R,Air Liquide Uk
http://statistics.data.gov.uk/doc/local-authority/00DA,Leeds City Council,Environment & Neighbourhoods,Environmental Health,Supplies and Services,Operational Furniture And Equipment,203,16/11/2011,1112-00184,442.65,R,Air Liquide Uk
http://statistics.data.gov.uk/doc/local-authority/00DA,Leeds City Council,Central & Corporate Functions,Commercial Services Trading Services,Supplies and Services,Other Hired And Contracted Services,265,14/11/2011,1112-00185,974.28,R,Aire Body Care
http://statistics.data.gov.uk/doc/local-authority/00DA,Leeds City Council as Accountable Body,Jcs For People With Learning Disabilitie,Jcs For People With Learning Disabilitie,Third Party Payments,Residential,580,23/11/2011,1112-00186,7027.24,R,Aire House
http://statistics.data.gov.uk/doc/local-authority/00DA,Leeds City Council,Environment & Neighbourhoods,Strategy & Commissioning,Supplies and Services,Non-Recurring Grants,227,02/11/2011,1112-00187,6370.00,R,Aire Valley Homes Leeds
http://statistics.data.gov.uk/doc/local-authority/00DA,East - North East,East - North East,Business Improvement,Premises,Other,114,17/11/2011,1112-00188,1695.00,R,Aire Valley Landscaping Services Ltd
http://statistics.data.gov.uk/doc/local-authority/00DA,West - North West,West - North West,Property And Maintenance,Premises,H.R.A. - Special Maintenance,106,18/11/2011,1112-00189,595.00,R,Aire Valley Landscaping Services Ltd
http://statistics.data.gov.uk/doc/local-authority/00DA,East - North East,East - North East,Housing Services,Premises,Grounds Maintenance (Closed Landfill),134,07/11/2011,1112-00190,685.00,R,Aire Valley Tree Services Ltd
http://statistics.data.gov.uk/doc/local-authority/00DA,East - North East,East - North East,Housing Services,Premises,Grounds Maintenance (Closed Landfill),134,10/11/2011,1112-00191,725.00,R,Aire Valley Tree Services Ltd
http://statistics.data.gov.uk/doc/local-authority/00DA,East - North East,East - North East,Housing Services,Premises,Horticulture Non Defined Work,112,17/11/2011,1112-00192,650.00,R,Aire Valley Tree Services Ltd
http://statistics.data.gov.uk/doc/local-authority/00DA,Leeds City Council,Adult Social Care,Services For Adults Under 65 Mental/Dis,Third Party Payments,Residential,580,23/11/2011,1112-00193,4673.78,R,Aire View Residential Home
http://statistics.data.gov.uk/doc/local-authority/00DA,Leeds City Council,Adult Social Care,Services For Older People - 65 And Over,Third Party Payments,Residential Care Emi,571,23/11/2011,1112-00194,41105.28,R,Aire View Residential Home
http://statistics.data.gov.uk/doc/local-authority/00DA,Leeds City Council,Adult Social Care,Services For Older People - 65 And Over,Third Party Payments,Residential,580,23/11/2011,1112-00195,5470.10,R,Aire View Residential Home
http://statistics.data.gov.uk/doc/local-authority/00DA,Leeds City Council,Childrens Services,Safeguarding Targeted & Specialist,Supplies and Services,Recurring & Major Grantss Projects,229,21/11/2011,1112-00196,16900.00,R,Aireborough Summer Activities Scheme
http://statistics.data.gov.uk/doc/local-authority/00DA,Leeds City Council,Adult Social Care,Services For Older People - 65 And Over,Third Party Payments,Residential,580,23/11/2011,1112-00197,31619.77,R,Airedale (Goldsborough)
http://statistics.data.gov.uk/doc/local-authority/00DA,Leeds City Council,City Development,Libraries Arts & Heritage,Capital,Construction,3,10/11/2011,1112-00198,5340.04,C,Airedale Mechanical & Electrical Ltd
http://statistics.data.gov.uk/doc/local-authority/00DA,Leeds City Council,Environment & Neighbourhoods,Streetscene Environmental Services,Supplies and Services,Operational Materials,205,11/11/2011,1112-00199,9378.81,R,Airwave Solutions Ltd
http://statistics.data.gov.uk/doc/local-authority/00DA,Leeds City Council,Environment & Neighbourhoods,Community Safety,Supplies and Services,Other Hired And Contracted Services,265,17/11/2011,1112-00200,4585.19,R,Airwave Solutions Ltd
http://statistics.data.gov.uk/doc/local-authority/00DA,Leeds City Council,Environment & Neighbourhoods,Community Safety,Supplies and Services,Other Hired And Contracted Services,265,23/11/2011,1112-00201,682.88,R,Airwave Solutions Ltd
http://statistics.data.gov.uk/doc/local-authority/00DA,Leeds City Council,City Development,Recreation,Supplies and Services,Operational Materials,205,03/11/2011,1112-00202,574.00,R,Aitkens Sportsturf Ltd
http://statistics.data.gov.uk/doc/local-authority/00DA,Leeds City Council,City Development,Recreation,Supplies and Services,Operational Materials,205,17/11/2011,1112-00203,1106.00,R,Aitkens Sportsturf Ltd
http://statistics.data.gov.uk/doc/local-authority/00DA,Leeds City Council,Adult Social Care,Services For Older People - 65 And Over,Third Party Payments,Home Care,568,04/11/2011,1112-00204,3433.32,R,Aj Social Care
http://statistics.data.gov.uk/doc/local-authority/00DA,Leeds City Council,Adult Social Care,Services For Older People - 65 And Over,Third Party Payments,Home Care,568,10/11/2011,1112-00205,11264.89,R,Aj Social Care
http://statistics.data.gov.uk/doc/local-authority/00DA,Leeds City Council,Adult Social Care,Services For Older People Under 65 P/Dis,Third Party Payments,Home Care,568,10/11/2011,1112-00206,1173.50,R,Aj Social Care
http://statistics.data.gov.uk/doc/local-authority/00DA,East - North East,East - North East,Construction Services,Supplies and Services,Other Materials,205,09/11/2011,1112-00207,578.95,R,Ajm Fixings & Power Tools Ltd
http://statistics.data.gov.uk/doc/local-authority/00DA,East - North East,East - North East,Construction Services,Supplies and Services,Other Materials,205,09/11/2011,1112-00208,1095.14,R,Ajm Fixings & Power Tools Ltd
http://statistics.data.gov.uk/doc/local-authority/00DA,East - North East,East - North East,Construction Services,Supplies and Services,Other Materials,205,09/11/2011,1112-00209,1544.90,R,Ajm Fixings & Power Tools Ltd
http://statistics.data.gov.uk/doc/local-authority/00DA,Leeds City Council,Adult Social Care,Social Services Support Services,Employees,Study Books & Equipment,072,24/11/2011,1112-00210,3000.00,R,Akd Training Solutions Ltd
http://statistics.data.gov.uk/doc/local-authority/00DA,Leeds City Council,Environment & Neighbourhoods,Streetscene Environmental Services,Transport,External Hire -Occasional,304,24/11/2011,1112-00211,594.00,R,Alan Thompson Transport
http://statistics.data.gov.uk/doc/local-authority/00DA,Leeds City Council,Environment & Neighbourhoods,Streetscene Environmental Services,Transport,External Hire -Occasional,304,25/11/2011,1112-00212,594.00,R,Alan Thompson Transport
http://statistics.data.gov.uk/doc/local-authority/00DA,Leeds City Council,City Development,Planning & Sustainable Development,Supplies and Services,Other Hired And Contracted Services,265,03/11/2011,1112-00213,567.60,R,Alcontrol Uk Ltd
http://statistics.data.gov.uk/doc/local-authority/00DA,Leeds City Council,City Development,Planning & Sustainable Development,Supplies and Services,Other Hired And Contracted Services,265,03/11/2011,1112-00214,696.00,R,Alcontrol Uk Ltd
http://statistics.data.gov.uk/doc/local-authority/00DA,Leeds City Council,City Development,Planning & Sustainable Development,Supplies and Services,Other Hired And Contracted Services,265,03/11/2011,1112-00215,960.20,R,Alcontrol Uk Ltd
http://statistics.data.gov.uk/doc/local-authority/00DA,Leeds City Council,City Development,Planning & Sustainable Development,Supplies and Services,Other Hired And Contracted Services,265,04/11/2011,1112-00216,548.00,R,Alcontrol Uk Ltd
http://statistics.data.gov.uk/doc/local-authority/00DA,Leeds City Council,City Development,Planning & Sustainable Development,Supplies and Services,Other Hired And Contracted Services,265,04/11/2011,1112-00217,974.40,R,Alcontrol Uk Ltd
http://statistics.data.gov.uk/doc/local-authority/00DA,Leeds City Council,City Development,Planning & Sustainable Development,Supplies and Services,Other Hired And Contracted Services,265,15/11/2011,1112-00218,468.40,R,Alcontrol Uk Ltd
http://statistics.data.gov.uk/doc/local-authority/00DA,Leeds City Council,City Development,Planning & Sustainable Development,Supplies and Services,Other Hired And Contracted Services,265,15/11/2011,1112-00219,849.40,R,Alcontrol Uk Ltd
http://statistics.data.gov.uk/doc/local-authority/00DA,Leeds City Council,City Development,Planning & Sustainable Development,Supplies and Services,Other Hired And Contracted Services,265,15/11/2011,1112-00220,970.00,R,Alcontrol Uk Ltd
http://statistics.data.gov.uk/doc/local-authority/00DA,Leeds City Council,City Development,Planning & Sustainable Development,Supplies and Services,Other Hired And Contracted Services,265,15/11/2011,1112-00221,1102.00,R,Alcontrol Uk Ltd
http://statistics.data.gov.uk/doc/local-authority/00DA,Leeds City Council,City Development,Planning & Sustainable Development,Supplies and Services,Other Hired And Contracted Services,265,15/11/2011,1112-00222,1583.60,R,Alcontrol Uk Ltd
http://statistics.data.gov.uk/doc/local-authority/00DA,Leeds City Council,City Development,Planning & Sustainable Development,Supplies and Services,Other Hired And Contracted Services,265,18/11/2011,1112-00223,417.60,R,Alcontrol Uk Ltd
http://statistics.data.gov.uk/doc/local-authority/00DA,Leeds City Council,City Development,Planning & Sustainable Development,Supplies and Services,Other Hired And Contracted Services,265,18/11/2011,1112-00224,606.80,R,Alcontrol Uk Ltd
http://statistics.data.gov.uk/doc/local-authority/00DA,Leeds City Council,City Development,Planning & Sustainable Development,Supplies and Services,Other Hired And Contracted Services,265,18/11/2011,1112-00225,997.40,R,Alcontrol Uk Ltd
http://statistics.data.gov.uk/doc/local-authority/00DA,Leeds City Council,City Development,Planning & Sustainable Development,Supplies and Services,Other Hired And Contracted Services,265,18/11/2011,1112-00226,1071.00,R,Alcontrol Uk Ltd
http://statistics.data.gov.uk/doc/local-authority/00DA,Leeds City Council,City Development,Planning & Sustainable Development,Supplies and Services,Other Hired And Contracted Services,265,18/11/2011,1112-00227,1145.60,R,Alcontrol Uk Ltd
http://statistics.data.gov.uk/doc/local-authority/00DA,Leeds City Council,City Development,Planning & Sustainable Development,Supplies and Services,Other Hired And Contracted Services,265,18/11/2011,1112-00228,1182.20,R,Alcontrol Uk Ltd
http://statistics.data.gov.uk/doc/local-authority/00DA,Leeds City Council,City Development,Planning & Sustainable Development,Supplies and Services,Other Hired And Contracted Services,265,18/11/2011,1112-00229,1310.20,R,Alcontrol Uk Ltd
http://statistics.data.gov.uk/doc/local-authority/00DA,Leeds City Council,City Development,Planning & Sustainable Development,Supplies and Services,Other Hired And Contracted Services,265,18/11/2011,1112-00230,1345.20,R,Alcontrol Uk Ltd
http://statistics.data.gov.uk/doc/local-authority/00DA,Leeds City Council,City Development,Planning & Sustainable Development,Supplies and Services,Other Hired And Contracted Services,265,18/11/2011,1112-00231,1759.20,R,Alcontrol Uk Ltd
http://statistics.data.gov.uk/doc/local-authority/00DA,Leeds City Council,City Development,Planning & Sustainable Development,Supplies and Services,Other Hired And Contracted Services,265,18/11/2011,1112-00232,1835.00,R,Alcontrol Uk Ltd
http://statistics.data.gov.uk/doc/local-authority/00DA,Leeds City Council,City Development,Planning & Sustainable Development,Supplies and Services,Other Hired And Contracted Services,265,18/11/2011,1112-00233,1948.80,R,Alcontrol Uk Ltd
http://statistics.data.gov.uk/doc/local-authority/00DA,Leeds City Council,City Development,Planning & Sustainable Development,Supplies and Services,Other Hired And Contracted Services,265,22/11/2011,1112-00234,417.60,R,Alcontrol Uk Ltd
http://statistics.data.gov.uk/doc/local-authority/00DA,Leeds City Council,City Development,Planning & Sustainable Development,Supplies and Services,Other Hired And Contracted Services,265,22/11/2011,1112-00235,428.40,R,Alcontrol Uk Ltd
http://statistics.data.gov.uk/doc/local-authority/00DA,Leeds City Council,City Development,Planning & Sustainable Development,Supplies and Services,Other Hired And Contracted Services,265,22/11/2011,1112-00236,1113.60,R,Alcontrol Uk Ltd
http://statistics.data.gov.uk/doc/local-authority/00DA,Leeds City Council,City Development,Planning & Sustainable Development,Supplies and Services,Other Hired And Contracted Services,265,22/11/2011,1112-00237,1169.00,R,Alcontrol Uk Ltd
http://statistics.data.gov.uk/doc/local-authority/00DA,Leeds City Council,City Development,Planning & Sustainable Development,Supplies and Services,Other Hired And Contracted Services,265,22/11/2011,1112-00238,1257.00,R,Alcontrol Uk Ltd
http://statistics.data.gov.uk/doc/local-authority/00DA,Leeds City Council,Environment & Neighbourhoods,Environmental Health,Supplies and Services,Other Hired And Contracted Services,265,23/11/2011,1112-00239,-678.37,R,Alcontrol Uk Ltd
http://statistics.data.gov.uk/doc/local-authority/00DA,Leeds City Council,Environment & Neighbourhoods,Environmental Health,Supplies and Services,Other Hired And Contracted Services,265,23/11/2011,1112-00240,678.37,R,Alcontrol Uk Ltd
http://statistics.data.gov.uk/doc/local-authority/00DA,Leeds City Council,Adult Social Care,Services For Older People - 65 And Over,Third Party Payments,Residential Care Emi,571,23/11/2011,1112-00241,5614.48,R,Alexander Residential Home
http://statistics.data.gov.uk/doc/local-authority/00DA,Leeds City Council,Adult Social Care,Services For Older People - 65 And Over,Third Party Payments,Residential,580,23/11/2011,1112-00242,14861.04,R,Alexander Residential Home
http://statistics.data.gov.uk/doc/local-authority/00DA,Leeds City Council,Adult Social Care,Services For Older People Under 65 P/Dis,Third Party Payments,Residential,580,23/11/2011,1112-00243,-4118.78,R,Alexander Residential Home
http://statistics.data.gov.uk/doc/local-authority/00DA,Leeds City Council as Accountable Body,Jcs For People With Learning Disabilitie,Jcs For People With Learning Disabilitie,Third Party Payments,Residential,580,23/11/2011,1112-00244,1220.72,R,Alexander Residential Home
http://statistics.data.gov.uk/doc/local-authority/00DA,Leeds City Council,Adult Social Care,Services For Older People - 65 And Over,Third Party Payments,Residential Care Emi,571,23/11/2011,1112-00245,1238.40,R,Alexandra Court
http://statistics.data.gov.uk/doc/local-authority/00DA,Leeds City Council,Adult Social Care,Services For Older People - 65 And Over,Third Party Payments,Residential,580,23/11/2011,1112-00246,3753.31,R,Alexandra Court
http://statistics.data.gov.uk/doc/local-authority/00DA,Leeds City Council,Environment & Neighbourhoods,Environmental Action (South),Supplies and Services,Other Hired And Contracted Services,265,18/11/2011,1112-00247,667.00,R,Alfies Boarding Kennels
http://statistics.data.gov.uk/doc/local-authority/00DA,Leeds City Council,Central & Corporate Functions,Commercial Services Trading Services,Supplies and Services,Other Hired And Contracted Services,265,16/11/2011,1112-00248,2000.00,R,Alfred Bagnall & Sons (Leeds) Ltd
http://statistics.data.gov.uk/doc/local-authority/00DA,Leeds City Council,City Development,Asset Management Services,Premises,Maintenance Of Buildings,101,16/11/2011,1112-00249,731.80,R,Alfred Bagnall & Sons (Leeds) Ltd
http://statistics.data.gov.uk/doc/local-authority/00DA,Leeds City Council,City Development,Libraries Arts & Heritage,Supplies and Services,Bought In Professional Services,277,30/11/2011,1112-00250,1400.00,R,Alison Glew
http://statistics.data.gov.uk/doc/local-authority/00DA,Leeds City Council,Adult Social Care,Services For Older People - 65 And Over,Third Party Payments,Residential,580,23/11/2011,1112-00251,1103.16,R,Allendale Residential Home
http://statistics.data.gov.uk/doc/local-authority/00DA,Leeds City Council,Central & Corporate Functions,Revenues,Supplies and Services,Bank Charges,263,03/11/2011,1112-00252,1097.26,R,Alliance & Leicester Commercial Bank
http://statistics.data.gov.uk/doc/local-authority/00DA,Leeds City Council as Accountable Body,Jcs For People With Learning Disabilitie,Jcs For People With Learning Disabilitie,Third Party Payments,Home Care,568,04/11/2011,1112-00253,462.50,R,Allied Healthcare Group Ltd
http://statistics.data.gov.uk/doc/local-authority/00DA,Leeds City Council as Accountable Body,Jcs For People With Learning Disabilitie,Jcs For People With Learning Disabilitie,Third Party Payments,Home Care,568,04/11/2011,1112-00254,535.50,R,Allied Healthcare Group Ltd
http://statistics.data.gov.uk/doc/local-authority/00DA,Leeds City Council as Accountable Body,Jcs For People With Learning Disabilitie,Jcs For People With Learning Disabilitie,Third Party Payments,Home Care,568,04/11/2011,1112-00255,1266.33,R,Allied Healthcare Group Ltd
http://statistics.data.gov.uk/doc/local-authority/00DA,Leeds City Council as Accountable Body,Jcs For People With Learning Disabilitie,Jcs For People With Learning Disabilitie,Third Party Payments,Home Care,568,04/11/2011,1112-00256,1570.82,R,Allied Healthcare Group Ltd
http://statistics.data.gov.uk/doc/local-authority/00DA,Leeds City Council,Adult Social Care,Services For Older People - 65 And Over,Third Party Payments,Home Care,568,11/11/2011,1112-00257,423.30,R,Allied Healthcare Group Ltd
http://statistics.data.gov.uk/doc/local-authority/00DA,Leeds City Council,Adult Social Care,Services For Older People - 65 And Over,Third Party Payments,Home Care,568,11/11/2011,1112-00258,530.40,R,Allied Healthcare Group Ltd
http://statistics.data.gov.uk/doc/local-authority/00DA,Leeds City Council,Adult Social Care,Services For Older People - 65 And Over,Third Party Payments,Home Care,568,11/11/2011,1112-00259,9868.49,R,Allied Healthcare Group Ltd
http://statistics.data.gov.uk/doc/local-authority/00DA,Leeds City Council,Adult Social Care,Services For Older People - 65 And Over,Third Party Payments,Home Care,568,11/11/2011,1112-00260,11661.83,R,Allied Healthcare Group Ltd
http://statistics.data.gov.uk/doc/local-authority/00DA,Leeds City Council,Adult Social Care,Services For Older People - 65 And Over,Third Party Payments,Home Care,568,11/11/2011,1112-00261,14324.54,R,Allied Healthcare Group Ltd
http://statistics.data.gov.uk/doc/local-authority/00DA,Leeds City Council,Adult Social Care,Services For Older People - 65 And Over,Third Party Payments,Home Care,568,11/11/2011,1112-00262,16381.26,R,Allied Healthcare Group Ltd
http://statistics.data.gov.uk/doc/local-authority/00DA,Leeds City Council,Adult Social Care,Services For Older People - 65 And Over,Third Party Payments,Home Care,568,11/11/2011,1112-00263,23826.38,R,Allied Healthcare Group Ltd
http://statistics.data.gov.uk/doc/local-authority/00DA,Leeds City Council,Adult Social Care,Services For Older People Under 65 P/Dis,Third Party Payments,Home Care,568,11/11/2011,1112-00264,428.40,R,Allied Healthcare Group Ltd
http://statistics.data.gov.uk/doc/local-authority/00DA,Leeds City Council,Adult Social Care,Services For Older People Under 65 P/Dis,Third Party Payments,Home Care,568,11/11/2011,1112-00265,464.10,R,Allied Healthcare Group Ltd
http://statistics.data.gov.uk/doc/local-authority/00DA,Leeds City Council,Adult Social Care,Services For Older People Under 65 P/Dis,Third Party Payments,Home Care,568,11/11/2011,1112-00266,846.60,R,Allied Healthcare Group Ltd
http://statistics.data.gov.uk/doc/local-authority/00DA,Leeds City Council,Adult Social Care,Services For Older People Under 65 P/Dis,Third Party Payments,Home Care,568,11/11/2011,1112-00267,1356.60,R,Allied Healthcare Group Ltd
http://statistics.data.gov.uk/doc/local-authority/00DA,Leeds City Council,Adult Social Care,Services For Older People Under 65 P/Dis,Third Party Payments,Home Care,568,11/11/2011,1112-00268,1414.87,R,Allied Healthcare Group Ltd
http://statistics.data.gov.uk/doc/local-authority/00DA,Leeds City Council,Adult Social Care,Services For Older People Under 65 P/Dis,Third Party Payments,Home Care,568,11/11/2011,1112-00269,2801.01,R,Allied Healthcare Group Ltd
http://statistics.data.gov.uk/doc/local-authority/00DA,Leeds City Council,Adult Social Care,Services For Older People Under 65 P/Dis,Third Party Payments,Home Care,568,11/11/2011,1112-00270,4089.80,R,Allied Healthcare Group Ltd
http://statistics.data.gov.uk/doc/local-authority/00DA,Leeds City Council,Adult Social Care,Services For Older People Under 65 P/Dis,Third Party Payments,Home Care,568,11/11/2011,1112-00271,6346.42,R,Allied Healthcare Group Ltd
http://statistics.data.gov.uk/doc/local-authority/00DA,Leeds City Council as Accountable Body,Jcs For People With Learning Disabilitie,Jcs For People With Learning Disabilitie,Third Party Payments,Home Care,568,11/11/2011,1112-00272,1244.92,R,Allied Healthcare Group Ltd
http://statistics.data.gov.uk/doc/local-authority/00DA,Leeds City Council,Adult Social Care,Other Generic Services,Supplies and Services,Operational Furniture And Equipment,203,16/11/2011,1112-00273,4995.00,R,Allocate Software Plc
http://statistics.data.gov.uk/doc/local-authority/00DA,Leeds City Council,Childrens Services,Safeguarding Targeted & Specialist,Support Services,Legal Disbursements,411,23/11/2011,1112-00274,485.00,R,Alpha Biolabs
http://statistics.data.gov.uk/doc/local-authority/00DA,Leeds City Council,Childrens Services,Safeguarding Targeted & Specialist,Support Services,Legal Disbursements,411,30/11/2011,1112-00275,645.00,R,Alpha Biolabs
http://statistics.data.gov.uk/doc/local-authority/00DA,Leeds City Council,Central & Corporate Functions,Commercial Services Trading Services,Supplies and Services,Operational Materials,205,15/11/2011,1112-00276,720.00,R,Alternative Windows (Leeds) Ltd
http://statistics.data.gov.uk/doc/local-authority/00DA,Leeds City Council,Central & Corporate Functions,Commercial Services Trading Services,Supplies and Services,Other Hired And Contracted Services,265,18/11/2011,1112-00277,4094.40,R,Alternative Windows (Leeds) Ltd
http://statistics.data.gov.uk/doc/local-authority/00DA,Leeds City Council,Central & Corporate Functions,Commercial Services Trading Services,Supplies and Services,Operational Materials,205,16/11/2011,1112-00278,464.16,R,Alvin Morris Ltd
http://statistics.data.gov.uk/doc/local-authority/00DA,Leeds City Council,Central & Corporate Functions,Commercial Services Trading Services,Supplies and Services,Operational Materials,205,25/11/2011,1112-00279,520.39,R,Alvin Morris Ltd
http://statistics.data.gov.uk/doc/local-authority/00DA,Leeds City Council,Adult Social Care,Other Generic Services,Third Party Payments,Payments To Voluntary Organisations,561,04/11/2011,1112-00280,37750.00,R,Alzheimers Society
http://statistics.data.gov.uk/doc/local-authority/00DA,Leeds City Council,City Development,Highways,Supplies and Services,Other Hired And Contracted Services,265,30/11/2011,1112-00281,1290.00,R,Amara Landscaping & Maintenance
http://statistics.data.gov.uk/doc/local-authority/00DA,Leeds City Council,Childrens Services,Safeguarding Targeted & Specialist,Third Party Payments,General External Residential Placements,507,11/11/2011,1112-00282,16554.00,R,Amberleigh Care Ltd
http://statistics.data.gov.uk/doc/local-authority/00DA,Leeds City Council,Adult Social Care,Services For Older People - 65 And Over,Third Party Payments,Residential,580,23/11/2011,1112-00283,2171.72,R,Amelia House Care Home
http://statistics.data.gov.uk/doc/local-authority/00DA,Leeds City Council,Adult Social Care,Services For Older People - 65 And Over,Third Party Payments,Payments To Voluntary Organisations,561,11/11/2011,1112-00284,56212.91,R,Anchor
http://statistics.data.gov.uk/doc/local-authority/00DA,Leeds City Council,Adult Social Care,Services For Adults Under 65 Mental/Dis,Third Party Payments,Home Care,568,16/11/2011,1112-00285,2591.53,R,Anchor
http://statistics.data.gov.uk/doc/local-authority/00DA,Leeds City Council,Adult Social Care,Services For Older People - 65 And Over,Third Party Payments,Home Care,568,16/11/2011,1112-00286,1828.79,R,Anchor
http://statistics.data.gov.uk/doc/local-authority/00DA,Leeds City Council,Adult Social Care,Services For Older People - 65 And Over,Third Party Payments,Home Care,568,16/11/2011,1112-00287,5463.29,R,Anchor
http://statistics.data.gov.uk/doc/local-authority/00DA,Leeds City Council,Adult Social Care,Services For Older People - 65 And Over,Third Party Payments,Home Care,568,16/11/2011,1112-00288,7745.61,R,Anchor
http://statistics.data.gov.uk/doc/local-authority/00DA,Leeds City Council,Adult Social Care,Services For Older People - 65 And Over,Third Party Payments,Home Care,568,16/11/2011,1112-00289,8449.02,R,Anchor
http://statistics.data.gov.uk/doc/local-authority/00DA,Leeds City Council,Adult Social Care,Services For Older People - 65 And Over,Third Party Payments,Home Care,568,16/11/2011,1112-00290,9650.47,R,Anchor
http://statistics.data.gov.uk/doc/local-authority/00DA,Leeds City Council,Adult Social Care,Services For Older People - 65 And Over,Third Party Payments,Home Care,568,16/11/2011,1112-00291,17575.47,R,Anchor
http://statistics.data.gov.uk/doc/local-authority/00DA,Leeds City Council,Adult Social Care,Services For Older People - 65 And Over,Third Party Payments,Home Care,568,16/11/2011,1112-00292,25515.17,R,Anchor
http://statistics.data.gov.uk/doc/local-authority/00DA,Leeds City Council,Adult Social Care,Services For Older People Under 65 P/Dis,Third Party Payments,Home Care,568,16/11/2011,1112-00293,538.16,R,Anchor
http://statistics.data.gov.uk/doc/local-authority/00DA,Leeds City Council,Adult Social Care,Services For Older People Under 65 P/Dis,Third Party Payments,Home Care,568,16/11/2011,1112-00294,796.98,R,Anchor
http://statistics.data.gov.uk/doc/local-authority/00DA,Leeds City Council,Adult Social Care,Services For Older People Under 65 P/Dis,Third Party Payments,Home Care,568,16/11/2011,1112-00295,1391.34,R,Anchor
http://statistics.data.gov.uk/doc/local-authority/00DA,Leeds City Council,Adult Social Care,Services For Older People Under 65 P/Dis,Third Party Payments,Home Care,568,16/11/2011,1112-00296,2007.62,R,Anchor
http://statistics.data.gov.uk/doc/local-authority/00DA,Leeds City Council,Adult Social Care,Services For Older People Under 65 P/Dis,Third Party Payments,Home Care,568,16/11/2011,1112-00297,2636.00,R,Anchor
http://statistics.data.gov.uk/doc/local-authority/00DA,Leeds City Council as Accountable Body,Jcs For People With Learning Disabilitie,Jcs For People With Learning Disabilitie,Third Party Payments,Residential,580,03/11/2011,1112-00298,5516.16,R,Anchor Trust
http://statistics.data.gov.uk/doc/local-authority/00DA,Leeds City Council as Accountable Body,Jcs For People With Learning Disabilitie,Jcs For People With Learning Disabilitie,Third Party Payments,Residential,580,04/11/2011,1112-00299,588.96,R,Anchor Trust
http://statistics.data.gov.uk/doc/local-authority/00DA,Leeds City Council,Environment & Neighbourhoods,Strategy & Commissioning,Third Party Payments,Supporting People - Block Subsidy,513,07/11/2011,1112-00300,692.48,R,Anchor Trust
http://statistics.data.gov.uk/doc/local-authority/00DA,Leeds City Council,Environment & Neighbourhoods,Strategy & Commissioning,Third Party Payments,Supporting Ppl - Block Gross Chargeable,514,07/11/2011,1112-00301,468.48,R,Anchor Trust
http://statistics.data.gov.uk/doc/local-authority/00DA,Leeds City Council,Environment & Neighbourhoods,Strategy & Commissioning,Third Party Payments,Supporting Ppl - Block Gross Chargeable,514,07/11/2011,1112-00302,9844.00,R,Anchor Trust
http://statistics.data.gov.uk/doc/local-authority/00DA,Leeds City Council,Adult Social Care,Services For Adults Under 65 Mental/Dis,Third Party Payments,Residential,580,23/11/2011,1112-00303,1094.56,R,Anchor Trust
http://statistics.data.gov.uk/doc/local-authority/00DA,Leeds City Council,Adult Social Care,Services For Older People - 65 And Over,Third Party Payments,Nursing Home,570,23/11/2011,1112-00304,24013.22,R,Anchor Trust
http://statistics.data.gov.uk/doc/local-authority/00DA,Leeds City Council,Adult Social Care,Services For Older People - 65 And Over,Third Party Payments,Residential Care Emi,571,23/11/2011,1112-00305,478.68,R,Anchor Trust
http://statistics.data.gov.uk/doc/local-authority/00DA,Leeds City Council,Adult Social Care,Services For Older People - 65 And Over,Third Party Payments,Residential Care Emi,571,23/11/2011,1112-00306,1650.04,R,Anchor Trust
http://statistics.data.gov.uk/doc/local-authority/00DA,Leeds City Council,Adult Social Care,Services For Older People - 65 And Over,Third Party Payments,Residential Care Emi,571,23/11/2011,1112-00307,3566.92,R,Anchor Trust
http://statistics.data.gov.uk/doc/local-authority/00DA,Leeds City Council,Adult Social Care,Services For Older People - 65 And Over,Third Party Payments,Nursing Care Emi,574,23/11/2011,1112-00308,1186.96,R,Anchor Trust
http://statistics.data.gov.uk/doc/local-authority/00DA,Leeds City Council,Adult Social Care,Services For Older People - 65 And Over,Third Party Payments,Residential,580,23/11/2011,1112-00309,2583.04,R,Anchor Trust
http://statistics.data.gov.uk/doc/local-authority/00DA,Leeds City Council,Adult Social Care,Services For Older People - 65 And Over,Third Party Payments,Residential,580,23/11/2011,1112-00310,3403.76,R,Anchor Trust
http://statistics.data.gov.uk/doc/local-authority/00DA,Leeds City Council,Adult Social Care,Services For Older People - 65 And Over,Third Party Payments,Residential,580,23/11/2011,1112-00311,4163.24,R,Anchor Trust
http://statistics.data.gov.uk/doc/local-authority/00DA,Leeds City Council,Adult Social Care,Services For Older People Under 65 P/Dis,Third Party Payments,Nursing Home,570,23/11/2011,1112-00312,1397.80,R,Anchor Trust
http://statistics.data.gov.uk/doc/local-authority/00DA,Leeds City Council,Adult Social Care,Services For Older People Under 65 P/Dis,Third Party Payments,Residential,580,23/11/2011,1112-00313,3622.79,R,Anchor Trust
http://statistics.data.gov.uk/doc/local-authority/00DA,Leeds City Council,Adult Social Care,Services For Older People - 65 And Over,Third Party Payments,Residential Care Emi,571,23/11/2011,1112-00314,9548.04,R,Anchor Trust Simon Marks Court
http://statistics.data.gov.uk/doc/local-authority/00DA,Leeds City Council,Adult Social Care,Services For Older People - 65 And Over,Third Party Payments,Residential,580,23/11/2011,1112-00315,8293.52,R,Anchor Trust Simon Marks Court
http://statistics.data.gov.uk/doc/local-authority/00DA,Leeds City Council,Childrens Services,Safeguarding Targeted & Specialist,Support Services,Legal Disbursements,411,30/11/2011,1112-00316,975.00,R,Andrew Wastall
http://statistics.data.gov.uk/doc/local-authority/00DA,Leeds City Council,City Development,Economic Development,Supplies and Services,City Centre Enhancement,295,28/11/2011,1112-00317,1234.00,R,Andy Thornton
http://statistics.data.gov.uk/doc/local-authority/00DA,Leeds City Council,Adult Social Care,Services For Adults Under 65 Mental/Dis,Third Party Payments,Home Care,568,09/11/2011,1112-00318,583.00,R,Angels Home Care Services
http://statistics.data.gov.uk/doc/local-authority/00DA,Leeds City Council,Adult Social Care,Services For Older People Under 65 P/Dis,Third Party Payments,Home Care,568,10/11/2011,1112-00319,2074.80,R,Angels Home Care Services
http://statistics.data.gov.uk/doc/local-authority/00DA,Leeds City Council,Adult Social Care,Services For Adults Under 65 Mental/Dis,Third Party Payments,Home Care,568,18/11/2011,1112-00320,558.00,R,Angels Home Care Services
http://statistics.data.gov.uk/doc/local-authority/00DA,Leeds City Council,Adult Social Care,Services For Older People - 65 And Over,Third Party Payments,Home Care,568,18/11/2011,1112-00321,2079.00,R,Angels Home Care Services
http://statistics.data.gov.uk/doc/local-authority/00DA,Leeds City Council,Adult Social Care,Services For Older People - 65 And Over,Third Party Payments,Home Care,568,30/11/2011,1112-00322,1155.00,R,Angels Home Care Services
http://statistics.data.gov.uk/doc/local-authority/00DA,Leeds City Council,Environment & Neighbourhoods,Strategy & Commissioning,Supplies and Services,Non-Recurring Grants,227,02/11/2011,1112-00323,2427.00,R,Angels Housekeeping Cic Ltd
http://statistics.data.gov.uk/doc/local-authority/00DA,Leeds City Council,City Development,Recreation,Supplies and Services,Swimming Bath Charges,923,07/11/2011,1112-00324,550.00,R,Anita R Jones
http://statistics.data.gov.uk/doc/local-authority/00DA,Leeds City Council,City Development,Economic Development,Premises,Plant and Machinery,102,21/11/2011,1112-00325,540.11,R,Ankef Ltd
http://statistics.data.gov.uk/doc/local-authority/00DA,Leeds City Council,Central & Corporate Functions,Support And Facilities Trading Services,Supplies and Services,Operational Materials,205,18/11/2011,1112-00326,539.60,R,Antalis Mcnaughton Limited
http://statistics.data.gov.uk/doc/local-authority/00DA,Leeds City Council,Central & Corporate Functions,Support And Facilities Trading Services,Supplies and Services,Operational Materials,205,29/11/2011,1112-00327,469.00,R,Antalis Mcnaughton Limited
http://statistics.data.gov.uk/doc/local-authority/00DA,Leeds City Council,Central & Corporate Functions,Support And Facilities Trading Services,Supplies and Services,Operational Materials,205,29/11/2011,1112-00328,1465.31,R,Antalis Mcnaughton Limited
http://statistics.data.gov.uk/doc/local-authority/00DA,Leeds City Council,Central & Corporate Functions,Commercial Services Trading Services,Supplies and Services,Food & Drink,231,04/11/2011,1112-00329,1314.84,R,Apetito Ltd
http://statistics.data.gov.uk/doc/local-authority/00DA,Leeds City Council,Central & Corporate Functions,Commercial Services Trading Services,Supplies and Services,Food & Drink,231,04/11/2011,1112-00330,1518.10,R,Apetito Ltd
http://statistics.data.gov.uk/doc/local-authority/00DA,Leeds City Council,Central & Corporate Functions,Commercial Services Trading Services,Supplies and Services,Food & Drink,231,04/11/2011,1112-00331,1771.05,R,Apetito Ltd
http://statistics.data.gov.uk/doc/local-authority/00DA,Leeds City Council,Central & Corporate Functions,Commercial Services Trading Services,Supplies and Services,Food & Drink,231,14/11/2011,1112-00332,988.35,R,Apetito Ltd
http://statistics.data.gov.uk/doc/local-authority/00DA,Leeds City Council,Central & Corporate Functions,Commercial Services Trading Services,Transport,External Hire- ( Fleet Management),313,14/11/2011,1112-00333,-1434.00,R,Apetito Ltd
http://statistics.data.gov.uk/doc/local-authority/00DA,Leeds City Council,Central & Corporate Functions,Commercial Services Trading Services,Supplies and Services,Food & Drink,231,18/11/2011,1112-00334,1200.67,R,Apetito Ltd
http://statistics.data.gov.uk/doc/local-authority/00DA,Leeds City Council,Central & Corporate Functions,Commercial Services Trading Services,Supplies and Services,Food & Drink,231,18/11/2011,1112-00335,1270.60,R,Apetito Ltd
http://statistics.data.gov.uk/doc/local-authority/00DA,Leeds City Council,Central & Corporate Functions,Commercial Services Trading Services,Supplies and Services,Food & Drink,231,18/11/2011,1112-00336,1902.69,R,Apetito Ltd
http://statistics.data.gov.uk/doc/local-authority/00DA,Leeds City Council,Central & Corporate Functions,Commercial Services Trading Services,Supplies and Services,Food & Drink,231,25/11/2011,1112-00337,1608.14,R,Apetito Ltd
http://statistics.data.gov.uk/doc/local-authority/00DA,Leeds City Council,Central & Corporate Functions,Commercial Services Trading Services,Supplies and Services,Food & Drink,231,25/11/2011,1112-00338,1769.44,R,Apetito Ltd
http://statistics.data.gov.uk/doc/local-authority/00DA,Leeds City Council as Accountable Body,Jcs For People With Learning Disabilitie,Jcs For People With Learning Disabilitie,Third Party Payments,Residential,580,23/11/2011,1112-00339,10647.76,R,Applewalk Homes
http://statistics.data.gov.uk/doc/local-authority/00DA,East - North East,East - North East,Business Improvement,Supplies and Services,Other Hired And Contracted Services,265,10/11/2011,1112-00340,440.52,R,Applied Language Solutions
http://statistics.data.gov.uk/doc/local-authority/00DA,Leeds City Council,Environment & Neighbourhoods,South South East,Capital,Construction,3,15/11/2011,1112-00341,71926.28,C,Aqua Interiors T/A V & T Plumbing
http://statistics.data.gov.uk/doc/local-authority/00DA,Leeds City Council as Accountable Body,Jcs For People With Learning Disabilitie,Jcs For People With Learning Disabilitie,Third Party Payments,Home Care,568,03/11/2011,1112-00342,508.02,R,Arabella Health Staffing Ltd
http://statistics.data.gov.uk/doc/local-authority/00DA,Leeds City Council as Accountable Body,Jcs For People With Learning Disabilitie,Jcs For People With Learning Disabilitie,Third Party Payments,Home Care,568,03/11/2011,1112-00343,664.31,R,Arabella Health Staffing Ltd
http://statistics.data.gov.uk/doc/local-authority/00DA,Leeds City Council as Accountable Body,Jcs For People With Learning Disabilitie,Jcs For People With Learning Disabilitie,Third Party Payments,Home Care,568,03/11/2011,1112-00344,729.72,R,Arabella Health Staffing Ltd
http://statistics.data.gov.uk/doc/local-authority/00DA,Leeds City Council as Accountable Body,Jcs For People With Learning Disabilitie,Jcs For People With Learning Disabilitie,Third Party Payments,Home Care,568,03/11/2011,1112-00345,1039.39,R,Arabella Health Staffing Ltd
http://statistics.data.gov.uk/doc/local-authority/00DA,Leeds City Council as Accountable Body,Jcs For People With Learning Disabilitie,Jcs For People With Learning Disabilitie,Third Party Payments,Home Care,568,07/11/2011,1112-00346,1287.66,R,Arabella Health Staffing Ltd
http://statistics.data.gov.uk/doc/local-authority/00DA,Leeds City Council as Accountable Body,Jcs For People With Learning Disabilitie,Jcs For People With Learning Disabilitie,Third Party Payments,Home Care,568,07/11/2011,1112-00347,1943.95,R,Arabella Health Staffing Ltd
http://statistics.data.gov.uk/doc/local-authority/00DA,Leeds City Council as Accountable Body,Jcs For People With Learning Disabilitie,Jcs For People With Learning Disabilitie,Third Party Payments,Home Care,568,09/11/2011,1112-00348,472.07,R,Arabella Health Staffing Ltd
http://statistics.data.gov.uk/doc/local-authority/00DA,Leeds City Council as Accountable Body,Jcs For People With Learning Disabilitie,Jcs For People With Learning Disabilitie,Third Party Payments,Home Care,568,09/11/2011,1112-00349,560.94,R,Arabella Health Staffing Ltd
http://statistics.data.gov.uk/doc/local-authority/00DA,Leeds City Council as Accountable Body,Jcs For People With Learning Disabilitie,Jcs For People With Learning Disabilitie,Third Party Payments,Home Care,568,18/11/2011,1112-00350,467.46,R,Arabella Health Staffing Ltd
http://statistics.data.gov.uk/doc/local-authority/00DA,Leeds City Council as Accountable Body,Jcs For People With Learning Disabilitie,Jcs For People With Learning Disabilitie,Third Party Payments,Home Care,568,18/11/2011,1112-00351,511.19,R,Arabella Health Staffing Ltd
http://statistics.data.gov.uk/doc/local-authority/00DA,Leeds City Council as Accountable Body,Jcs For People With Learning Disabilitie,Jcs For People With Learning Disabilitie,Third Party Payments,Home Care,568,18/11/2011,1112-00352,539.63,R,Arabella Health Staffing Ltd
http://statistics.data.gov.uk/doc/local-authority/00DA,Leeds City Council as Accountable Body,Jcs For People With Learning Disabilitie,Jcs For People With Learning Disabilitie,Third Party Payments,Home Care,568,18/11/2011,1112-00353,566.16,R,Arabella Health Staffing Ltd
http://statistics.data.gov.uk/doc/local-authority/00DA,Leeds City Council as Accountable Body,Jcs For People With Learning Disabilitie,Jcs For People With Learning Disabilitie,Third Party Payments,Home Care,568,18/11/2011,1112-00354,708.77,R,Arabella Health Staffing Ltd
http://statistics.data.gov.uk/doc/local-authority/00DA,Leeds City Council as Accountable Body,Jcs For People With Learning Disabilitie,Jcs For People With Learning Disabilitie,Third Party Payments,Home Care,568,18/11/2011,1112-00355,943.03,R,Arabella Health Staffing Ltd
http://statistics.data.gov.uk/doc/local-authority/00DA,Leeds City Council as Accountable Body,Jcs For People With Learning Disabilitie,Jcs For People With Learning Disabilitie,Third Party Payments,Home Care,568,18/11/2011,1112-00356,1857.61,R,Arabella Health Staffing Ltd
http://statistics.data.gov.uk/doc/local-authority/00DA,Leeds City Council as Accountable Body,Jcs For People With Learning Disabilitie,Jcs For People With Learning Disabilitie,Third Party Payments,Home Care,568,23/11/2011,1112-00357,1116.23,R,Arabella Health Staffing Ltd
http://statistics.data.gov.uk/doc/local-authority/00DA,Leeds City Council as Accountable Body,Jcs For People With Learning Disabilitie,Jcs For People With Learning Disabilitie,Third Party Payments,Home Care,568,23/11/2011,1112-00358,1836.25,R,Arabella Health Staffing Ltd
http://statistics.data.gov.uk/doc/local-authority/00DA,Leeds City Council as Accountable Body,Jcs For People With Learning Disabilitie,Jcs For People With Learning Disabilitie,Third Party Payments,Home Care,568,30/11/2011,1112-00359,749.75,R,Arabella Health Staffing Ltd
http://statistics.data.gov.uk/doc/local-authority/00DA,Leeds City Council as Accountable Body,Jcs For People With Learning Disabilitie,Jcs For People With Learning Disabilitie,Third Party Payments,Home Care,568,30/11/2011,1112-00360,778.55,R,Arabella Health Staffing Ltd
http://statistics.data.gov.uk/doc/local-authority/00DA,Leeds City Council as Accountable Body,Jcs For People With Learning Disabilitie,Jcs For People With Learning Disabilitie,Third Party Payments,Home Care,568,30/11/2011,1112-00361,998.87,R,Arabella Health Staffing Ltd
http://statistics.data.gov.uk/doc/local-authority/00DA,Leeds City Council as Accountable Body,Jcs For People With Learning Disabilitie,Jcs For People With Learning Disabilitie,Third Party Payments,Home Care,568,30/11/2011,1112-00362,1916.06,R,Arabella Health Staffing Ltd
http://statistics.data.gov.uk/doc/local-authority/00DA,Leeds City Council,Central & Corporate Functions,Commercial Services Trading Services,Supplies and Services,Other Hired And Contracted Services,265,11/11/2011,1112-00363,901.52,R,Archbold Carshop Ltd
http://statistics.data.gov.uk/doc/local-authority/00DA,Leeds City Council,Environment & Neighbourhoods,Strategy & Commissioning,Supplies and Services,Non-Recurring Grants,227,16/11/2011,1112-00364,42750.00,R,Archway
http://statistics.data.gov.uk/doc/local-authority/00DA,Leeds City Council,City Development,Recreation,Supplies and Services,Clothing & Uniforms,241,03/11/2011,1112-00365,597.18,R,Arco Ltd
http://statistics.data.gov.uk/doc/local-authority/00DA,Leeds City Council,Central & Corporate Functions,Commercial Services Trading Services,Supplies and Services,Clothing & Uniforms,241,08/11/2011,1112-00366,1024.32,R,Arco Ltd
http://statistics.data.gov.uk/doc/local-authority/00DA,West - North West,West - North West,Customer And Tenancy,Supplies and Services,Clothing & Uniforms,241,08/11/2011,1112-00367,617.86,R,Arco Ltd
http://statistics.data.gov.uk/doc/local-authority/00DA,Leeds City Council,Central & Corporate Functions,Commercial Services Trading Services,Supplies and Services,Operational Materials,205,10/11/2011,1112-00368,1026.00,R,Arco Ltd
http://statistics.data.gov.uk/doc/local-authority/00DA,Leeds City Council,Environment & Neighbourhoods,Streetscene Environmental Services,Supplies and Services,Clothing & Uniforms,241,14/11/2011,1112-00369,4680.00,R,Arco Ltd
http://statistics.data.gov.uk/doc/local-authority/00DA,East - North East,East - North East,Technical Services,Support Services,Health Safety And Welfare,426,15/11/2011,1112-00370,782.29,R,Arco Ltd
http://statistics.data.gov.uk/doc/local-authority/00DA,Leeds City Council,City Development,Recreation,Supplies and Services,Operational Furniture And Equipment,203,15/11/2011,1112-00371,445.00,R,Arco Ltd
http://statistics.data.gov.uk/doc/local-authority/00DA,Leeds City Council,City Development,Recreation,Supplies and Services,Clothing & Uniforms,241,15/11/2011,1112-00372,1712.44,R,Arco Ltd
http://statistics.data.gov.uk/doc/local-authority/00DA,Leeds City Council,City Development,Recreation,Supplies and Services,Clothing & Uniforms,241,17/11/2011,1112-00373,491.94,R,Arco Ltd
http://statistics.data.gov.uk/doc/local-authority/00DA,Leeds City Council,Environment & Neighbourhoods,Streetscene Environmental Services,Supplies and Services,Clothing & Uniforms,241,17/11/2011,1112-00374,1009.71,R,Arco Ltd
http://statistics.data.gov.uk/doc/local-authority/00DA,East - North East,East - North East,Construction Services,Supplies and Services,Other Materials,205,18/11/2011,1112-00375,575.82,R,Arco Ltd
http://statistics.data.gov.uk/doc/local-authority/00DA,Leeds City Council,City Development,Libraries Arts & Heritage,Supplies and Services,Operational Furniture And Equipment,203,18/11/2011,1112-00376,524.34,R,Arco Ltd
http://statistics.data.gov.uk/doc/local-authority/00DA,Leeds City Council,Environment & Neighbourhoods,Streetscene Environmental Services,Supplies and Services,Clothing & Uniforms,241,18/11/2011,1112-00377,3670.29,R,Arco Ltd
http://statistics.data.gov.uk/doc/local-authority/00DA,Leeds City Council,City Development,Recreation,Supplies and Services,Clothing & Uniforms,241,21/11/2011,1112-00378,423.03,R,Arco Ltd
http://statistics.data.gov.uk/doc/local-authority/00DA,East - North East,East - North East,Technical Services,Support Services,Health Safety And Welfare,426,22/11/2011,1112-00379,486.20,R,Arco Ltd
http://statistics.data.gov.uk/doc/local-authority/00DA,Leeds City Council,Central & Corporate Functions,Commercial Services Trading Services,Supplies and Services,Operational Materials,205,22/11/2011,1112-00380,666.90,R,Arco Ltd
http://statistics.data.gov.uk/doc/local-authority/00DA,Leeds City Council,City Development,Recreation,Supplies and Services,Clothing & Uniforms,241,22/11/2011,1112-00381,782.88,R,Arco Ltd
http://statistics.data.gov.uk/doc/local-authority/00DA,East - North East,East - North East,Construction Services,Supplies and Services,Other Materials,205,24/11/2011,1112-00382,525.15,R,Arco Ltd
http://statistics.data.gov.uk/doc/local-authority/00DA,East - North East,East - North East,Construction Services,Supplies and Services,Other Materials,205,24/11/2011,1112-00383,906.48,R,Arco Ltd
http://statistics.data.gov.uk/doc/local-authority/00DA,Leeds City Council,Central & Corporate Functions,Commercial Services Trading Services,Supplies and Services,Operational Materials,205,24/11/2011,1112-00384,1200.42,R,Arco Ltd
http://statistics.data.gov.uk/doc/local-authority/00DA,Leeds City Council,City Development,Recreation,Supplies and Services,Clothing & Uniforms,241,24/11/2011,1112-00385,455.66,R,Arco Ltd
http://statistics.data.gov.uk/doc/local-authority/00DA,Leeds City Council,Central & Corporate Functions,Information Technology,Supplies and Services,Hardware - Expenditure,030,09/11/2011,1112-00386,1990.00,R,Arena Partnership Limited
http://statistics.data.gov.uk/doc/local-authority/00DA,Leeds City Council,Childrens Services,Safeguarding Targeted & Specialist,Supplies and Services,Operational Furniture And Equipment,203,03/11/2011,1112-00387,1007.44,R,Argos Distributors Ltd
http://statistics.data.gov.uk/doc/local-authority/00DA,Leeds City Council,Adult Social Care,Services For Adults Under 65 Learn/Dis,Supplies and Services,Operational Furniture And Equipment,203,28/11/2011,1112-00388,-7003.03,R,Argos Distributors Ltd
http://statistics.data.gov.uk/doc/local-authority/00DA,Leeds City Council,Adult Social Care,Services For Adults Under 65 Learn/Dis,Supplies and Services,Operational Furniture And Equipment,203,28/11/2011,1112-00389,7003.03,R,Argos Distributors Ltd
http://statistics.data.gov.uk/doc/local-authority/00DA,Leeds City Council,Environment & Neighbourhoods,Environmental Health,Supplies and Services,Bought In Professional Services,277,02/11/2011,1112-00390,689.25,R,Ari Environmental Services Ltd
http://statistics.data.gov.uk/doc/local-authority/00DA,Leeds City Council,Environment & Neighbourhoods,Environmental Health,Supplies and Services,Bought In Professional Services,277,17/11/2011,1112-00391,1807.05,R,Ari Environmental Services Ltd
http://statistics.data.gov.uk/doc/local-authority/00DA,Leeds City Council,City Development,Libraries Arts & Heritage,Supplies and Services,Operational Furniture And Equipment,203,07/11/2011,1112-00392,535.00,R,Ark Display Graphics
http://statistics.data.gov.uk/doc/local-authority/00DA,Leeds City Council,City Development,Highways,Transport,Plant Hire - By Directorate,305,18/11/2011,1112-00393,2194.25,R,Armcon Limited
http://statistics.data.gov.uk/doc/local-authority/00DA,Leeds City Council,Central & Corporate Functions,Commercial Services Trading Services,Transport,External Hire -Occasional,304,25/11/2011,1112-00394,440.00,R,Arnold Clark Finance Ltd
http://statistics.data.gov.uk/doc/local-authority/00DA,East - North East,East - North East,Construction Services,Supplies and Services,Other Materials,205,04/11/2011,1112-00395,566.80,R,Arnold Laver & Co Ltd
http://statistics.data.gov.uk/doc/local-authority/00DA,East - North East,East - North East,Construction Services,Supplies and Services,Other Materials,205,16/11/2011,1112-00396,742.83,R,Arnold Laver & Co Ltd
http://statistics.data.gov.uk/doc/local-authority/00DA,East - North East,East - North East,Construction Services,Supplies and Services,Other Materials,205,18/11/2011,1112-00397,419.41,R,Arnold Laver & Co Ltd
http://statistics.data.gov.uk/doc/local-authority/00DA,Leeds City Council,Central & Corporate Functions,Commercial Services Trading Services,Supplies and Services,Operational Materials,205,24/11/2011,1112-00398,651.81,R,Arnold Laver & Co Ltd
http://statistics.data.gov.uk/doc/local-authority/00DA,East - North East,East - North East,Construction Services,Supplies and Services,Other Materials,205,25/11/2011,1112-00399,777.09,R,Arnold Laver & Co Ltd
http://statistics.data.gov.uk/doc/local-authority/00DA,East - North East,East - North East,Technical Services,Supplies and Services,Other Hired And Contracted Services,265,04/11/2011,1112-00400,4400.00,R,Arr Spend Management Solutions
http://statistics.data.gov.uk/doc/local-authority/00DA,East - North East,East - North East,Technical Services,Supplies and Services,Other Hired And Contracted Services,265,17/11/2011,1112-00401,2200.00,R,Arr Spend Management Solutions
http://statistics.data.gov.uk/doc/local-authority/00DA,East - North East,East - North East,Technical Services,Supplies and Services,Other Hired And Contracted Services,265,17/11/2011,1112-00402,4950.00,R,Arr Spend Management Solutions
http://statistics.data.gov.uk/doc/local-authority/00DA,Leeds City Council,Adult Social Care,Services For Older People - 65 And Over,Third Party Payments,Nursing Home,570,24/11/2011,1112-00403,1347.20,R,Arrigadeen Nursing Home
http://statistics.data.gov.uk/doc/local-authority/00DA,Leeds City Council,Childrens Services,Safeguarding Targeted & Specialist,Supplies and Services,Consultancy Services,259,29/11/2011,1112-00404,1162.50,R,Arrow Social Care Consultancy Limited
http://statistics.data.gov.uk/doc/local-authority/00DA,Leeds City Council,Childrens Services,Safeguarding Targeted & Specialist,Supplies and Services,Consultancy Services,259,29/11/2011,1112-00405,4517.80,R,Arrow Social Care Consultancy Limited
http://statistics.data.gov.uk/doc/local-authority/00DA,Leeds City Council,City Development,Economic Development,Supplies and Services,Other Hired And Contracted Services,265,02/11/2011,1112-00406,-988.90,R,Artavia
http://statistics.data.gov.uk/doc/local-authority/00DA,Leeds City Council,City Development,Economic Development,Supplies and Services,Other Hired And Contracted Services,265,02/11/2011,1112-00407,988.90,R,Artavia
http://statistics.data.gov.uk/doc/local-authority/00DA,Leeds City Council,City Development,Libraries Arts & Heritage,Supplies and Services,Contributions To Extended Facilities,271,17/11/2011,1112-00408,452.50,R,Artica Worldwide Ltd
http://statistics.data.gov.uk/doc/local-authority/00DA,Leeds City Council,Adult Social Care,Social Services Support Services,Third Party Payments,Services Rendered By Voluntary Sector,505,10/11/2011,1112-00409,12070.72,R,Articulate Advocacy
http://statistics.data.gov.uk/doc/local-authority/00DA,Leeds City Council,Adult Social Care,Social Services Support Services,Third Party Payments,Services Rendered By Voluntary Sector,505,10/11/2011,1112-00410,12446.39,R,Articulate Advocacy
http://statistics.data.gov.uk/doc/local-authority/00DA,Leeds City Council,Adult Social Care,Social Services Support Services,Third Party Payments,Services Rendered By Voluntary Sector,505,16/11/2011,1112-00411,1003.28,R,Articulate Advocacy
http://statistics.data.gov.uk/doc/local-authority/00DA,Leeds City Council,Adult Social Care,Social Services Support Services,Third Party Payments,Services Rendered By Voluntary Sector,505,16/11/2011,1112-00412,1113.48,R,Articulate Advocacy
http://statistics.data.gov.uk/doc/local-authority/00DA,Leeds City Council as Accountable Body,Jcs For People With Learning Disabilitie,Jcs For People With Learning Disabilitie,Third Party Payments,Other Agency Services,561,29/11/2011,1112-00413,1070.01,R,Articulate Advocacy
http://statistics.data.gov.uk/doc/local-authority/00DA,Leeds City Council,Childrens Services,Learning Skills & Universal,Transport,Fuel (Non LCC Supplies),321,07/11/2011,1112-00414,2353.76,R,Arval Phh Business Solutions Ltd
http://statistics.data.gov.uk/doc/local-authority/00DA,Leeds City Council,City Development,Highways,Transport,Fuel (Non LCC Supplies),321,07/11/2011,1112-00415,675.06,R,Arval Phh Business Solutions Ltd
http://statistics.data.gov.uk/doc/local-authority/00DA,Leeds City Council,Central & Corporate Functions,Commercial Services Trading Services,Supplies and Services,Other Hired And Contracted Services,265,03/11/2011,1112-00416,480.00,R,Asbestos Sample Analysis Limited
http://statistics.data.gov.uk/doc/local-authority/00DA,Leeds City Council,Central & Corporate Functions,Commercial Services Trading Services,Supplies and Services,Other Hired And Contracted Services,265,03/11/2011,1112-00417,562.50,R,Asbestos Sample Analysis Limited
http://statistics.data.gov.uk/doc/local-authority/00DA,Leeds City Council,Central & Corporate Functions,Commercial Services Trading Services,Supplies and Services,Other Hired And Contracted Services,265,04/11/2011,1112-00418,577.50,R,Asbestos Sample Analysis Limited
http://statistics.data.gov.uk/doc/local-authority/00DA,Leeds City Council,Central & Corporate Functions,Commercial Services Trading Services,Supplies and Services,Other Hired And Contracted Services,265,11/11/2011,1112-00419,525.00,R,Asbestos Sample Analysis Limited
http://statistics.data.gov.uk/doc/local-authority/00DA,Leeds City Council,Central & Corporate Functions,Commercial Services Trading Services,Supplies and Services,Other Hired And Contracted Services,265,11/11/2011,1112-00420,690.00,R,Asbestos Sample Analysis Limited
http://statistics.data.gov.uk/doc/local-authority/00DA,Leeds City Council,Central & Corporate Functions,Commercial Services Trading Services,Supplies and Services,Other Hired And Contracted Services,265,11/11/2011,1112-00421,765.00,R,Asbestos Sample Analysis Limited
http://statistics.data.gov.uk/doc/local-authority/00DA,Leeds City Council,Central & Corporate Functions,Commercial Services Trading Services,Supplies and Services,Other Hired And Contracted Services,265,17/11/2011,1112-00422,420.00,R,Asbestos Sample Analysis Limited
http://statistics.data.gov.uk/doc/local-authority/00DA,Leeds City Council,Central & Corporate Functions,Commercial Services Trading Services,Supplies and Services,Other Hired And Contracted Services,265,24/11/2011,1112-00423,420.00,R,Asbestos Sample Analysis Limited
http://statistics.data.gov.uk/doc/local-authority/00DA,Leeds City Council,Central & Corporate Functions,Commercial Services Trading Services,Supplies and Services,Operational Furniture & Equipment,203,12/10/2011,1112-00424,870.00,R,Ascertiva Group Ltd
http://statistics.data.gov.uk/doc/local-authority/00DA,Leeds City Council,Adult Social Care,Services For Older People - 65 And Over,Third Party Payments,Residential,580,23/11/2011,1112-00425,8809.67,R,Ashcroft House Residential Home
http://statistics.data.gov.uk/doc/local-authority/00DA,Leeds City Council,Adult Social Care,Services For Older People - 65 And Over,Third Party Payments,Nursing Home,570,23/11/2011,1112-00426,2304.12,R,Ashcroft Nursing Home
http://statistics.data.gov.uk/doc/local-authority/00DA,Leeds City Council,Adult Social Care,Services For Older People - 65 And Over,Third Party Payments,Nursing Home,570,23/11/2011,1112-00427,6359.87,R,Ashcroft Nursing Home
http://statistics.data.gov.uk/doc/local-authority/00DA,Leeds City Council,Adult Social Care,Services For Older People - 65 And Over,Third Party Payments,Residential Care Emi,571,23/11/2011,1112-00428,782.16,R,Ashcroft Nursing Home
http://statistics.data.gov.uk/doc/local-authority/00DA,Leeds City Council,Adult Social Care,Services For Older People - 65 And Over,Third Party Payments,Residential Care Emi,571,23/11/2011,1112-00429,660.48,R,Ashfield Court
http://statistics.data.gov.uk/doc/local-authority/00DA,Leeds City Council,Adult Social Care,Services For Adults Under 65 Mental/Dis,Third Party Payments,Residential,580,23/11/2011,1112-00430,2318.40,R,Ashfield Nursing Home
http://statistics.data.gov.uk/doc/local-authority/00DA,Leeds City Council,Adult Social Care,Services For Older People - 65 And Over,Third Party Payments,Nursing Home,570,23/11/2011,1112-00431,19537.36,R,Ashfield Nursing Home
http://statistics.data.gov.uk/doc/local-authority/00DA,Leeds City Council,Adult Social Care,Services For Older People - 65 And Over,Third Party Payments,Residential,580,23/11/2011,1112-00432,2697.88,R,Ashfield Nursing Home
http://statistics.data.gov.uk/doc/local-authority/00DA,Leeds City Council,Adult Social Care,Services For Older People - 65 And Over,Third Party Payments,Nursing Home,570,23/11/2011,1112-00433,1504.00,R,Ashley Care Ltd
http://statistics.data.gov.uk/doc/local-authority/00DA,Leeds City Council,City Development,Highways,Transport,Plant Hire - By Directorate,305,08/11/2011,1112-00434,726.00,R,Ashtead Plant Hire Company Ltd
http://statistics.data.gov.uk/doc/local-authority/00DA,Leeds City Council,City Development,Highways,Transport,Plant Hire - By Directorate,305,08/11/2011,1112-00435,726.00,R,Ashtead Plant Hire Company Ltd
http://statistics.data.gov.uk/doc/local-authority/00DA,Leeds City Council,City Development,Highways,Transport,Plant Hire - By Directorate,305,08/11/2011,1112-00436,726.00,R,Ashtead Plant Hire Company Ltd
http://statistics.data.gov.uk/doc/local-authority/00DA,Leeds City Council,City Development,Highways,Transport,Plant Hire - By Directorate,305,08/11/2011,1112-00437,726.00,R,Ashtead Plant Hire Company Ltd
http://statistics.data.gov.uk/doc/local-authority/00DA,Leeds City Council,City Development,Libraries Arts & Heritage,Transport,Hire Of Movable Plant & Machinery,315,10/11/2011,1112-00438,500.00,R,Ashtead Plant Hire Company Ltd
http://statistics.data.gov.uk/doc/local-authority/00DA,Leeds City Council,Central & Corporate Functions,Commercial Services Trading Services,Supplies and Services,Other Hired And Contracted Services,265,15/11/2011,1112-00439,563.56,R,Ashtead Plant Hire Company Ltd
http://statistics.data.gov.uk/doc/local-authority/00DA,Leeds City Council,Adult Social Care,Services For Older People - 65 And Over,Third Party Payments,Residential Care Emi,571,23/11/2011,1112-00440,857.96,R,Ashville Care Home
http://statistics.data.gov.uk/doc/local-authority/00DA,Leeds City Council,Central & Corporate Functions,Commercial Services Trading Services,Supplies and Services,Other Hired And Contracted Services,265,18/11/2011,1112-00441,1080.00,R,Ashwell Engineering Services Ltd
http://statistics.data.gov.uk/doc/local-authority/00DA,Leeds City Council,Adult Social Care,Services For Older People - 65 And Over,Third Party Payments,Residential,580,24/11/2011,1112-00442,1121.92,R,Ashworth Grange
http://statistics.data.gov.uk/doc/local-authority/00DA,Leeds City Council,City Development,Libraries Arts & Heritage,Supplies and Services,Books & Audio-Visual Materials,206,01/11/2011,1112-00443,1005.85,R,Askews & Holts
http://statistics.data.gov.uk/doc/local-authority/00DA,Leeds City Council,City Development,Libraries Arts & Heritage,Supplies and Services,Books & Audio-Visual Materials,206,01/11/2011,1112-00444,3349.53,R,Askews & Holts
http://statistics.data.gov.uk/doc/local-authority/00DA,Leeds City Council,City Development,Libraries Arts & Heritage,Supplies and Services,Books & Audio-Visual Materials,206,01/11/2011,1112-00445,3880.63,R,Askews & Holts
http://statistics.data.gov.uk/doc/local-authority/00DA,Leeds City Council,City Development,Libraries Arts & Heritage,Supplies and Services,Books & Audio-Visual Materials,206,01/11/2011,1112-00446,4101.03,R,Askews & Holts
http://statistics.data.gov.uk/doc/local-authority/00DA,Leeds City Council,City Development,Libraries Arts & Heritage,Supplies and Services,Books & Audio-Visual Materials,206,08/11/2011,1112-00447,601.34,R,Askews & Holts
http://statistics.data.gov.uk/doc/local-authority/00DA,Leeds City Council,City Development,Libraries Arts & Heritage,Supplies and Services,Books & Audio-Visual Materials,206,08/11/2011,1112-00448,2346.60,R,Askews & Holts
http://statistics.data.gov.uk/doc/local-authority/00DA,Leeds City Council,City Development,Libraries Arts & Heritage,Supplies and Services,Books & Audio-Visual Materials,206,08/11/2011,1112-00449,2912.54,R,Askews & Holts
http://statistics.data.gov.uk/doc/local-authority/00DA,Leeds City Council,City Development,Libraries Arts & Heritage,Supplies and Services,Books & Audio-Visual Materials,206,08/11/2011,1112-00450,4812.17,R,Askews & Holts
http://statistics.data.gov.uk/doc/local-authority/00DA,Leeds City Council,City Development,Libraries Arts & Heritage,Supplies and Services,Books & Audio-Visual Materials,206,10/11/2011,1112-00451,702.00,R,Askews & Holts
http://statistics.data.gov.uk/doc/local-authority/00DA,Leeds City Council,City Development,Libraries Arts & Heritage,Supplies and Services,Books & Audio-Visual Materials,206,14/11/2011,1112-00452,757.84,R,Askews & Holts
http://statistics.data.gov.uk/doc/local-authority/00DA,Leeds City Council,City Development,Libraries Arts & Heritage,Supplies and Services,Books & Audio-Visual Materials,206,14/11/2011,1112-00453,1395.56,R,Askews & Holts
http://statistics.data.gov.uk/doc/local-authority/00DA,Leeds City Council,City Development,Libraries Arts & Heritage,Supplies and Services,Books & Audio-Visual Materials,206,14/11/2011,1112-00454,3678.38,R,Askews & Holts
http://statistics.data.gov.uk/doc/local-authority/00DA,Leeds City Council,City Development,Libraries Arts & Heritage,Supplies and Services,Books & Audio-Visual Materials,206,14/11/2011,1112-00455,3690.93,R,Askews & Holts
http://statistics.data.gov.uk/doc/local-authority/00DA,Leeds City Council,City Development,Libraries Arts & Heritage,Supplies and Services,Books & Audio-Visual Materials,206,14/11/2011,1112-00456,4506.48,R,Askews & Holts
http://statistics.data.gov.uk/doc/local-authority/00DA,Leeds City Council,City Development,Libraries Arts & Heritage,Supplies and Services,Books & Audio-Visual Materials,206,17/11/2011,1112-00457,1299.55,R,Askews & Holts
http://statistics.data.gov.uk/doc/local-authority/00DA,Leeds City Council,City Development,Libraries Arts & Heritage,Supplies and Services,Books & Audio-Visual Materials,206,22/11/2011,1112-00458,681.31,R,Askews & Holts
http://statistics.data.gov.uk/doc/local-authority/00DA,Leeds City Council,City Development,Libraries Arts & Heritage,Supplies and Services,Books & Audio-Visual Materials,206,22/11/2011,1112-00459,693.98,R,Askews & Holts
http://statistics.data.gov.uk/doc/local-authority/00DA,Leeds City Council,City Development,Libraries Arts & Heritage,Supplies and Services,Books & Audio-Visual Materials,206,22/11/2011,1112-00460,2083.24,R,Askews & Holts
http://statistics.data.gov.uk/doc/local-authority/00DA,Leeds City Council,City Development,Libraries Arts & Heritage,Supplies and Services,Books & Audio-Visual Materials,206,22/11/2011,1112-00461,2392.68,R,Askews & Holts
http://statistics.data.gov.uk/doc/local-authority/00DA,Leeds City Council,City Development,Libraries Arts & Heritage,Supplies and Services,Books & Audio-Visual Materials,206,22/11/2011,1112-00462,5328.70,R,Askews & Holts
http://statistics.data.gov.uk/doc/local-authority/00DA,Leeds City Council,City Development,Libraries Arts & Heritage,Supplies and Services,Books & Audio-Visual Materials,206,22/11/2011,1112-00463,5791.40,R,Askews & Holts
http://statistics.data.gov.uk/doc/local-authority/00DA,Leeds City Council,City Development,Libraries Arts & Heritage,Supplies and Services,Books & Audio-Visual Materials,206,29/11/2011,1112-00464,926.78,R,Askews & Holts
http://statistics.data.gov.uk/doc/local-authority/00DA,Leeds City Council,City Development,Libraries Arts & Heritage,Supplies and Services,Books & Audio-Visual Materials,206,29/11/2011,1112-00465,1642.95,R,Askews & Holts
http://statistics.data.gov.uk/doc/local-authority/00DA,Leeds City Council,City Development,Libraries Arts & Heritage,Supplies and Services,Books & Audio-Visual Materials,206,29/11/2011,1112-00466,3338.04,R,Askews & Holts
http://statistics.data.gov.uk/doc/local-authority/00DA,Leeds City Council,City Development,Libraries Arts & Heritage,Supplies and Services,Books & Audio-Visual Materials,206,29/11/2011,1112-00467,4047.87,R,Askews & Holts
http://statistics.data.gov.uk/doc/local-authority/00DA,Leeds City Council,City Development,Libraries Arts & Heritage,Supplies and Services,Books & Audio-Visual Materials,206,30/11/2011,1112-00468,646.58,R,Askews & Holts
http://statistics.data.gov.uk/doc/local-authority/00DA,West - North West,West - North West,Corporate Services,Employees,General Training,079,30/11/2011,1112-00469,2630.00,R,Askham Bryan College
http://statistics.data.gov.uk/doc/local-authority/00DA,Leeds City Council,Childrens Services,Learning Skills & Universal,Premises,Maintenance Of Buildings,101,04/11/2011,1112-00470,3608.52,R,Aspect Building Solutions
http://statistics.data.gov.uk/doc/local-authority/00DA,Leeds City Council,Other Education Services,Primary Schools,Capital,Construction,3,16/11/2011,1112-00471,10053.80,C,Aspect Building Solutions
http://statistics.data.gov.uk/doc/local-authority/00DA,Leeds City Council,Other Education Services,Primary Schools,Capital,Construction,3,16/11/2011,1112-00472,17347.04,C,Aspect Building Solutions
http://statistics.data.gov.uk/doc/local-authority/00DA,Leeds City Council,Other Education Services,Primary Schools,Capital,Construction,3,29/11/2011,1112-00473,33684.52,C,Aspect Building Solutions
http://statistics.data.gov.uk/doc/local-authority/00DA,Leeds City Council,City Development,Highways,Transport,Plant Hire - By Directorate,305,04/11/2011,1112-00474,790.00,R,Asphalt Pavers
http://statistics.data.gov.uk/doc/local-authority/00DA,Leeds City Council,City Development,Highways,Transport,Plant Hire - By Directorate,305,04/11/2011,1112-00475,951.00,R,Asphalt Pavers
http://statistics.data.gov.uk/doc/local-authority/00DA,Leeds City Council,City Development,Highways,Transport,Plant Hire - By Directorate,305,04/11/2011,1112-00476,1300.00,R,Asphalt Pavers
http://statistics.data.gov.uk/doc/local-authority/00DA,Leeds City Council,City Development,Highways,Transport,Plant Hire - By Directorate,305,04/11/2011,1112-00477,1775.00,R,Asphalt Pavers
http://statistics.data.gov.uk/doc/local-authority/00DA,Leeds City Council,City Development,Highways,Transport,Plant Hire - By Directorate,305,09/11/2011,1112-00478,650.00,R,Asphalt Pavers
http://statistics.data.gov.uk/doc/local-authority/00DA,Leeds City Council,City Development,Highways,Transport,Plant Hire - By Directorate,305,09/11/2011,1112-00479,790.00,R,Asphalt Pavers
http://statistics.data.gov.uk/doc/local-authority/00DA,Leeds City Council,City Development,Highways,Transport,Plant Hire - By Directorate,305,09/11/2011,1112-00480,2006.00,R,Asphalt Pavers
http://statistics.data.gov.uk/doc/local-authority/00DA,Leeds City Council,City Development,Highways,Transport,Plant Hire - By Directorate,305,11/11/2011,1112-00481,2781.00,R,Asphalt Pavers
http://statistics.data.gov.uk/doc/local-authority/00DA,Leeds City Council,City Development,Highways,Transport,Plant Hire - By Directorate,305,23/11/2011,1112-00482,790.00,R,Asphalt Pavers
http://statistics.data.gov.uk/doc/local-authority/00DA,Leeds City Council,City Development,Highways,Transport,Plant Hire - By Directorate,305,23/11/2011,1112-00483,881.00,R,Asphalt Pavers
http://statistics.data.gov.uk/doc/local-authority/00DA,Leeds City Council,City Development,Highways,Transport,Plant Hire - By Directorate,305,23/11/2011,1112-00484,1775.00,R,Asphalt Pavers
http://statistics.data.gov.uk/doc/local-authority/00DA,Leeds City Council,City Development,Highways,Transport,Plant Hire - By Directorate,305,23/11/2011,1112-00485,1810.00,R,Asphalt Pavers
http://statistics.data.gov.uk/doc/local-authority/00DA,Leeds City Council,City Development,Highways,Transport,Plant Hire - By Directorate,305,23/11/2011,1112-00486,2006.00,R,Asphalt Pavers
http://statistics.data.gov.uk/doc/local-authority/00DA,Leeds City Council,City Development,Highways,Transport,Plant Hire - By Directorate,305,23/11/2011,1112-00487,2921.00,R,Asphalt Pavers
http://statistics.data.gov.uk/doc/local-authority/00DA,Leeds City Council,City Development,Highways,Transport,Plant Hire - By Directorate,305,23/11/2011,1112-00488,3383.00,R,Asphalt Pavers
http://statistics.data.gov.uk/doc/local-authority/00DA,Leeds City Council,City Development,Highways,Transport,Plant Hire - By Directorate,305,30/11/2011,1112-00489,2468.00,R,Asphalt Pavers
http://statistics.data.gov.uk/doc/local-authority/00DA,Leeds City Council,City Development,Highways,Transport,Plant Hire - By Directorate,305,30/11/2011,1112-00490,2642.00,R,Asphalt Pavers
http://statistics.data.gov.uk/doc/local-authority/00DA,Leeds City Council,City Development,Highways,Transport,Plant Hire - By Directorate,305,30/11/2011,1112-00491,3431.00,R,Asphalt Pavers
http://statistics.data.gov.uk/doc/local-authority/00DA,Leeds City Council,Childrens Services,Learning Skills & Universal,Supplies and Services,Bought In Professional Services,277,04/11/2011,1112-00492,2250.00,R,Aspirational Education Limited
http://statistics.data.gov.uk/doc/local-authority/00DA,Leeds City Council,Childrens Services,Learning Skills & Universal,Supplies and Services,Bought In Professional Services,277,04/11/2011,1112-00493,2475.00,R,Aspirational Education Limited
http://statistics.data.gov.uk/doc/local-authority/00DA,Leeds City Council,Environment & Neighbourhoods,East North East,Capital,Construction,3,04/11/2011,1112-00494,2800.00,C,Asprey Bros Ltd
http://statistics.data.gov.uk/doc/local-authority/00DA,Leeds City Council,Childrens Services,Safeguarding Targeted & Specialist,Supplies and Services,Teaching Materials,202,01/11/2011,1112-00495,1618.50,R,Assessment And Qualifications Alliance
http://statistics.data.gov.uk/doc/local-authority/00DA,Leeds City Council,Central & Corporate Functions,Commercial Services Trading Services,Premises,Removal of workplace waste,126,19/10/2011,1112-00496,1200.00,R,Associated Waste Management
http://statistics.data.gov.uk/doc/local-authority/00DA,Leeds City Council,Childrens Services,Safeguarding Targeted & Specialist,Premises,Cleaning Maintenance & Toiletries,127,03/11/2011,1112-00497,-507.91,R,Associated Waste Management Limited
http://statistics.data.gov.uk/doc/local-authority/00DA,Leeds City Council,Environment & Neighbourhoods,Streetscene Environmental Services,Supplies and Services,Recycling & Reuse Charges,234,03/11/2011,1112-00498,-537.34,R,Associated Waste Management Limited
http://statistics.data.gov.uk/doc/local-authority/00DA,Leeds City Council,Environment & Neighbourhoods,Streetscene Environmental Services,Supplies and Services,Recycling & Reuse Charges,234,03/11/2011,1112-00499,7064.86,R,Associated Waste Management Limited
http://statistics.data.gov.uk/doc/local-authority/00DA,Leeds City Council,Environment & Neighbourhoods,Streetscene Environmental Services,Supplies and Services,Waste Disposal Charges,236,03/11/2011,1112-00500,-997.93,R,Associated Waste Management Limited
http://statistics.data.gov.uk/doc/local-authority/00DA,Leeds City Council,Environment & Neighbourhoods,Streetscene Environmental Services,Supplies and Services,Waste Disposal Charges,236,03/11/2011,1112-00501,13120.43,R,Associated Waste Management Limited
http://statistics.data.gov.uk/doc/local-authority/00DA,Leeds City Council,Environment & Neighbourhoods,Streetscene Environmental Services,Supplies and Services,Waste Disposal Charges,236,03/11/2011,1112-00502,23375.36,R,Associated Waste Management Limited
http://statistics.data.gov.uk/doc/local-authority/00DA,Leeds City Council,Environment & Neighbourhoods,Streetscene Environmental Services,Supplies and Services,Recycling & Reuse Charges,234,04/11/2011,1112-00503,7094.95,R,Associated Waste Management Limited
http://statistics.data.gov.uk/doc/local-authority/00DA,Leeds City Council,Environment & Neighbourhoods,Streetscene Environmental Services,Supplies and Services,Waste Disposal Charges,236,04/11/2011,1112-00504,13176.30,R,Associated Waste Management Limited
http://statistics.data.gov.uk/doc/local-authority/00DA,Leeds City Council,Environment & Neighbourhoods,Streetscene Environmental Services,Supplies and Services,Waste Disposal Charges,236,04/11/2011,1112-00505,23439.42,R,Associated Waste Management Limited
http://statistics.data.gov.uk/doc/local-authority/00DA,Leeds City Council,Environment & Neighbourhoods,Streetscene Environmental Services,Supplies and Services,Recycling & Reuse Charges,234,07/11/2011,1112-00506,503.30,R,Associated Waste Management Limited
http://statistics.data.gov.uk/doc/local-authority/00DA,Leeds City Council,Environment & Neighbourhoods,Streetscene Environmental Services,Supplies and Services,Waste Disposal Charges,236,07/11/2011,1112-00507,934.68,R,Associated Waste Management Limited
http://statistics.data.gov.uk/doc/local-authority/00DA,Leeds City Council,City Development,Highways,Supplies and Services,Recycling & Reuse Charges,234,08/11/2011,1112-00508,466.39,R,Associated Waste Management Limited
http://statistics.data.gov.uk/doc/local-authority/00DA,Leeds City Council,City Development,Recreation,Premises,Removal Of Workplace Waste,126,08/11/2011,1112-00509,654.39,R,Associated Waste Management Limited
http://statistics.data.gov.uk/doc/local-authority/00DA,Leeds City Council,Environment & Neighbourhoods,Streetscene Environmental Services,Supplies and Services,Recycling & Reuse Charges,234,09/11/2011,1112-00510,8206.72,R,Associated Waste Management Limited
http://statistics.data.gov.uk/doc/local-authority/00DA,Leeds City Council,Environment & Neighbourhoods,Streetscene Environmental Services,Supplies and Services,Waste Disposal Charges,236,09/11/2011,1112-00511,15241.04,R,Associated Waste Management Limited
http://statistics.data.gov.uk/doc/local-authority/00DA,Leeds City Council,City Development,Libraries Arts & Heritage,Premises,Removal Of Workplace Waste,126,10/11/2011,1112-00512,3000.00,R,Associated Waste Management Limited
http://statistics.data.gov.uk/doc/local-authority/00DA,Leeds City Council,City Development,Recreation,Premises,Removal Of Workplace Waste,126,11/11/2011,1112-00513,1016.00,R,Associated Waste Management Limited
http://statistics.data.gov.uk/doc/local-authority/00DA,Leeds City Council,Environment & Neighbourhoods,Streetscene Environmental Services,Supplies and Services,Recycling & Reuse Charges,234,11/11/2011,1112-00514,6635.79,R,Associated Waste Management Limited
http://statistics.data.gov.uk/doc/local-authority/00DA,Leeds City Council,Environment & Neighbourhoods,Streetscene Environmental Services,Supplies and Services,Waste Disposal Charges,236,11/11/2011,1112-00515,12323.61,R,Associated Waste Management Limited
http://statistics.data.gov.uk/doc/local-authority/00DA,Leeds City Council,Environment & Neighbourhoods,Streetscene Environmental Services,Supplies and Services,Waste Disposal Charges,236,11/11/2011,1112-00516,21999.44,R,Associated Waste Management Limited
http://statistics.data.gov.uk/doc/local-authority/00DA,Leeds City Council,Environment & Neighbourhoods,Streetscene Environmental Services,Supplies and Services,Recycling & Reuse Charges,234,14/11/2011,1112-00517,7136.02,R,Associated Waste Management Limited
http://statistics.data.gov.uk/doc/local-authority/00DA,Leeds City Council,Environment & Neighbourhoods,Streetscene Environmental Services,Supplies and Services,Waste Disposal Charges,236,14/11/2011,1112-00518,13252.61,R,Associated Waste Management Limited
http://statistics.data.gov.uk/doc/local-authority/00DA,Leeds City Council,Environment & Neighbourhoods,Streetscene Environmental Services,Supplies and Services,Waste Disposal Charges,236,14/11/2011,1112-00519,23657.82,R,Associated Waste Management Limited
http://statistics.data.gov.uk/doc/local-authority/00DA,Leeds City Council,City Development,Recreation,Premises,Removal Of Workplace Waste,126,15/11/2011,1112-00520,522.00,R,Associated Waste Management Limited
http://statistics.data.gov.uk/doc/local-authority/00DA,Leeds City Council,Childrens Services,Safeguarding Targeted & Specialist,Premises,Cleaning Maintenance & Toiletries,127,17/11/2011,1112-00521,507.91,R,Associated Waste Management Limited
http://statistics.data.gov.uk/doc/local-authority/00DA,Leeds City Council,City Development,Recreation,Premises,Removal Of Workplace Waste,126,18/11/2011,1112-00522,517.91,R,Associated Waste Management Limited
http://statistics.data.gov.uk/doc/local-authority/00DA,Leeds City Council,City Development,Support Services,Premises,Removal Of Workplace Waste,126,22/11/2011,1112-00523,6037.54,R,Associated Waste Management Limited
http://statistics.data.gov.uk/doc/local-authority/00DA,Leeds City Council,Environment & Neighbourhoods,Streetscene Environmental Services,Supplies and Services,Recycling & Reuse Charges,234,22/11/2011,1112-00524,3735.23,R,Associated Waste Management Limited
http://statistics.data.gov.uk/doc/local-authority/00DA,Leeds City Council,Environment & Neighbourhoods,Streetscene Environmental Services,Supplies and Services,Waste Disposal Charges,236,22/11/2011,1112-00525,12518.12,R,Associated Waste Management Limited
http://statistics.data.gov.uk/doc/local-authority/00DA,Leeds City Council,Environment & Neighbourhoods,Streetscene Environmental Services,Supplies and Services,Waste Disposal Charges,236,22/11/2011,1112-00526,25352.00,R,Associated Waste Management Limited
http://statistics.data.gov.uk/doc/local-authority/00DA,Leeds City Council,Central & Corporate Functions,Commercial Services Trading Services,Supplies and Services,Other Hired And Contracted Services,265,23/11/2011,1112-00527,1035.48,R,Associated Waste Management Limited
http://statistics.data.gov.uk/doc/local-authority/00DA,Leeds City Council,City Development,Libraries Arts & Heritage,Premises,Removal Of Workplace Waste,126,23/11/2011,1112-00528,1116.00,R,Associated Waste Management Limited
http://statistics.data.gov.uk/doc/local-authority/00DA,Leeds City Council,City Development,Support Services,Premises,Removal Of Workplace Waste,126,23/11/2011,1112-00529,5886.36,R,Associated Waste Management Limited
http://statistics.data.gov.uk/doc/local-authority/00DA,Leeds City Council,Central & Corporate Functions,Commercial Services Trading Services,Supplies and Services,Other Hired And Contracted Services,265,24/11/2011,1112-00530,806.40,R,Associated Waste Management Limited
http://statistics.data.gov.uk/doc/local-authority/00DA,Leeds City Council,Central & Corporate Functions,Commercial Services Trading Services,Supplies and Services,Other Hired And Contracted Services,265,28/11/2011,1112-00531,486.92,R,Associated Waste Management Limited
http://statistics.data.gov.uk/doc/local-authority/00DA,Leeds City Council,Central & Corporate Functions,Commercial Services Trading Services,Supplies and Services,Other Hired And Contracted Services,265,30/11/2011,1112-00532,431.72,R,Associated Waste Management Limited
http://statistics.data.gov.uk/doc/local-authority/00DA,Leeds City Council,Environment & Neighbourhoods,Streetscene Environmental Services,Supplies and Services,Recycling & Reuse Charges,234,30/11/2011,1112-00533,6708.24,R,Associated Waste Management Limited
http://statistics.data.gov.uk/doc/local-authority/00DA,Leeds City Council,Environment & Neighbourhoods,Streetscene Environmental Services,Supplies and Services,Waste Disposal Charges,236,30/11/2011,1112-00534,12458.17,R,Associated Waste Management Limited
http://statistics.data.gov.uk/doc/local-authority/00DA,Leeds City Council,Environment & Neighbourhoods,Streetscene Environmental Services,Supplies and Services,Waste Disposal Charges,236,30/11/2011,1112-00535,22239.67,R,Associated Waste Management Limited
http://statistics.data.gov.uk/doc/local-authority/00DA,Leeds City Council,Environment & Neighbourhoods,West North West,Capital,Construction,3,17/11/2011,1112-00536,1824.00,C,Astor Bannerman Medical Ltd
http://statistics.data.gov.uk/doc/local-authority/00DA,Leeds City Council,Adult Social Care,Services For Older People - 65 And Over,Third Party Payments,Nursing Home,570,23/11/2011,1112-00537,16236.88,R,Atkinson Court
http://statistics.data.gov.uk/doc/local-authority/00DA,Leeds City Council,Adult Social Care,Services For Older People - 65 And Over,Third Party Payments,Nursing Care Emi,574,23/11/2011,1112-00538,10249.12,R,Atkinson Court
http://statistics.data.gov.uk/doc/local-authority/00DA,Leeds City Council,City Development,Highways,Supplies and Services,Other Hired And Contracted Services,265,01/11/2011,1112-00539,650.00,R,Atkinsons Fencing Limited
http://statistics.data.gov.uk/doc/local-authority/00DA,Leeds City Council,Central & Corporate Functions,Commercial Services Trading Services,Supplies and Services,Other Hired And Contracted Services,265,23/11/2011,1112-00540,999.17,R,Atkinsons Fencing Limited
http://statistics.data.gov.uk/doc/local-authority/00DA,Leeds City Council,Central & Corporate Functions,Commercial Services Trading Services,Supplies and Services,Other Hired And Contracted Services,265,24/11/2011,1112-00541,586.00,R,Atlas Lift Hydraulics
http://statistics.data.gov.uk/doc/local-authority/00DA,Leeds City Council,Adult Social Care,Services For Older People - 65 And Over,Third Party Payments,Nursing Home,570,23/11/2011,1112-00542,1584.00,R,Attlee Court
http://statistics.data.gov.uk/doc/local-authority/00DA,Leeds City Council,Adult Social Care,Services For Older People - 65 And Over,Third Party Payments,Nursing Care Emi,574,23/11/2011,1112-00543,1143.36,R,Attlee Court
http://statistics.data.gov.uk/doc/local-authority/00DA,Leeds City Council,City Development,Libraries Arts & Heritage,Supplies and Services,Books & Audio-Visual Materials,206,04/11/2011,1112-00544,530.40,R,Audiogo Ltd
http://statistics.data.gov.uk/doc/local-authority/00DA,Leeds City Council,City Development,Libraries Arts & Heritage,Supplies and Services,Books & Audio-Visual Materials,206,18/11/2011,1112-00545,456.32,R,Audiogo Ltd
http://statistics.data.gov.uk/doc/local-authority/00DA,Leeds City Council,City Development,Libraries Arts & Heritage,Supplies and Services,Books & Audio-Visual Materials,206,18/11/2011,1112-00546,690.25,R,Audiogo Ltd
http://statistics.data.gov.uk/doc/local-authority/00DA,Leeds City Council,City Development,Libraries Arts & Heritage,Supplies and Services,Books & Audio-Visual Materials,206,22/11/2011,1112-00547,852.61,R,Audiogo Ltd
http://statistics.data.gov.uk/doc/local-authority/00DA,Leeds City Council,City Development,Libraries Arts & Heritage,Supplies and Services,Books & Audio-Visual Materials,206,23/11/2011,1112-00548,805.40,R,Audiogo Ltd
http://statistics.data.gov.uk/doc/local-authority/00DA,Leeds City Council,City Development,Libraries Arts & Heritage,Supplies and Services,Books & Audio-Visual Materials,206,25/11/2011,1112-00549,530.40,R,Audiogo Ltd
http://statistics.data.gov.uk/doc/local-authority/00DA,Leeds City Council as Accountable Body,Jcs For People With Learning Disabilitie,Jcs For People With Learning Disabilitie,Third Party Payments,Residential,580,23/11/2011,1112-00550,8217.00,R,Autism Care (Uk) Ltd
http://statistics.data.gov.uk/doc/local-authority/00DA,Leeds City Council,Childrens Services,Safeguarding Targeted & Specialist,Third Party Payments,Services Rendered By Other Organisations,511,18/11/2011,1112-00551,583.00,R,Autism Partnership Uk Ltd
http://statistics.data.gov.uk/doc/local-authority/00DA,Leeds City Council,Childrens Services,Safeguarding Targeted & Specialist,Third Party Payments,Services Rendered By Other Organisations,511,18/11/2011,1112-00552,1007.00,R,Autism Partnership Uk Ltd
http://statistics.data.gov.uk/doc/local-authority/00DA,Leeds City Council,Childrens Services,Safeguarding Targeted & Specialist,Third Party Payments,Services Rendered By Other Organisations,511,18/11/2011,1112-00553,1008.00,R,Autism Partnership Uk Ltd
http://statistics.data.gov.uk/doc/local-authority/00DA,Leeds City Council,Childrens Services,Safeguarding Targeted & Specialist,Third Party Payments,Services Rendered By Other Organisations,511,18/11/2011,1112-00554,2955.79,R,Autism Partnership Uk Ltd
http://statistics.data.gov.uk/doc/local-authority/00DA,Leeds City Council,Childrens Services,Safeguarding Targeted & Specialist,Third Party Payments,Services Rendered By Other Organisations,511,18/11/2011,1112-00555,2960.90,R,Autism Partnership Uk Ltd
http://statistics.data.gov.uk/doc/local-authority/00DA,Leeds City Council,Central & Corporate Functions,Benefits,Supplies and Services,Provisions,231,26/10/2011,1112-00556,1544.17,R,Autobar Uk Ltd
http://statistics.data.gov.uk/doc/local-authority/00DA,East - North East,East - North East,Housing Services,Premises,Grounds Maintenance (Closed Landfill),134,01/11/2011,1112-00557,6133.33,R,Avalon
http://statistics.data.gov.uk/doc/local-authority/00DA,Leeds City Council as Accountable Body,Jcs For People With Learning Disabilitie,Jcs For People With Learning Disabilitie,Third Party Payments,Home Care,568,01/11/2011,1112-00558,1332.20,R,Avalon
http://statistics.data.gov.uk/doc/local-authority/00DA,East - North East,East - North East,Construction Services,Supplies and Services,Other Hired And Contracted Services,265,02/11/2011,1112-00559,537.48,R,Avalon
http://statistics.data.gov.uk/doc/local-authority/00DA,East - North East,East - North East,Construction Services,Supplies and Services,Other Hired And Contracted Services,265,04/11/2011,1112-00560,7599.67,R,Avalon
http://statistics.data.gov.uk/doc/local-authority/00DA,Leeds City Council as Accountable Body,Jcs For People With Learning Disabilitie,Jcs For People With Learning Disabilitie,Third Party Payments,Home Care,568,10/11/2011,1112-00561,832.86,R,Avalon
http://statistics.data.gov.uk/doc/local-authority/00DA,Leeds City Council as Accountable Body,Jcs For People With Learning Disabilitie,Jcs For People With Learning Disabilitie,Third Party Payments,Home Care,568,16/11/2011,1112-00562,565.00,R,Avalon
http://statistics.data.gov.uk/doc/local-authority/00DA,Leeds City Council as Accountable Body,Jcs For People With Learning Disabilitie,Jcs For People With Learning Disabilitie,Third Party Payments,Residential,580,09/11/2011,1112-00563,4642.20,R,Avens Ltd
http://statistics.data.gov.uk/doc/local-authority/00DA,East - North East,East - North East,Construction Services,Supplies and Services,Other Materials,205,03/11/2011,1112-00564,1005.00,R,Avocet Hardware Ltd
http://statistics.data.gov.uk/doc/local-authority/00DA,East - North East,East - North East,Construction Services,Supplies and Services,Other Materials,205,03/11/2011,1112-00565,1155.75,R,Avocet Hardware Ltd
http://statistics.data.gov.uk/doc/local-authority/00DA,East - North East,East - North East,Construction Services,Supplies and Services,Other Materials,205,03/11/2011,1112-00566,2010.00,R,Avocet Hardware Ltd
http://statistics.data.gov.uk/doc/local-authority/00DA,East - North East,East - North East,Construction Services,Supplies and Services,Other Materials,205,15/11/2011,1112-00567,-1038.50,R,Avocet Hardware Ltd
http://statistics.data.gov.uk/doc/local-authority/00DA,East - North East,East - North East,Construction Services,Supplies and Services,Other Materials,205,15/11/2011,1112-00568,636.50,R,Avocet Hardware Ltd
http://statistics.data.gov.uk/doc/local-authority/00DA,East - North East,East - North East,Construction Services,Supplies and Services,Other Materials,205,15/11/2011,1112-00569,1842.50,R,Avocet Hardware Ltd
http://statistics.data.gov.uk/doc/local-authority/00DA,East - North East,East - North East,Construction Services,Supplies and Services,Other Materials,205,18/11/2011,1112-00570,532.50,R,Avocet Hardware Ltd
http://statistics.data.gov.uk/doc/local-authority/00DA,East - North East,East - North East,Construction Services,Supplies and Services,Other Materials,205,18/11/2011,1112-00571,532.50,R,Avocet Hardware Ltd
http://statistics.data.gov.uk/doc/local-authority/00DA,East - North East,East - North East,Construction Services,Supplies and Services,Other Materials,205,18/11/2011,1112-00572,2010.00,R,Avocet Hardware Ltd
http://statistics.data.gov.uk/doc/local-authority/00DA,East - North East,East - North East,Construction Services,Supplies and Services,Other Materials,205,25/11/2011,1112-00573,3350.00,R,Avocet Hardware Ltd
http://statistics.data.gov.uk/doc/local-authority/00DA,Leeds City Council as Accountable Body,Jcs For People With Learning Disabilitie,Jcs For People With Learning Disabilitie,Third Party Payments,Residential,580,23/11/2011,1112-00574,4143.32,R,Avon Lodge
http://statistics.data.gov.uk/doc/local-authority/00DA,Leeds City Council,Central & Corporate Functions,Commercial Services Trading Services,Transport,Vehicle Spares,345,18/11/2011,1112-00575,583.60,R,Avs Steps Ltd
http://statistics.data.gov.uk/doc/local-authority/00DA,Leeds City Council,Childrens Services,Learning Skills & Universal,Supplies and Services,Books & Audio-Visual Materials,206,03/11/2011,1112-00576,4225.00,R,Award Scheme Ltd
http://statistics.data.gov.uk/doc/local-authority/00DA,Leeds City Council,City Development,Recreation,Supplies and Services,Other Materials - Cleaning,205,24/10/2011,1112-00577,552.90,R,Awards Centre V/T
http://statistics.data.gov.uk/doc/local-authority/00DA,Leeds City Council,Adult Social Care,Services For Older People - 65 And Over,Third Party Payments,Nursing Home,570,23/11/2011,1112-00578,1221.00,R,Ayresome Court Nursing Home
http://statistics.data.gov.uk/doc/local-authority/00DA,Leeds City Council,Environment & Neighbourhoods,Environmental Health,Capital,Construction,3,03/11/2011,1112-00579,4150.00,C,B & K Passmore
http://statistics.data.gov.uk/doc/local-authority/00DA,Leeds City Council,Environment & Neighbourhoods,Environmental Health,Capital,Construction,3,03/11/2011,1112-00580,10189.40,C,B & K Passmore
http://statistics.data.gov.uk/doc/local-authority/00DA,Leeds City Council,Environment & Neighbourhoods,Environmental Health,Capital,Construction,3,09/11/2011,1112-00581,4150.00,C,B & K Passmore
http://statistics.data.gov.uk/doc/local-authority/00DA,Leeds City Council,Environment & Neighbourhoods,Environmental Health,Capital,Construction,3,10/11/2011,1112-00582,1500.00,C,B & K Passmore
http://statistics.data.gov.uk/doc/local-authority/00DA,Leeds City Council,Environment & Neighbourhoods,Environmental Health,Capital,Construction,3,10/11/2011,1112-00583,4150.00,C,B & K Passmore
http://statistics.data.gov.uk/doc/local-authority/00DA,Leeds City Council,Environment & Neighbourhoods,Environmental Health,Capital,Construction,3,10/11/2011,1112-00584,4150.00,C,B & K Passmore
http://statistics.data.gov.uk/doc/local-authority/00DA,Leeds City Council,Environment & Neighbourhoods,Environmental Health,Capital,Construction,3,10/11/2011,1112-00585,4150.00,C,B & K Passmore
http://statistics.data.gov.uk/doc/local-authority/00DA,Leeds City Council,Environment & Neighbourhoods,Environmental Health,Capital,Construction,3,10/11/2011,1112-00586,4150.00,C,B & K Passmore
http://statistics.data.gov.uk/doc/local-authority/00DA,Leeds City Council,Environment & Neighbourhoods,Environmental Health,Capital,Construction,3,10/11/2011,1112-00587,10831.45,C,B & K Passmore
http://statistics.data.gov.uk/doc/local-authority/00DA,Leeds City Council,Environment & Neighbourhoods,Environmental Health,Capital,Construction,3,16/11/2011,1112-00588,2890.00,C,B & K Passmore
http://statistics.data.gov.uk/doc/local-authority/00DA,Leeds City Council,Environment & Neighbourhoods,Environmental Health,Capital,Construction,3,16/11/2011,1112-00589,4150.00,C,B & K Passmore
http://statistics.data.gov.uk/doc/local-authority/00DA,Leeds City Council,Environment & Neighbourhoods,Environmental Health,Capital,Construction,3,17/11/2011,1112-00590,4150.00,C,B & K Passmore
http://statistics.data.gov.uk/doc/local-authority/00DA,Leeds City Council,Environment & Neighbourhoods,Environmental Health,Capital,Construction,3,17/11/2011,1112-00591,4150.00,C,B & K Passmore
http://statistics.data.gov.uk/doc/local-authority/00DA,Leeds City Council,Environment & Neighbourhoods,Environmental Health,Capital,Construction,3,17/11/2011,1112-00592,4785.10,C,B & K Passmore
http://statistics.data.gov.uk/doc/local-authority/00DA,Leeds City Council,Environment & Neighbourhoods,Environmental Health,Capital,Construction,3,25/11/2011,1112-00593,2890.00,C,B & K Passmore
http://statistics.data.gov.uk/doc/local-authority/00DA,Leeds City Council,Environment & Neighbourhoods,Environmental Health,Capital,Construction,3,25/11/2011,1112-00594,3636.00,C,B & K Passmore
http://statistics.data.gov.uk/doc/local-authority/00DA,Leeds City Council,Environment & Neighbourhoods,Environmental Health,Capital,Construction,3,25/11/2011,1112-00595,4150.00,C,B & K Passmore
http://statistics.data.gov.uk/doc/local-authority/00DA,Leeds City Council,Environment & Neighbourhoods,Environmental Health,Capital,Construction,3,25/11/2011,1112-00596,4150.00,C,B & K Passmore
http://statistics.data.gov.uk/doc/local-authority/00DA,Leeds City Council,Environment & Neighbourhoods,Environmental Health,Capital,Construction,3,25/11/2011,1112-00597,4772.50,C,B & K Passmore
http://statistics.data.gov.uk/doc/local-authority/00DA,Leeds City Council,Environment & Neighbourhoods,Environmental Health,Capital,Construction,3,30/11/2011,1112-00598,3323.50,C,B & K Passmore
http://statistics.data.gov.uk/doc/local-authority/00DA,Leeds City Council,Environment & Neighbourhoods,Environmental Health,Capital,Construction,3,30/11/2011,1112-00599,4150.00,C,B & K Passmore
http://statistics.data.gov.uk/doc/local-authority/00DA,Leeds City Council,Environment & Neighbourhoods,Environmental Health,Capital,Construction,3,30/11/2011,1112-00600,4675.00,C,B & K Passmore
http://statistics.data.gov.uk/doc/local-authority/00DA,Leeds City Council,Environment & Neighbourhoods,Health & Environmental Action,Income,Admissions Booking Fees & Ticket Sales,933,30/11/2011,1112-00601,-433.50,R,B & K Passmore
http://statistics.data.gov.uk/doc/local-authority/00DA,Leeds City Council,City Development,Libraries Arts & Heritage,Supplies and Services,Publication And Promotion,267,18/11/2011,1112-00602,600.00,R,B2b Marcomms
http://statistics.data.gov.uk/doc/local-authority/00DA,West - North West,West - North West,Customer And Tenancy,Employees,Temporary Staff-Basic,009,03/11/2011,1112-00603,525.75,R,Badenoch & Clark Ltd
http://statistics.data.gov.uk/doc/local-authority/00DA,West - North West,West - North West,Customer And Tenancy,Employees,Temporary Staff-Basic,009,03/11/2011,1112-00604,620.86,R,Badenoch & Clark Ltd
http://statistics.data.gov.uk/doc/local-authority/00DA,West - North West,West - North West,Customer And Tenancy,Employees,Temporary Staff-Basic,009,03/11/2011,1112-00605,724.46,R,Badenoch & Clark Ltd
http://statistics.data.gov.uk/doc/local-authority/00DA,West - North West,West - North West,Customer And Tenancy,Employees,Temporary Staff-Basic,009,03/11/2011,1112-00606,724.46,R,Badenoch & Clark Ltd
http://statistics.data.gov.uk/doc/local-authority/00DA,West - North West,West - North West,Customer And Tenancy,Employees,Temporary Staff-Basic,009,04/11/2011,1112-00607,829.91,R,Badenoch & Clark Ltd
http://statistics.data.gov.uk/doc/local-authority/00DA,West - North West,West - North West,Customer And Tenancy,Employees,Temporary Staff-Basic,009,07/11/2011,1112-00608,486.62,R,Badenoch & Clark Ltd
http://statistics.data.gov.uk/doc/local-authority/00DA,West - North West,West - North West,Customer And Tenancy,Employees,Temporary Staff-Basic,009,09/11/2011,1112-00609,620.86,R,Badenoch & Clark Ltd
http://statistics.data.gov.uk/doc/local-authority/00DA,West - North West,West - North West,Customer And Tenancy,Employees,Temporary Staff-Basic,009,09/11/2011,1112-00610,620.86,R,Badenoch & Clark Ltd
http://statistics.data.gov.uk/doc/local-authority/00DA,West - North West,West - North West,Customer And Tenancy,Employees,Temporary Staff-Basic,009,09/11/2011,1112-00611,620.86,R,Badenoch & Clark Ltd
http://statistics.data.gov.uk/doc/local-authority/00DA,West - North West,West - North West,Customer And Tenancy,Employees,Temporary Staff-Basic,009,09/11/2011,1112-00612,724.46,R,Badenoch & Clark Ltd
http://statistics.data.gov.uk/doc/local-authority/00DA,West - North West,West - North West,Customer And Tenancy,Employees,Temporary Staff-Basic,009,11/11/2011,1112-00613,620.86,R,Badenoch & Clark Ltd
http://statistics.data.gov.uk/doc/local-authority/00DA,West - North West,West - North West,Customer And Tenancy,Employees,Temporary Staff-Basic,009,11/11/2011,1112-00614,620.86,R,Badenoch & Clark Ltd
http://statistics.data.gov.uk/doc/local-authority/00DA,West - North West,West - North West,Customer And Tenancy,Employees,Temporary Staff-Basic,009,11/11/2011,1112-00615,829.91,R,Badenoch & Clark Ltd
http://statistics.data.gov.uk/doc/local-authority/00DA,West - North West,West - North West,Customer And Tenancy,Employees,Temporary Staff-Basic,009,17/11/2011,1112-00616,620.86,R,Badenoch & Clark Ltd
http://statistics.data.gov.uk/doc/local-authority/00DA,West - North West,West - North West,Customer And Tenancy,Employees,Temporary Staff-Basic,009,17/11/2011,1112-00617,724.46,R,Badenoch & Clark Ltd
http://statistics.data.gov.uk/doc/local-authority/00DA,West - North West,West - North West,Customer And Tenancy,Employees,Temporary Staff-Basic,009,18/11/2011,1112-00618,604.08,R,Badenoch & Clark Ltd
http://statistics.data.gov.uk/doc/local-authority/00DA,West - North West,West - North West,Customer And Tenancy,Employees,Temporary Staff-Basic,009,18/11/2011,1112-00619,604.08,R,Badenoch & Clark Ltd
http://statistics.data.gov.uk/doc/local-authority/00DA,West - North West,West - North West,Customer And Tenancy,Employees,Temporary Staff-Basic,009,18/11/2011,1112-00620,625.06,R,Badenoch & Clark Ltd
http://statistics.data.gov.uk/doc/local-authority/00DA,West - North West,West - North West,Customer And Tenancy,Employees,Temporary Staff-Basic,009,23/11/2011,1112-00621,629.25,R,Badenoch & Clark Ltd
http://statistics.data.gov.uk/doc/local-authority/00DA,West - North West,West - North West,Customer And Tenancy,Employees,Temporary Staff-Basic,009,23/11/2011,1112-00622,724.46,R,Badenoch & Clark Ltd
http://statistics.data.gov.uk/doc/local-authority/00DA,West - North West,West - North West,Customer And Tenancy,Employees,Temporary Staff-Basic,009,23/11/2011,1112-00623,829.91,R,Badenoch & Clark Ltd
http://statistics.data.gov.uk/doc/local-authority/00DA,West - North West,West - North West,Customer And Tenancy,Employees,Temporary Staff-Basic,009,25/11/2011,1112-00624,518.74,R,Badenoch & Clark Ltd
http://statistics.data.gov.uk/doc/local-authority/00DA,West - North West,West - North West,Customer And Tenancy,Employees,Temporary Staff-Basic,009,25/11/2011,1112-00625,518.74,R,Badenoch & Clark Ltd
http://statistics.data.gov.uk/doc/local-authority/00DA,West - North West,West - North West,Customer And Tenancy,Employees,Temporary Staff-Basic,009,25/11/2011,1112-00626,518.74,R,Badenoch & Clark Ltd
http://statistics.data.gov.uk/doc/local-authority/00DA,West - North West,West - North West,Customer And Tenancy,Employees,Temporary Staff-Basic,009,25/11/2011,1112-00627,518.74,R,Badenoch & Clark Ltd
http://statistics.data.gov.uk/doc/local-authority/00DA,West - North West,West - North West,Customer And Tenancy,Employees,Temporary Staff-Basic,009,25/11/2011,1112-00628,518.74,R,Badenoch & Clark Ltd
http://statistics.data.gov.uk/doc/local-authority/00DA,West - North West,West - North West,Customer And Tenancy,Employees,Temporary Staff-Basic,009,25/11/2011,1112-00629,525.75,R,Badenoch & Clark Ltd
http://statistics.data.gov.uk/doc/local-authority/00DA,West - North West,West - North West,Customer And Tenancy,Employees,Temporary Staff-Basic,009,25/11/2011,1112-00630,570.52,R,Badenoch & Clark Ltd
http://statistics.data.gov.uk/doc/local-authority/00DA,West - North West,West - North West,Customer And Tenancy,Employees,Temporary Staff-Basic,009,25/11/2011,1112-00631,620.86,R,Badenoch & Clark Ltd
http://statistics.data.gov.uk/doc/local-authority/00DA,West - North West,West - North West,Customer And Tenancy,Employees,Temporary Staff-Basic,009,29/11/2011,1112-00632,434.62,R,Badenoch & Clark Ltd
http://statistics.data.gov.uk/doc/local-authority/00DA,West - North West,West - North West,Customer And Tenancy,Employees,Temporary Staff-Basic,009,29/11/2011,1112-00633,717.76,R,Badenoch & Clark Ltd
http://statistics.data.gov.uk/doc/local-authority/00DA,West - North West,West - North West,Customer And Tenancy,Employees,Temporary Staff-Basic,009,30/11/2011,1112-00634,724.46,R,Badenoch & Clark Ltd
http://statistics.data.gov.uk/doc/local-authority/00DA,Leeds City Council,City Development,Libraries Arts & Heritage,Precepts,Art Galleries Total Stores,003,11/11/2011,1112-00635,456.50,R,Baker & Taylor (Uk) Ltd
http://statistics.data.gov.uk/doc/local-authority/00DA,Leeds City Council,City Development,Libraries Arts & Heritage,Precepts,Art Galleries Total Stores,003,11/11/2011,1112-00636,467.96,R,Baker & Taylor (Uk) Ltd
http://statistics.data.gov.uk/doc/local-authority/00DA,Leeds City Council,City Development,Libraries Arts & Heritage,Precepts,Art Galleries Total Stores,003,11/11/2011,1112-00637,508.77,R,Baker & Taylor (Uk) Ltd
http://statistics.data.gov.uk/doc/local-authority/00DA,Leeds City Council,City Development,Libraries Arts & Heritage,Precepts,Art Galleries Total Stores,003,11/11/2011,1112-00638,829.70,R,Baker & Taylor (Uk) Ltd
http://statistics.data.gov.uk/doc/local-authority/00DA,Leeds City Council,City Development,Libraries Arts & Heritage,Precepts,Art Galleries Total Stores,003,11/11/2011,1112-00639,853.45,R,Baker & Taylor (Uk) Ltd
http://statistics.data.gov.uk/doc/local-authority/00DA,Leeds City Council,City Development,Recreation,Transport,Hire of movable plant and machinery,315,06/10/2011,1112-00640,1900.00,R,Balmers Garden
http://statistics.data.gov.uk/doc/local-authority/00DA,Leeds City Council,City Development,Recreation,Transport,Hire of movable plant and machinery,315,28/10/2011,1112-00641,1392.00,R,Balmers Garden
http://statistics.data.gov.uk/doc/local-authority/00DA,Leeds City Council,City Development,Recreation,Transport,Hire of movable plant and machinery,315,28/10/2011,1112-00642,1042.80,R,Balmers Garden
http://statistics.data.gov.uk/doc/local-authority/00DA,Leeds City Council,City Development,Recreation,Transport,Plant Spares,346,02/11/2011,1112-00643,972.08,R,Balmers Garden Machinery
http://statistics.data.gov.uk/doc/local-authority/00DA,Leeds City Council,City Development,Recreation,Transport,Plant Spares,346,25/11/2011,1112-00644,1225.86,R,Balmers Garden Machinery
http://statistics.data.gov.uk/doc/local-authority/00DA,Leeds City Council,Childrens Services,Safeguarding Targeted & Specialist,Third Party Payments,Services Rendered By Voluntary Sector,505,03/11/2011,1112-00645,14000.00,R,Barca Leeds
http://statistics.data.gov.uk/doc/local-authority/00DA,Leeds City Council,Childrens Services,Learning Skills & Universal,Third Party Payments,Services Rendered By Voluntary Sector,505,08/11/2011,1112-00646,6367.50,R,Barca Leeds
http://statistics.data.gov.uk/doc/local-authority/00DA,Leeds City Council,Childrens Services,Safeguarding Targeted & Specialist,Supplies and Services,General Amenity For Clients/Residents,285,18/11/2011,1112-00647,1911.00,R,Barca Leeds
http://statistics.data.gov.uk/doc/local-authority/00DA,Leeds City Council,Strategic Accounts,Miscellaneous,Supplies and Services,Non-Recurring Grants,227,25/11/2011,1112-00648,500.00,R,Bardsey Parish Council
http://statistics.data.gov.uk/doc/local-authority/00DA,Leeds City Council,Childrens Services,Partnership Development & Leadership,Third Party Payments,Services Rendered By Voluntary Sector,505,08/11/2011,1112-00649,28550.84,R,Barnardo Services Ltd
http://statistics.data.gov.uk/doc/local-authority/00DA,Leeds City Council,Adult Social Care,Services For Adults Under 65 Mental/Dis,Third Party Payments,Payments To Voluntary Organisations,561,18/11/2011,1112-00650,26063.00,R,Barnardo Services Ltd
http://statistics.data.gov.uk/doc/local-authority/00DA,Leeds City Council,Childrens Services,Safeguarding Targeted & Specialist,Third Party Payments,Services Rendered By Voluntary Sector,505,18/11/2011,1112-00651,8722.00,R,Barnardo Services Ltd
http://statistics.data.gov.uk/doc/local-authority/00DA,Leeds City Council,Childrens Services,Learning Skills & Universal,Third Party Payments,Services Rendered By Voluntary Sector,505,18/11/2011,1112-00652,4139.50,R,Barnardos Yorkshire
http://statistics.data.gov.uk/doc/local-authority/00DA,Leeds City Council,Childrens Services,Safeguarding Targeted & Specialist,Third Party Payments,Payments To Voluntary Organisations,561,18/11/2011,1112-00653,7500.00,R,Barnardos Yorkshire
http://statistics.data.gov.uk/doc/local-authority/00DA,Leeds City Council,City Development,Recreation,Supplies and Services,Other Hired And Contracted Services,265,03/11/2011,1112-00654,2700.00,R,Barnsley Mbc
http://statistics.data.gov.uk/doc/local-authority/00DA,Leeds City Council,Environment & Neighbourhoods,Statutory Housing,Income,Admissions Booking Fees & Ticket Sales,933,11/11/2011,1112-00655,-6657.33,R,Barnsley Mbc
http://statistics.data.gov.uk/doc/local-authority/00DA,Leeds City Council,Environment & Neighbourhoods,Statutory Housing,Supplies and Services,Other Income,973,11/11/2011,1112-00656,-3012.00,R,Barnsley Mbc
http://statistics.data.gov.uk/doc/local-authority/00DA,Leeds City Council,Environment & Neighbourhoods,Statutory Housing,Transport,Public Transport Expenses,310,16/11/2011,1112-00657,589.50,R,Barnsley Mbc
http://statistics.data.gov.uk/doc/local-authority/00DA,Leeds City Council,Environment & Neighbourhoods,Statutory Housing,Income,Admissions Booking Fees & Ticket Sales,933,16/11/2011,1112-00658,-6657.33,R,Barnsley Mbc
http://statistics.data.gov.uk/doc/local-authority/00DA,Leeds City Council,City Development,Recreation,Supplies and Services,Food & Drink,231,04/11/2011,1112-00659,1590.00,R,Barretts Of Cookridge
http://statistics.data.gov.uk/doc/local-authority/00DA,Leeds City Council,City Development,Recreation,Supplies and Services,Advertising,211,04/11/2011,1112-00660,5580.00,R,Bauer Radio Ltd
http://statistics.data.gov.uk/doc/local-authority/00DA,Leeds City Council,City Development,Recreation,Supplies and Services,Advertising,211,09/11/2011,1112-00661,1000.00,R,Bauer Radio Ltd
http://statistics.data.gov.uk/doc/local-authority/00DA,Leeds City Council,City Development,Recreation,Transport,Fuel (Non LCC Supplies),321,02/11/2011,1112-00662,978.45,R,Bayford Oil
http://statistics.data.gov.uk/doc/local-authority/00DA,Leeds City Council,City Development,Recreation,Transport,Fuel (Non LCC Supplies),321,02/11/2011,1112-00663,985.82,R,Bayford Oil
http://statistics.data.gov.uk/doc/local-authority/00DA,Leeds City Council,City Development,Recreation,Transport,Fuel (Non LCC Supplies),321,02/11/2011,1112-00664,1956.35,R,Bayford Oil
http://statistics.data.gov.uk/doc/local-authority/00DA,Leeds City Council,Central & Corporate Functions,Commercial Services Trading Services,Transport,Fuel (Non LCC Supplies),321,04/11/2011,1112-00665,2607.60,R,Bayford Oil
http://statistics.data.gov.uk/doc/local-authority/00DA,Leeds City Council,Central & Corporate Functions,Commercial Services Trading Services,Transport,Fuel (Non LCC Supplies),321,04/11/2011,1112-00666,11233.00,R,Bayford Oil
http://statistics.data.gov.uk/doc/local-authority/00DA,Leeds City Council,Central & Corporate Functions,Commercial Services Trading Services,Transport,Fuel (Non LCC Supplies),321,04/11/2011,1112-00667,16834.50,R,Bayford Oil
http://statistics.data.gov.uk/doc/local-authority/00DA,Leeds City Council,Central & Corporate Functions,Commercial Services Trading Services,Transport,Fuel (Non LCC Supplies),321,04/11/2011,1112-00668,30249.22,R,Bayford Oil
http://statistics.data.gov.uk/doc/local-authority/00DA,Leeds City Council,City Development,Recreation,Transport,Fuel (Non LCC Supplies),321,04/11/2011,1112-00669,4386.00,R,Bayford Oil
http://statistics.data.gov.uk/doc/local-authority/00DA,Leeds City Council,Environment & Neighbourhoods,Streetscene Environmental Services,Transport,Fuel (Non LCC Supplies),321,04/11/2011,1112-00670,983.85,R,Bayford Oil
http://statistics.data.gov.uk/doc/local-authority/00DA,Leeds City Council,Central & Corporate Functions,Commercial Services Trading Services,Premises,Plant and Machinery,102,11/11/2011,1112-00671,655.90,R,Bayford Oil
http://statistics.data.gov.uk/doc/local-authority/00DA,Leeds City Council,City Development,Recreation,Transport,Fuel (Non LCC Supplies),321,11/11/2011,1112-00672,968.25,R,Bayford Oil
http://statistics.data.gov.uk/doc/local-authority/00DA,Leeds City Council,City Development,Recreation,Transport,Fuel (Non LCC Supplies),321,11/11/2011,1112-00673,15748.11,R,Bayford Oil
http://statistics.data.gov.uk/doc/local-authority/00DA,Leeds City Council,Central & Corporate Functions,Commercial Services Trading Services,Transport,Fuel (Non LCC Supplies),321,14/11/2011,1112-00674,20102.40,R,Bayford Oil
http://statistics.data.gov.uk/doc/local-authority/00DA,Leeds City Council,City Development,Libraries Arts & Heritage,Premises,Oil,122,14/11/2011,1112-00675,760.80,R,Bayford Oil
http://statistics.data.gov.uk/doc/local-authority/00DA,Leeds City Council,Central & Corporate Functions,Commercial Services Trading Services,Transport,Fuel (Non LCC Supplies),321,16/11/2011,1112-00676,16782.00,R,Bayford Oil
http://statistics.data.gov.uk/doc/local-authority/00DA,Leeds City Council,Central & Corporate Functions,Commercial Services Trading Services,Transport,Fuel (Non LCC Supplies),321,16/11/2011,1112-00677,24569.60,R,Bayford Oil
http://statistics.data.gov.uk/doc/local-authority/00DA,Leeds City Council,Central & Corporate Functions,Commercial Services Trading Services,Transport,Fuel (Non LCC Supplies),321,16/11/2011,1112-00678,30153.60,R,Bayford Oil
http://statistics.data.gov.uk/doc/local-authority/00DA,Leeds City Council,City Development,Recreation,Transport,Fuel (Non LCC Supplies),321,16/11/2011,1112-00679,1311.80,R,Bayford Oil
http://statistics.data.gov.uk/doc/local-authority/00DA,Leeds City Council,Environment & Neighbourhoods,Streetscene Environmental Services,Transport,Fuel (Non LCC Supplies),321,16/11/2011,1112-00680,2657.14,R,Bayford Oil
http://statistics.data.gov.uk/doc/local-authority/00DA,Leeds City Council,Central & Corporate Functions,Commercial Services Trading Services,Transport,Fuel (Non LCC Supplies),321,18/11/2011,1112-00681,1965.30,R,Bayford Oil
http://statistics.data.gov.uk/doc/local-authority/00DA,Leeds City Council,Central & Corporate Functions,Commercial Services Trading Services,Transport,Fuel (Non LCC Supplies),321,18/11/2011,1112-00682,20399.40,R,Bayford Oil
http://statistics.data.gov.uk/doc/local-authority/00DA,Leeds City Council,Central & Corporate Functions,Commercial Services Trading Services,Transport,Fuel (Non LCC Supplies),321,18/11/2011,1112-00683,24932.60,R,Bayford Oil
http://statistics.data.gov.uk/doc/local-authority/00DA,Leeds City Council,City Development,Recreation,Transport,Fuel (Non LCC Supplies),321,18/11/2011,1112-00684,2555.20,R,Bayford Oil
http://statistics.data.gov.uk/doc/local-authority/00DA,Leeds City Council,Environment & Neighbourhoods,Streetscene Environmental Services,Transport,Fuel (Non LCC Supplies),321,18/11/2011,1112-00685,659.10,R,Bayford Oil
http://statistics.data.gov.uk/doc/local-authority/00DA,Leeds City Council,Environment & Neighbourhoods,Streetscene Environmental Services,Transport,Fuel (Non LCC Supplies),321,18/11/2011,1112-00686,983.85,R,Bayford Oil
http://statistics.data.gov.uk/doc/local-authority/00DA,Leeds City Council,Central & Corporate Functions,Commercial Services Trading Services,Transport,Fuel (Non LCC Supplies),321,23/11/2011,1112-00687,33999.00,R,Bayford Oil
http://statistics.data.gov.uk/doc/local-authority/00DA,Leeds City Council,Central & Corporate Functions,Commercial Services Trading Services,Transport,Fuel (Non LCC Supplies),321,25/11/2011,1112-00688,11558.90,R,Bayford Oil
http://statistics.data.gov.uk/doc/local-authority/00DA,Leeds City Council,Central & Corporate Functions,Commercial Services Trading Services,Transport,Fuel (Non LCC Supplies),321,25/11/2011,1112-00689,17256.00,R,Bayford Oil
http://statistics.data.gov.uk/doc/local-authority/00DA,Leeds City Council,City Development,Recreation,Transport,Fuel (Non LCC Supplies),321,29/11/2011,1112-00690,4355.34,R,Bayford Oil
http://statistics.data.gov.uk/doc/local-authority/00DA,Leeds City Council,Environment & Neighbourhoods,Streetscene Environmental Services,Supplies and Services,Operational Furniture And Equipment,203,29/11/2011,1112-00691,864.16,R,Bayford Oil
http://statistics.data.gov.uk/doc/local-authority/00DA,Leeds City Council,Adult Social Care,Services For Older People Under 65 P/Dis,Third Party Payments,Residential,580,23/11/2011,1112-00692,7984.00,R,Baylis Place
http://statistics.data.gov.uk/doc/local-authority/00DA,Leeds City Council,Central & Corporate Functions,Commercial Services Trading Services,Premises,Cleaning Maintenance & Toiletries,127,03/11/2011,1112-00693,437.92,R,Bbn Fastnet
http://statistics.data.gov.uk/doc/local-authority/00DA,Leeds City Council,Childrens Services,Safeguarding Targeted & Specialist,Supplies and Services,Operational Furniture And Equipment,203,25/11/2011,1112-00694,1912.00,R,Bct Outdoors Limited
http://statistics.data.gov.uk/doc/local-authority/00DA,East - North East,East - North East,Construction Services,Supplies and Services,Other Materials,205,18/11/2011,1112-00695,425.00,R,Be Modern Ltd
http://statistics.data.gov.uk/doc/local-authority/00DA,Leeds City Council,Central & Corporate Functions,Information Technology,Supplies and Services,Networks Dept Orders - Expenditure,090,04/11/2011,1112-00696,709.00,R,Beacon Communication Technology (North)
http://statistics.data.gov.uk/doc/local-authority/00DA,Leeds City Council,Central & Corporate Functions,Information Technology,Supplies and Services,Networks Dept Orders - Expenditure,090,04/11/2011,1112-00697,1064.00,R,Beacon Communication Technology (North)
http://statistics.data.gov.uk/doc/local-authority/00DA,Leeds City Council,Central & Corporate Functions,Information Technology,Supplies and Services,Telephones,213,04/11/2011,1112-00698,455.30,R,Beacon Communication Technology (North)
http://statistics.data.gov.uk/doc/local-authority/00DA,Leeds City Council,City Development,Libraries Arts & Heritage,Supplies and Services,Telephones,213,16/11/2011,1112-00699,1500.00,R,Beacon Communication Technology (North)
http://statistics.data.gov.uk/doc/local-authority/00DA,Leeds City Council,Central & Corporate Functions,Information Technology,Supplies and Services,Networks Dept Orders - Expenditure,090,17/11/2011,1112-00700,1025.00,R,Beacon Communication Technology (North)
http://statistics.data.gov.uk/doc/local-authority/00DA,Leeds City Council,Central & Corporate Functions,Information Technology,Supplies and Services,Telephones,213,18/11/2011,1112-00701,460.70,R,Beacon Communication Technology (North)
http://statistics.data.gov.uk/doc/local-authority/00DA,Leeds City Council,Central & Corporate Functions,Information Technology,Supplies and Services,Networks Dept Orders - Expenditure,090,24/11/2011,1112-00702,1725.00,R,Beacon Communication Technology (North)
http://statistics.data.gov.uk/doc/local-authority/00DA,Leeds City Council,Central & Corporate Functions,Information Technology,Supplies and Services,Telephones,213,25/11/2011,1112-00703,425.00,R,Beacon Communication Technology (North)
http://statistics.data.gov.uk/doc/local-authority/00DA,Leeds City Council,Adult Social Care,Services For Older People - 65 And Over,Third Party Payments,Residential,580,23/11/2011,1112-00704,1225.00,R,Beech Lodge Residential Home
http://statistics.data.gov.uk/doc/local-authority/00DA,Leeds City Council as Accountable Body,Jcs For People With Learning Disabilitie,Jcs For People With Learning Disabilitie,Third Party Payments,Other Agency Services,561,10/11/2011,1112-00705,2500.00,R,Beeston Action For Families
http://statistics.data.gov.uk/doc/local-authority/00DA,Leeds City Council,City Development,Recreation,Supplies and Services,Operational Furniture And Equipment,203,23/11/2011,1112-00706,2485.00,R,Bee-Tee Products
http://statistics.data.gov.uk/doc/local-authority/00DA,Leeds City Council,Environment & Neighbourhoods,Strategy & Commissioning,Third Party Payments,Supporting Ppl - Block Gross Chargeable,514,07/11/2011,1112-00707,12947.81,R,Behind Closed Doors (Bcd)
http://statistics.data.gov.uk/doc/local-authority/00DA,Leeds City Council,Environment & Neighbourhoods,Strategy & Commissioning,Supplies and Services,Non-Recurring Grants,227,15/11/2011,1112-00708,2130.00,R,Behind Closed Doors (Bcd)
http://statistics.data.gov.uk/doc/local-authority/00DA,Leeds City Council,Adult Social Care,Services For Older People - 65 And Over,Third Party Payments,Nursing Home,570,24/11/2011,1112-00709,1355.36,R,Belle Green Court Care Home
http://statistics.data.gov.uk/doc/local-authority/00DA,Leeds City Council,Environment & Neighbourhoods,Strategy & Commissioning,Third Party Payments,Supporting People - Block Subsidy,513,07/11/2011,1112-00710,1430.24,R,Belle Isle Tenant Management
http://statistics.data.gov.uk/doc/local-authority/00DA,Leeds City Council,Environment & Neighbourhoods,Strategy & Commissioning,Third Party Payments,Supporting Ppl - Block Gross Chargeable,514,07/11/2011,1112-00711,2755.24,R,Belle Isle Tenant Management
http://statistics.data.gov.uk/doc/local-authority/00DA,Leeds City Council,Environment & Neighbourhoods,Strategy & Commissioning,Third Party Payments,Supporting Ppl - Block Gross Chargeable,514,07/11/2011,1112-00712,3188.78,R,Belle Isle Tenant Management
http://statistics.data.gov.uk/doc/local-authority/00DA,Leeds City Council,Adult Social Care,Services For Older People - 65 And Over,Third Party Payments,Residential,580,23/11/2011,1112-00713,954.68,R,Belvedere Residential Home
http://statistics.data.gov.uk/doc/local-authority/00DA,Leeds City Council,City Development,Recreation,Supplies and Services,Operational Materials,205,03/11/2011,1112-00714,580.00,R,Bemrosebooth Paragon Ltd
http://statistics.data.gov.uk/doc/local-authority/00DA,Leeds City Council,Adult Social Care,Other Adult Services,Third Party Payments,Residential - Drugs & Alcohol,583,23/11/2011,1112-00715,1884.97,R,Bennett House
http://statistics.data.gov.uk/doc/local-authority/00DA,Leeds City Council,Adult Social Care,Services For Older People - 65 And Over,Third Party Payments,Nursing Home,570,23/11/2011,1112-00716,5497.07,R,Berkley Court
http://statistics.data.gov.uk/doc/local-authority/00DA,Leeds City Council,Adult Social Care,Services For Older People - 65 And Over,Third Party Payments,Residential Care Emi,571,23/11/2011,1112-00717,28192.16,R,Berkley Court
http://statistics.data.gov.uk/doc/local-authority/00DA,Leeds City Council,Adult Social Care,Services For Older People - 65 And Over,Third Party Payments,Residential,580,23/11/2011,1112-00718,24595.96,R,Berkley Court
http://statistics.data.gov.uk/doc/local-authority/00DA,Leeds City Council,Environment & Neighbourhoods,Belle Isle,Capital,Construction,3,25/11/2011,1112-00719,25563.75,C,Bermar Building Company Ltd
http://statistics.data.gov.uk/doc/local-authority/00DA,Leeds City Council,Childrens Services,Safeguarding Targeted & Specialist,Employees,Agency Staff,008,03/11/2011,1112-00720,1600.00,R,Berrybrown Ltd
http://statistics.data.gov.uk/doc/local-authority/00DA,Leeds City Council,Childrens Services,Safeguarding Targeted & Specialist,Employees,Agency Staff,008,10/11/2011,1112-00721,1600.00,R,Berrybrown Ltd
http://statistics.data.gov.uk/doc/local-authority/00DA,Leeds City Council,Childrens Services,Safeguarding Targeted & Specialist,Employees,Agency Staff,008,25/11/2011,1112-00722,1600.00,R,Berrybrown Ltd
http://statistics.data.gov.uk/doc/local-authority/00DA,Leeds City Council,Childrens Services,Safeguarding Targeted & Specialist,Support Services,Legal Disbursements,411,16/11/2011,1112-00723,904.50,R,Berrymans Lace Mawer
http://statistics.data.gov.uk/doc/local-authority/00DA,Leeds City Council,Insurance,Insurance,Support Services,Legal Disbursements,411,23/11/2011,1112-00724,1327.40,R,Berrymans Lace Mawer
http://statistics.data.gov.uk/doc/local-authority/00DA,Leeds City Council,Insurance,Insurance,Support Services,Legal Disbursements,411,23/11/2011,1112-00725,29487.45,R,Berrymans Lace Mawer
http://statistics.data.gov.uk/doc/local-authority/00DA,Leeds City Council,Adult Social Care,Services For Older People - 65 And Over,Third Party Payments,Residential Care Emi,571,23/11/2011,1112-00726,1760.92,R,Bethel House
http://statistics.data.gov.uk/doc/local-authority/00DA,Leeds City Council,Central & Corporate Functions,Commercial Services Trading Services,Supplies and Services,Food & Drink,231,30/11/2011,1112-00727,421.60,R,Beverages Direct Ltd
http://statistics.data.gov.uk/doc/local-authority/00DA,Leeds City Council,Adult Social Care,Services For Older People - 65 And Over,Third Party Payments,Nursing Care Emi,574,23/11/2011,1112-00728,1728.00,R,Bewick Lodge
http://statistics.data.gov.uk/doc/local-authority/00DA,Leeds City Council,Environment & Neighbourhoods,Streetscene Environmental Services,Supplies and Services,Recycling & Reuse Charges,234,02/11/2011,1112-00729,1676.13,R,Biffa Waste Services Ltd
http://statistics.data.gov.uk/doc/local-authority/00DA,Leeds City Council,Environment & Neighbourhoods,Streetscene Environmental Services,Supplies and Services,Waste Disposal Charges,236,02/11/2011,1112-00730,6265.04,R,Biffa Waste Services Ltd
http://statistics.data.gov.uk/doc/local-authority/00DA,Leeds City Council,Environment & Neighbourhoods,Streetscene Environmental Services,Supplies and Services,Waste Disposal Charges,236,02/11/2011,1112-00731,81779.49,R,Biffa Waste Services Ltd
http://statistics.data.gov.uk/doc/local-authority/00DA,Leeds City Council,Environment & Neighbourhoods,Streetscene Environmental Services,Supplies and Services,Waste Disposal Charges,236,02/11/2011,1112-00732,70359.57,R,Biffa Waste Services Ltd
http://statistics.data.gov.uk/doc/local-authority/00DA,Leeds City Council,Environment & Neighbourhoods,Streetscene Environmental Services,Supplies and Services,Recycling & Reuse Charges,234,03/11/2011,1112-00733,1748.00,R,Biffa Waste Services Ltd
http://statistics.data.gov.uk/doc/local-authority/00DA,Leeds City Council,Environment & Neighbourhoods,Streetscene Environmental Services,Supplies and Services,Waste Disposal Charges,236,03/11/2011,1112-00734,4862.03,R,Biffa Waste Services Ltd
http://statistics.data.gov.uk/doc/local-authority/00DA,Leeds City Council,Environment & Neighbourhoods,Streetscene Environmental Services,Supplies and Services,Waste Disposal Charges,236,03/11/2011,1112-00735,71572.95,R,Biffa Waste Services Ltd
http://statistics.data.gov.uk/doc/local-authority/00DA,Leeds City Council,Environment & Neighbourhoods,Streetscene Environmental Services,Supplies and Services,Waste Disposal Charges,236,03/11/2011,1112-00736,79961.60,R,Biffa Waste Services Ltd
http://statistics.data.gov.uk/doc/local-authority/00DA,Leeds City Council,Environment & Neighbourhoods,Streetscene Environmental Services,Supplies and Services,Recycling & Reuse Charges,234,16/11/2011,1112-00737,977.88,R,Biffa Waste Services Ltd
http://statistics.data.gov.uk/doc/local-authority/00DA,Leeds City Council,Environment & Neighbourhoods,Streetscene Environmental Services,Supplies and Services,Recycling & Reuse Charges,234,16/11/2011,1112-00738,1870.50,R,Biffa Waste Services Ltd
http://statistics.data.gov.uk/doc/local-authority/00DA,Leeds City Council,Environment & Neighbourhoods,Streetscene Environmental Services,Supplies and Services,Waste Disposal Charges,236,16/11/2011,1112-00739,5797.91,R,Biffa Waste Services Ltd
http://statistics.data.gov.uk/doc/local-authority/00DA,Leeds City Council,Environment & Neighbourhoods,Streetscene Environmental Services,Supplies and Services,Waste Disposal Charges,236,16/11/2011,1112-00740,71854.60,R,Biffa Waste Services Ltd
http://statistics.data.gov.uk/doc/local-authority/00DA,Leeds City Council,Environment & Neighbourhoods,Streetscene Environmental Services,Supplies and Services,Waste Disposal Charges,236,16/11/2011,1112-00741,77310.56,R,Biffa Waste Services Ltd
http://statistics.data.gov.uk/doc/local-authority/00DA,Leeds City Council,Environment & Neighbourhoods,Streetscene Environmental Services,Supplies and Services,Waste Disposal Charges,236,16/11/2011,1112-00742,73411.04,R,Biffa Waste Services Ltd
http://statistics.data.gov.uk/doc/local-authority/00DA,Leeds City Council,Environment & Neighbourhoods,Streetscene Environmental Services,Supplies and Services,Waste Disposal Charges,236,16/11/2011,1112-00743,81297.37,R,Biffa Waste Services Ltd
http://statistics.data.gov.uk/doc/local-authority/00DA,Leeds City Council,Environment & Neighbourhoods,Streetscene Environmental Services,Supplies and Services,Waste Disposal Charges,236,21/11/2011,1112-00744,5348.89,R,Biffa Waste Services Ltd
http://statistics.data.gov.uk/doc/local-authority/00DA,Leeds City Council,Environment & Neighbourhoods,Streetscene Environmental Services,Supplies and Services,Recycling & Reuse Charges,234,22/11/2011,1112-00745,1134.13,R,Biffa Waste Services Ltd
http://statistics.data.gov.uk/doc/local-authority/00DA,Leeds City Council,Environment & Neighbourhoods,Streetscene Environmental Services,Supplies and Services,Waste Disposal Charges,236,22/11/2011,1112-00746,4738.68,R,Biffa Waste Services Ltd
http://statistics.data.gov.uk/doc/local-authority/00DA,Leeds City Council,Environment & Neighbourhoods,Streetscene Environmental Services,Supplies and Services,Waste Disposal Charges,236,22/11/2011,1112-00747,65480.12,R,Biffa Waste Services Ltd
http://statistics.data.gov.uk/doc/local-authority/00DA,Leeds City Council,Environment & Neighbourhoods,Streetscene Environmental Services,Supplies and Services,Waste Disposal Charges,236,22/11/2011,1112-00748,83721.00,R,Biffa Waste Services Ltd
http://statistics.data.gov.uk/doc/local-authority/00DA,Leeds City Council,Environment & Neighbourhoods,Streetscene Environmental Services,Supplies and Services,Recycling & Reuse Charges,234,30/11/2011,1112-00749,1538.75,R,Biffa Waste Services Ltd
http://statistics.data.gov.uk/doc/local-authority/00DA,Leeds City Council,Environment & Neighbourhoods,Streetscene Environmental Services,Supplies and Services,Waste Disposal Charges,236,30/11/2011,1112-00750,5391.65,R,Biffa Waste Services Ltd
http://statistics.data.gov.uk/doc/local-authority/00DA,Leeds City Council,Environment & Neighbourhoods,Streetscene Environmental Services,Supplies and Services,Waste Disposal Charges,236,30/11/2011,1112-00751,59778.20,R,Biffa Waste Services Ltd
http://statistics.data.gov.uk/doc/local-authority/00DA,Leeds City Council,Environment & Neighbourhoods,Streetscene Environmental Services,Supplies and Services,Waste Disposal Charges,236,30/11/2011,1112-00752,81664.04,R,Biffa Waste Services Ltd
http://statistics.data.gov.uk/doc/local-authority/00DA,East - North East,East - North East,Construction Services,Supplies and Services,Other Materials,205,04/11/2011,1112-00753,484.56,R,Bilbeck (Merchants) Ltd
http://statistics.data.gov.uk/doc/local-authority/00DA,East - North East,East - North East,Construction Services,Supplies and Services,Other Materials,205,04/11/2011,1112-00754,3772.37,R,Bilbeck (Merchants) Ltd
http://statistics.data.gov.uk/doc/local-authority/00DA,East - North East,East - North East,Construction Services,Supplies and Services,Other Materials,205,11/11/2011,1112-00755,-484.56,R,Bilbeck (Merchants) Ltd
http://statistics.data.gov.uk/doc/local-authority/00DA,East - North East,East - North East,Construction Services,Supplies and Services,Other Materials,205,11/11/2011,1112-00756,3450.40,R,Bilbeck (Merchants) Ltd
http://statistics.data.gov.uk/doc/local-authority/00DA,East - North East,East - North East,Construction Services,Supplies and Services,Other Materials,205,18/11/2011,1112-00757,423.98,R,Bilbeck (Merchants) Ltd
http://statistics.data.gov.uk/doc/local-authority/00DA,East - North East,East - North East,Construction Services,Supplies and Services,Other Materials,205,18/11/2011,1112-00758,980.18,R,Bilbeck (Merchants) Ltd
http://statistics.data.gov.uk/doc/local-authority/00DA,East - North East,East - North East,Construction Services,Supplies and Services,Other Materials,205,18/11/2011,1112-00759,1207.90,R,Bilbeck (Merchants) Ltd
http://statistics.data.gov.uk/doc/local-authority/00DA,East - North East,East - North East,Construction Services,Supplies and Services,Other Materials,205,25/11/2011,1112-00760,621.70,R,Bilbeck (Merchants) Ltd
http://statistics.data.gov.uk/doc/local-authority/00DA,East - North East,East - North East,Construction Services,Supplies and Services,Other Materials,205,25/11/2011,1112-00761,844.87,R,Bilbeck (Merchants) Ltd
http://statistics.data.gov.uk/doc/local-authority/00DA,East - North East,East - North East,Construction Services,Supplies and Services,Other Materials,205,25/11/2011,1112-00762,1181.90,R,Bilbeck (Merchants) Ltd
http://statistics.data.gov.uk/doc/local-authority/00DA,East - North East,East - North East,Construction Services,Supplies and Services,Other Materials,205,25/11/2011,1112-00763,2164.60,R,Bilbeck (Merchants) Ltd
http://statistics.data.gov.uk/doc/local-authority/00DA,Leeds City Council,Environment & Neighbourhoods,Regeneration Management,Capital,Construction,3,21/11/2011,1112-00764,3864.00,C,Billing View Community Group
http://statistics.data.gov.uk/doc/local-authority/00DA,West - North West,West - North West,Customer And Tenancy,Supplies and Services,Other Hired And Contracted Services,265,28/11/2011,1112-00765,1075.00,R,Bin Washers Llp
http://statistics.data.gov.uk/doc/local-authority/00DA,Leeds City Council,City Development,Recreation,Transport,Plant Spares,346,03/11/2011,1112-00766,712.46,R,Binson Bearings
http://statistics.data.gov.uk/doc/local-authority/00DA,Leeds City Council,Environment & Neighbourhoods,Streetscene Environmental Services,Supplies and Services,Recycling & Reuse Charges,234,04/11/2011,1112-00767,4623.85,R,Biowise Ltd
http://statistics.data.gov.uk/doc/local-authority/00DA,Leeds City Council,Environment & Neighbourhoods,Streetscene Environmental Services,Supplies and Services,Recycling & Reuse Charges,234,04/11/2011,1112-00768,4698.02,R,Biowise Ltd
http://statistics.data.gov.uk/doc/local-authority/00DA,Leeds City Council,Environment & Neighbourhoods,Streetscene Environmental Services,Supplies and Services,Recycling & Reuse Charges,234,16/11/2011,1112-00769,6136.00,R,Biowise Ltd
http://statistics.data.gov.uk/doc/local-authority/00DA,Leeds City Council,Environment & Neighbourhoods,Streetscene Environmental Services,Supplies and Services,Recycling & Reuse Charges,234,24/11/2011,1112-00770,3838.96,R,Biowise Ltd
http://statistics.data.gov.uk/doc/local-authority/00DA,East - North East,East - North East,Construction Services,Precepts,Stationery & External Printing,210,25/11/2011,1112-00771,624.00,R,Birch Printers (Bradford) Ltd
http://statistics.data.gov.uk/doc/local-authority/00DA,Leeds City Council,Central & Corporate Functions,Commercial Services Trading Services,Supplies and Services,Operational Materials,205,18/11/2011,1112-00772,673.40,R,Bison Bede Limited
http://statistics.data.gov.uk/doc/local-authority/00DA,Leeds City Council,Adult Social Care,Services For Older People - 65 And Over,Third Party Payments,Nursing Home,570,23/11/2011,1112-00773,1100.72,R,Bistre Nursing Home
http://statistics.data.gov.uk/doc/local-authority/00DA,Leeds City Council,City Development,Recreation,Supplies and Services,Subsistence,256,03/10/2011,1112-00774,1217.63,R,BJ Tiantan Hotel Co.Ltd
http://statistics.data.gov.uk/doc/local-authority/00DA,Leeds City Council,City Development,Libraries Arts & Heritage,Supplies and Services,Operational Materials,205,23/11/2011,1112-00775,500.00,R,Blachere Wonderland Illuminations Uk Ltd
http://statistics.data.gov.uk/doc/local-authority/00DA,Leeds City Council,Childrens Services,Learning Skills & Universal,Precepts,Office Consumables,210,02/11/2011,1112-00776,627.32,R,Black & White Consumables Ltd
http://statistics.data.gov.uk/doc/local-authority/00DA,Leeds City Council,Adult Social Care,Other Adult Services,Third Party Payments,Payments To Voluntary Organisations,561,11/11/2011,1112-00777,16000.00,R,Black Health Agency
http://statistics.data.gov.uk/doc/local-authority/00DA,Leeds City Council,Environment & Neighbourhoods,Belle Isle,Capital,Construction,3,02/11/2011,1112-00778,12937.38,C,Blackie Ltd
http://statistics.data.gov.uk/doc/local-authority/00DA,Leeds City Council,Environment & Neighbourhoods,Belle Isle,Capital,Construction,3,24/11/2011,1112-00779,2700.00,C,Blackie Ltd
http://statistics.data.gov.uk/doc/local-authority/00DA,Leeds City Council,City Development,Economic Development,Capital,Other Costs,7,22/11/2011,1112-00780,1646.00,C,Blueberry Marketing Solutions
http://statistics.data.gov.uk/doc/local-authority/00DA,Leeds City Council,City Development,Economic Development,Supplies and Services,Other Hired And Contracted Services,265,30/11/2011,1112-00781,1350.00,R,Blueclaw Media Ltd
http://statistics.data.gov.uk/doc/local-authority/00DA,Leeds City Council,Childrens Services,Learning Skills & Universal,Supplies and Services,Bought In Professional Services,277,30/11/2011,1112-00782,1450.00,R,Boffin Projects Ltd
http://statistics.data.gov.uk/doc/local-authority/00DA,Leeds City Council,Central & Corporate Functions,Commercial Services Trading Services,Supplies and Services,Operational Materials,205,04/11/2011,1112-00783,579.07,R,Boiler & Heating Supplies Ltd
http://statistics.data.gov.uk/doc/local-authority/00DA,Leeds City Council,Central & Corporate Functions,Commercial Services Trading Services,Supplies and Services,Operational Materials,205,04/11/2011,1112-00784,835.00,R,Boiler & Heating Supplies Ltd
http://statistics.data.gov.uk/doc/local-authority/00DA,Leeds City Council,Central & Corporate Functions,Commercial Services Trading Services,Supplies and Services,Operational Materials,205,25/11/2011,1112-00785,464.00,R,Boiler & Heating Supplies Ltd
http://statistics.data.gov.uk/doc/local-authority/00DA,Leeds City Council,Central & Corporate Functions,Commercial Services Trading Services,Supplies and Services,Operational Materials,205,25/11/2011,1112-00786,2450.40,R,Boiler & Heating Supplies Ltd
http://statistics.data.gov.uk/doc/local-authority/00DA,Leeds City Council,City Development,Libraries Arts & Heritage,Supplies and Services,Resaleable Materials,204,03/11/2011,1112-00787,990.00,R,Book Tokens Ltd
http://statistics.data.gov.uk/doc/local-authority/00DA,Leeds City Council,City Development,Libraries Arts & Heritage,Supplies and Services,Books & Audio-Visual Materials,206,02/11/2011,1112-00788,1001.55,R,Books Asia
http://statistics.data.gov.uk/doc/local-authority/00DA,Leeds City Council,City Development,Libraries Arts & Heritage,Supplies and Services,Books & Audio-Visual Materials,206,04/11/2011,1112-00789,998.19,R,Books Asia
http://statistics.data.gov.uk/doc/local-authority/00DA,Leeds City Council,City Development,Libraries Arts & Heritage,Supplies and Services,Books & Audio-Visual Materials,206,04/11/2011,1112-00790,2000.48,R,Books Asia
http://statistics.data.gov.uk/doc/local-authority/00DA,Leeds City Council,Environment & Neighbourhoods,Safer Leeds Drugs Team,Supplies and Services,Other Hired And Contracted Services,265,17/11/2011,1112-00791,1300.00,R,Boots Chemist Uk Ltd
http://statistics.data.gov.uk/doc/local-authority/00DA,Leeds City Council,Environment & Neighbourhoods,Safer Leeds Drugs Team,Supplies and Services,Other Hired And Contracted Services,265,17/11/2011,1112-00792,455.00,R,Boots Stores.Co.Uk
http://statistics.data.gov.uk/doc/local-authority/00DA,Leeds City Council,Environment & Neighbourhoods,Safer Leeds Drugs Team,Supplies and Services,Other Hired And Contracted Services,265,17/11/2011,1112-00793,2850.00,R,Boots The Chemist
http://statistics.data.gov.uk/doc/local-authority/00DA,Leeds City Council,Adult Social Care,Services For Older People - 65 And Over,Third Party Payments,Residential Care Emi,571,23/11/2011,1112-00794,1503.04,R,Boroughbridge Lodge
http://statistics.data.gov.uk/doc/local-authority/00DA,Leeds City Council,Childrens Services,Learning Skills & Universal,Supplies and Services,Catering Service,233,04/11/2011,1112-00795,465.00,R,Boutique Catering Ltd
http://statistics.data.gov.uk/doc/local-authority/00DA,Leeds City Council,City Development,Libraries Arts & Heritage,Supplies and Services,Catering Service,233,25/11/2011,1112-00796,420.00,R,Boutique Catering Ltd
http://statistics.data.gov.uk/doc/local-authority/00DA,Leeds City Council,Central & Corporate Functions,Commercial Services Trading Services,Supplies and Services,Other Hired And Contracted Services,265,04/11/2011,1112-00797,450.00,R,Bps Ltd
http://statistics.data.gov.uk/doc/local-authority/00DA,Leeds City Council,Environment & Neighbourhoods,Strategy & Commissioning,Third Party Payments,Supporting Ppl - Block Gross Chargeable,514,07/11/2011,1112-00798,1100.80,R,Bradford And Northern Housing
http://statistics.data.gov.uk/doc/local-authority/00DA,Leeds City Council as Accountable Body,Jcs For People With Learning Disabilitie,Jcs For People With Learning Disabilitie,Third Party Payments,Home Care,568,10/11/2011,1112-00799,26984.00,R,Bradford District Care Trust
http://statistics.data.gov.uk/doc/local-authority/00DA,Leeds City Council,Adult Social Care,Services For Adults Under 65 Mental/Dis,Third Party Payments,Residential,580,23/11/2011,1112-00800,1475.76,R,Bradford Independent (St Ives) Ltd
http://statistics.data.gov.uk/doc/local-authority/00DA,Leeds City Council,Adult Social Care,Services For Older People - 65 And Over,Third Party Payments,Nursing Home,570,23/11/2011,1112-00801,6249.40,R,Bradford Independent (St Ives) Ltd
http://statistics.data.gov.uk/doc/local-authority/00DA,Leeds City Council,Adult Social Care,Services For Older People Under 65 P/Dis,Third Party Payments,Nursing Home,570,23/11/2011,1112-00802,6289.32,R,Bradford Independent (St Ives) Ltd
http://statistics.data.gov.uk/doc/local-authority/00DA,Leeds City Council,Adult Social Care,Services For Older People Under 65 P/Dis,Third Party Payments,Residential,580,23/11/2011,1112-00803,1946.80,R,Bradford Independent (St Ives) Ltd
http://statistics.data.gov.uk/doc/local-authority/00DA,Leeds City Council,Adult Social Care,Services For Adults Under 65 Mental/Dis,Third Party Payments,Nursing Home,570,23/11/2011,1112-00804,3306.84,R,Bradford Independent Health Care
http://statistics.data.gov.uk/doc/local-authority/00DA,Leeds City Council,Adult Social Care,Services For Adults Under 65 Mental/Dis,Third Party Payments,Nursing Home,570,23/11/2011,1112-00805,18936.40,R,Bradford Independent Health Care
http://statistics.data.gov.uk/doc/local-authority/00DA,Leeds City Council,Adult Social Care,Services For Adults Under 65 Mental/Dis,Third Party Payments,Residential,580,23/11/2011,1112-00806,1152.16,R,Bradford Independent Health Care
http://statistics.data.gov.uk/doc/local-authority/00DA,Leeds City Council,Adult Social Care,Services For Older People - 65 And Over,Third Party Payments,Nursing Home,570,23/11/2011,1112-00807,2625.20,R,Bradford Independent Health Care
http://statistics.data.gov.uk/doc/local-authority/00DA,Leeds City Council,Adult Social Care,Services For Older People - 65 And Over,Third Party Payments,Nursing Home,570,23/11/2011,1112-00808,10074.12,R,Bradford Independent Health Care
http://statistics.data.gov.uk/doc/local-authority/00DA,Leeds City Council,Adult Social Care,Services For Older People - 65 And Over,Third Party Payments,Residential Care Emi,571,23/11/2011,1112-00809,1656.32,R,Bradford Independent Health Care
http://statistics.data.gov.uk/doc/local-authority/00DA,Leeds City Council,Adult Social Care,Services For Older People - 65 And Over,Third Party Payments,Residential Care Emi,571,23/11/2011,1112-00810,1727.88,R,Bradford Independent Health Care
http://statistics.data.gov.uk/doc/local-authority/00DA,Leeds City Council,Adult Social Care,Services For Older People - 65 And Over,Third Party Payments,Nursing Care Emi,574,23/11/2011,1112-00811,-4914.65,R,Bradford Independent Health Care
http://statistics.data.gov.uk/doc/local-authority/00DA,Leeds City Council,Adult Social Care,Services For Older People - 65 And Over,Third Party Payments,Nursing Care Emi,574,23/11/2011,1112-00812,3238.80,R,Bradford Independent Health Care
http://statistics.data.gov.uk/doc/local-authority/00DA,Leeds City Council,Adult Social Care,Services For Older People - 65 And Over,Third Party Payments,Residential,580,23/11/2011,1112-00813,1080.60,R,Bradford Independent Health Care
http://statistics.data.gov.uk/doc/local-authority/00DA,Leeds City Council,Adult Social Care,Services For Older People Under 65 P/Dis,Third Party Payments,Nursing Home,570,23/11/2011,1112-00814,2235.32,R,Bradford Independent Health Care
http://statistics.data.gov.uk/doc/local-authority/00DA,Leeds City Council as Accountable Body,Jcs For People With Learning Disabilitie,Jcs For People With Learning Disabilitie,Third Party Payments,Nursing Home,570,23/11/2011,1112-00815,1808.20,R,Bradford Independent Health Care
http://statistics.data.gov.uk/doc/local-authority/00DA,Leeds City Council,Adult Social Care,Services For Adults Under 65 Mental/Dis,Third Party Payments,Nursing Home,570,23/11/2011,1112-00816,1420.08,R,Bradford Independent Health Care Owlett
http://statistics.data.gov.uk/doc/local-authority/00DA,Leeds City Council,Adult Social Care,Services For Older People - 65 And Over,Third Party Payments,Nursing Home,570,23/11/2011,1112-00817,30598.82,R,Bradford Independent Health Care Owlett
http://statistics.data.gov.uk/doc/local-authority/00DA,Leeds City Council,Adult Social Care,Services For Older People - 65 And Over,Third Party Payments,Residential,580,23/11/2011,1112-00818,-1574.26,R,Bradford Independent Health Care Owlett
http://statistics.data.gov.uk/doc/local-authority/00DA,Aire Valley Homes Leeds,Aire Valley Homes Leeds,E. Offices,Premises,H.R.A. - Special Maintenance,106,01/11/2011,1112-00819,746.65,R,Bradley Environmental Consultants
http://statistics.data.gov.uk/doc/local-authority/00DA,Aire Valley Homes Leeds,Aire Valley Homes Leeds,S. Offices,Premises,H.R.A. - Special Maintenance,106,01/11/2011,1112-00820,1989.25,R,Bradley Environmental Consultants
http://statistics.data.gov.uk/doc/local-authority/00DA,Leeds City Council,Environment & Neighbourhoods,South South East,Capital,Construction,3,01/11/2011,1112-00821,430.55,C,Bradley Environmental Consultants
http://statistics.data.gov.uk/doc/local-authority/00DA,West - North West,West - North West,Property And Maintenance,Premises,H.R.A. - Special Maintenance,106,01/11/2011,1112-00822,1515.10,R,Bradley Environmental Consultants
http://statistics.data.gov.uk/doc/local-authority/00DA,West - North West,West - North West,Property And Maintenance,Premises,H.R.A. - Special Maintenance,106,09/11/2011,1112-00823,3324.50,R,Bradley Environmental Consultants
http://statistics.data.gov.uk/doc/local-authority/00DA,Aire Valley Homes Leeds,Aire Valley Homes Leeds,S. Offices,Premises,H.R.A. - Special Maintenance,106,23/11/2011,1112-00824,1264.40,R,Bradley Environmental Consultants
http://statistics.data.gov.uk/doc/local-authority/00DA,West - North West,West - North West,Property And Maintenance,Premises,H.R.A. - Special Maintenance,106,23/11/2011,1112-00825,2203.45,R,Bradley Environmental Consultants
http://statistics.data.gov.uk/doc/local-authority/00DA,Aire Valley Homes Leeds,Aire Valley Homes Leeds,E. Offices,Premises,H.R.A. - Special Maintenance,106,30/11/2011,1112-00826,474.15,R,Bradley Environmental Consultants
http://statistics.data.gov.uk/doc/local-authority/00DA,Aire Valley Homes Leeds,Aire Valley Homes Leeds,S. Offices,Premises,H.R.A. - Special Maintenance,106,30/11/2011,1112-00827,1493.30,R,Bradley Environmental Consultants
http://statistics.data.gov.uk/doc/local-authority/00DA,Leeds City Council,Adult Social Care,Services For Older People Under 65 P/Dis,Third Party Payments,Home Care,568,04/11/2011,1112-00828,819.80,R,Brain Injury Rehabilitation Trust
http://statistics.data.gov.uk/doc/local-authority/00DA,Leeds City Council,Adult Social Care,Services For Adults Under 65 Mental/Dis,Third Party Payments,Nursing Home,570,23/11/2011,1112-00829,3782.20,R,Brain Injury Rehabilitation Trust
http://statistics.data.gov.uk/doc/local-authority/00DA,Leeds City Council,Adult Social Care,Services For Older People - 65 And Over,Third Party Payments,Sheltered Accommodation,569,23/11/2011,1112-00830,4930.56,R,Brain Injury Rehabilitation Trust
http://statistics.data.gov.uk/doc/local-authority/00DA,Leeds City Council,Adult Social Care,Services For Older People Under 65 P/Dis,Third Party Payments,Sheltered Accommodation,569,23/11/2011,1112-00831,18676.91,R,Brain Injury Rehabilitation Trust
http://statistics.data.gov.uk/doc/local-authority/00DA,Leeds City Council,Adult Social Care,Services For Older People Under 65 P/Dis,Third Party Payments,Sheltered Accommodation,569,23/11/2011,1112-00832,31222.12,R,Brain Injury Rehabilitation Trust
http://statistics.data.gov.uk/doc/local-authority/00DA,Leeds City Council,Adult Social Care,Services For Older People Under 65 P/Dis,Third Party Payments,Residential,580,23/11/2011,1112-00833,4642.96,R,Brain Injury Rehabilitation Trust
http://statistics.data.gov.uk/doc/local-authority/00DA,Leeds City Council,Adult Social Care,Services For Older People Under 65 P/Dis,Third Party Payments,Home Care,568,04/11/2011,1112-00834,797.04,R,Brain Injury Rehabillitation Trust
http://statistics.data.gov.uk/doc/local-authority/00DA,Leeds City Council,Adult Social Care,Services For Older People Under 65 P/Dis,Third Party Payments,Home Care,568,04/11/2011,1112-00835,818.49,R,Brain Injury Rehabillitation Trust
http://statistics.data.gov.uk/doc/local-authority/00DA,Leeds City Council as Accountable Body,Jcs For People With Learning Disabilitie,Jcs For People With Learning Disabilitie,Third Party Payments,Home Care,568,23/11/2011,1112-00836,1575.11,R,Brain Injury Rehabillitation Trust
http://statistics.data.gov.uk/doc/local-authority/00DA,Leeds City Council,Central & Corporate Functions,Commercial Services Trading Services,Supplies and Services,Food & Drink,231,02/11/2011,1112-00837,623.35,R,Brake Bros Ltd
http://statistics.data.gov.uk/doc/local-authority/00DA,Leeds City Council,Central & Corporate Functions,Commercial Services Trading Services,Supplies and Services,Operational Materials,205,10/11/2011,1112-00838,515.00,R,Brake Bros Ltd
http://statistics.data.gov.uk/doc/local-authority/00DA,Leeds City Council,City Development,Planning & Sustainable Development,Supplies and Services,Non-Recurring Grants,227,22/11/2011,1112-00839,10000.00,R,Bramhope & Carlton Parish Council
http://statistics.data.gov.uk/doc/local-authority/00DA,Leeds City Council,Childrens Services,Safeguarding Targeted & Specialist,Third Party Payments,Contact,548,29/11/2011,1112-00840,435.69,R,Bramley Family Support Project
http://statistics.data.gov.uk/doc/local-authority/00DA,Leeds City Council,Childrens Services,Safeguarding Targeted & Specialist,Third Party Payments,Contact,548,29/11/2011,1112-00841,494.57,R,Bramley Family Support Project
http://statistics.data.gov.uk/doc/local-authority/00DA,Leeds City Council,Childrens Services,Safeguarding Targeted & Specialist,Third Party Payments,Contact,548,29/11/2011,1112-00842,494.61,R,Bramley Family Support Project
http://statistics.data.gov.uk/doc/local-authority/00DA,Leeds City Council,Adult Social Care,Services For Older People - 65 And Over,Third Party Payments,Nursing Home,570,23/11/2011,1112-00843,39284.55,R,Brandon House
http://statistics.data.gov.uk/doc/local-authority/00DA,Leeds City Council,Adult Social Care,Services For Older People - 65 And Over,Third Party Payments,Nursing Care Emi,574,23/11/2011,1112-00844,1178.52,R,Brandon House
http://statistics.data.gov.uk/doc/local-authority/00DA,Leeds City Council,Adult Social Care,Services For Older People - 65 And Over,Third Party Payments,Residential,580,23/11/2011,1112-00845,1126.60,R,Brandon House
http://statistics.data.gov.uk/doc/local-authority/00DA,Leeds City Council,Central & Corporate Functions,Commercial Services Trading Services,Transport,Fuel (Non LCC Supplies),321,02/11/2011,1112-00846,475.00,R,Brenntag Uk Limited
http://statistics.data.gov.uk/doc/local-authority/00DA,Leeds City Council,Central & Corporate Functions,Commercial Services Trading Services,Transport,Fuel (Non LCC Supplies),321,14/11/2011,1112-00847,475.00,R,Brenntag Uk Limited
http://statistics.data.gov.uk/doc/local-authority/00DA,Leeds City Council,Central & Corporate Functions,Commercial Services Trading Services,Transport,Fuel (Non LCC Supplies),321,29/11/2011,1112-00848,475.00,R,Brenntag Uk Limited
http://statistics.data.gov.uk/doc/local-authority/00DA,Leeds City Council,City Development,Asset Management Services,Supplies and Services,Bought In Professional Services,277,23/11/2011,1112-00849,8945.06,R,Briar Associates
http://statistics.data.gov.uk/doc/local-authority/00DA,Leeds City Council,City Development,Asset Management Services,Supplies and Services,Bought In Professional Services,277,23/11/2011,1112-00850,23207.17,R,Briar Associates
http://statistics.data.gov.uk/doc/local-authority/00DA,Leeds City Council,City Development,Libraries Arts & Heritage,Supplies and Services,Books & Audio-Visual Materials,206,09/11/2011,1112-00851,496.06,R,Bright Book Supplies
http://statistics.data.gov.uk/doc/local-authority/00DA,Leeds City Council,Childrens Services,Safeguarding Targeted & Specialist,Third Party Payments,Fostering - Placement Support,550,30/11/2011,1112-00852,448.00,R,Bright Skies Day Nursery
http://statistics.data.gov.uk/doc/local-authority/00DA,Leeds City Council,Childrens Services,Learning Skills & Universal,Supplies and Services,Publication And Promotion,267,23/11/2011,1112-00853,2778.00,R,Brintex
http://statistics.data.gov.uk/doc/local-authority/00DA,Leeds City Council,Central & Corporate Functions,Commercial Services Trading Services,Transport,Vehicle Spares,345,04/11/2011,1112-00854,643.60,R,Britannia Cooling Ltd
http://statistics.data.gov.uk/doc/local-authority/00DA,Leeds City Council,Central & Corporate Functions,Commercial Services Trading Services,Transport,Vehicle Spares,345,04/11/2011,1112-00855,643.60,R,Britannia Cooling Ltd
http://statistics.data.gov.uk/doc/local-authority/00DA,Leeds City Council,Adult Social Care,Services For Adults Under 65 Mental/Dis,Third Party Payments,Residential,580,23/11/2011,1112-00856,1900.00,R,Britannia Nursing Home
http://statistics.data.gov.uk/doc/local-authority/00DA,Leeds City Council,Childrens Services,Safeguarding Targeted & Specialist,Employees,Professionally Linked Training,076,04/11/2011,1112-00857,572.50,R,British Agencies For Adoption & Fostering
http://statistics.data.gov.uk/doc/local-authority/00DA,Leeds City Council,Childrens Services,Safeguarding Targeted & Specialist,Third Party Payments,Fostering - Placement Support,550,11/11/2011,1112-00858,850.00,R,British Agencies For Adoption & Fostering
http://statistics.data.gov.uk/doc/local-authority/00DA,Leeds City Council,Childrens Services,Learning Skills & Universal,Supplies and Services,Publication And Promotion,267,29/11/2011,1112-00859,3237.96,R,British Education Supplies Association
http://statistics.data.gov.uk/doc/local-authority/00DA,Leeds City Council,Environment & Neighbourhoods,Community Safety,Supplies and Services,Other Hired And Contracted Services,265,02/11/2011,1112-00860,667.00,R,British Gas Business
http://statistics.data.gov.uk/doc/local-authority/00DA,Leeds City Council,City Development,Asset Management Services,Premises,Gas,123,23/11/2011,1112-00861,1036.56,R,British Gas Business
http://statistics.data.gov.uk/doc/local-authority/00DA,Leeds City Council,Childrens Services,Learning Skills & Universal,Premises,Gas,123,30/11/2011,1112-00862,1829.58,R,British Gas Business
http://statistics.data.gov.uk/doc/local-authority/00DA,Leeds City Council,Environment & Neighbourhoods,Statutory Housing,Premises,Electricity,124,30/11/2011,1112-00863,677.52,R,British Gas Business
http://statistics.data.gov.uk/doc/local-authority/00DA,Leeds City Council,Environment & Neighbourhoods,Statutory Housing,Premises,Electricity,124,30/11/2011,1112-00864,1369.42,R,British Gas Business
http://statistics.data.gov.uk/doc/local-authority/00DA,Leeds City Council,Environment & Neighbourhoods,Statutory Housing,Premises,Electricity,124,30/11/2011,1112-00865,3453.22,R,British Gas Business
http://statistics.data.gov.uk/doc/local-authority/00DA,Leeds City Council,Environment & Neighbourhoods,East North East,Capital,Construction,3,03/11/2011,1112-00866,9117.00,C,British Gas Services Ltd
http://statistics.data.gov.uk/doc/local-authority/00DA,Leeds City Council,Environment & Neighbourhoods,South South East,Capital,Construction,3,03/11/2011,1112-00867,5637.00,C,British Gas Services Ltd
http://statistics.data.gov.uk/doc/local-authority/00DA,Leeds City Council,Environment & Neighbourhoods,West North West,Capital,Construction,3,03/11/2011,1112-00868,8983.55,C,British Gas Services Ltd
http://statistics.data.gov.uk/doc/local-authority/00DA,Leeds City Council,Environment & Neighbourhoods,East North East,Capital,Construction,3,08/11/2011,1112-00869,17702.00,C,British Gas Services Ltd
http://statistics.data.gov.uk/doc/local-authority/00DA,Leeds City Council,Environment & Neighbourhoods,South South East,Capital,Construction,3,08/11/2011,1112-00870,5922.00,C,British Gas Services Ltd
http://statistics.data.gov.uk/doc/local-authority/00DA,Leeds City Council,Environment & Neighbourhoods,West North West,Capital,Construction,3,08/11/2011,1112-00871,9734.27,C,British Gas Services Ltd
http://statistics.data.gov.uk/doc/local-authority/00DA,Leeds City Council,Environment & Neighbourhoods,West North West,Capital,Construction,3,08/11/2011,1112-00872,11971.77,C,British Gas Services Ltd
http://statistics.data.gov.uk/doc/local-authority/00DA,Leeds City Council,Environment & Neighbourhoods,East North East,Capital,Construction,3,14/11/2011,1112-00873,18376.00,C,British Gas Services Ltd
http://statistics.data.gov.uk/doc/local-authority/00DA,Leeds City Council,Environment & Neighbourhoods,West North West,Capital,Construction,3,14/11/2011,1112-00874,7151.82,C,British Gas Services Ltd
http://statistics.data.gov.uk/doc/local-authority/00DA,Leeds City Council,Environment & Neighbourhoods,Belle Isle,Capital,Construction,3,18/11/2011,1112-00875,2840.00,C,British Gas Services Ltd
